Local authority department which incurred the expenditure,Service Division,Cost Centre,Summary of the Purpose of Expenditure,Expense Type,Expense Code,Detailed Expense Type,Date of Transaction,Transaction Number,Beneficiary,Merchant Category Number,Merchant Category,Gross Amount,VAT,Net Amount
"Regeneration, Economy and Growth",Business Durham CL0850,030689,Inward Investment and Aftercare,Supplies and Services,336005,Advertising E336,01-May-2021,000007545468620,LINKEDIN-657 6418914,7311,Advertising other than for staff,83.67,0.00,83.67
"Regeneration, Economy and Growth",Business Durham CL0850,030689,Inward Investment and Aftercare,Supplies and Services,336005,Advertising E336,01-May-2021,000007545468622,LINKEDIN-657 6955694,7311,Advertising other than for staff,28.80,0.00,28.80
Adult and Health Services,Head of Adults,055302,Durham Pathways,Supplies and Services,384999,Miscellaneous Expenses,01-May-2021,000007545468674,Hobbycraft Trading Lim,5970,Other expenses,25.00,0.00,25.00
Children and Young Peoples Services,Head of Childrens Social Care,085342,16 Hickstead Rise (previously 9 Cedar Ave),Supplies and Services,324117,Provisions E324,01-May-2021,000007545468688,TESCO STORES 2916,5411,Catering costs - provisions,103.75,0.00,103.75
Children and Young Peoples Services,Head of Childrens Social Care,085341,High Etherley Satelite Home,Supplies and Services,348037,Subsistence E348,01-May-2021,000007545468792,Domino s Pizza,5812,Subsistence,49.97,0.00,49.97
Children and Young Peoples Services,Head of Childrens Social Care,085334,West Rainton Satelite Home,Supplies and Services,304221,Equipment and Materials,01-May-2021,000007545468840,TOOLSTATION LTD,5211,Direct materials,49.96,0.00,49.96
Children and Young Peoples Services,Head of Childrens Social Care,085334,West Rainton Satelite Home,Supplies and Services,328041,Clothing uniforms and laundry E328,01-May-2021,000007545468842,The Range,5311,Clothing uniforms and laundry,19.92,0.00,19.92
Children and Young Peoples Services,Head of Childrens Social Care,085334,West Rainton Satelite Home,Supplies and Services,348037,Subsistence E348,01-May-2021,000007545468844,GREGGS,5812,Subsistence,3.70,0.00,3.70
Children and Young Peoples Services,Head of Childrens Social Care,085334,West Rainton Satelite Home,Supplies and Services,328041,Clothing uniforms and laundry E328,01-May-2021,000007545468846,MOUNTAIN WAREHOUSE,5691,Clothing uniforms and laundry,16.99,0.00,16.99
Children and Young Peoples Services,Head of Childrens Social Care,085334,West Rainton Satelite Home,Employees,040149,Recruitment Instruction and Training,01-May-2021,000007545468848,PQA LTD,8299,Training-all costs,28.40,0.00,28.40
Children and Young Peoples Services,Head of Early Help Inclusion & Vulnerable Children.,085956,Lumley,Supplies and Services,324117,Provisions E324,01-May-2021,000007545468922,TESCO STORES 6329,5411,Catering costs - provisions,83.13,0.00,83.13
Children and Young Peoples Services,Head of Childrens Social Care,085331,New Lea Childrens Home,Supplies and Services,324117,Provisions E324,01-May-2021,000007545468972,WM MORRISONS STORE,5411,Catering costs - provisions,53.85,0.00,53.85
Children and Young Peoples Services,Head of Childrens Social Care,085342,16 Hickstead Rise (previously 9 Cedar Ave),Supplies and Services,348037,Subsistence E348,01-May-2021,000007545469098,MCDONALDS,5814,Subsistence,19.38,0.00,19.38
Resources BK0010,Procurement Sales & Business Services,065504,Business Support - Meadowfield,Supplies and Services,304259,Equipment and Materials,01-May-2021,000007545469102,Amazon Music MK6P07NV4,5735,Equipment-purchase and rental,7.99,0.00,7.99
Resources BK0010,Legal & Democratic Services,067801,Registrars,Supplies and Services,332047,Printing Stationery and Gen Off Exps,01-May-2021,000007545469228,Amazon.co.uk MK0Y52N74,5969,Stationery,39.50,6.58,32.92
Children and Young Peoples Services,Head of Childrens Social Care,085372,Young Peoples Service Team 2,Supplies and Services,308011,Furniture,01-May-2021,000007545469238,ARGOS LTD,5310,Furniture repair and replacement,258.93,0.00,258.93
Children and Young Peoples Services,Head of Childrens Social Care,085332,Middlestone Moor CU,Supplies and Services,304999,Equipment and Materials,01-May-2021,000007545469258,Microsoft Console 1-Mo,5816,Misc equipment tools and materials,7.99,0.00,7.99
Children and Young Peoples Services,Head of Childrens Social Care,085332,Middlestone Moor CU,Supplies and Services,348037,Subsistence E348,01-May-2021,000007545469260,KFC WEST AUCKLAND,5814,Subsistence,14.47,0.00,14.47
"Regeneration, Economy and Growth",Communications Management,060270,Communications and Marketing,Supplies and Services,336005,Advertising E336,01-May-2021,000007545469352,LINKEDIN IRELAND,7311,Advertising other than for staff,10.64,0.00,10.64
Children and Young Peoples Services,Head of Childrens Social Care,085551,Short Break Services-Park Hse Sher,Supplies and Services,324117,Provisions E324,01-May-2021,000007545469390,CO-OP GROUP 010486,5411,Catering costs - provisions,21.15,0.00,21.15
Children and Young Peoples Services,Head of Childrens Social Care,085551,Short Break Services-Park Hse Sher,Supplies and Services,324117,Provisions E324,01-May-2021,000007545469396,WWW.ICELAND.CO.UK,5411,Catering costs - provisions,70.90,0.00,70.90
Children and Young Peoples Services,Head of Childrens Social Care,085342,16 Hickstead Rise (previously 9 Cedar Ave),Supplies and Services,332047,Printing Stationery and Gen Off Exps,01-May-2021,000007551099152,STAPLES,5111,Stationery,36.43,0.00,36.43
Resources BK0010,Procurement Sales & Business Services,065504,Business Support - Meadowfield,Supplies and Services,304259,Equipment and Materials,01-May-2021,000009530997593,Amazon Music MK6P07NV4,5735,Equipment-purchase and rental,-7.99,0.00,-7.99
"Regeneration, Economy and Growth",Business Durham CL0850,030689,Inward Investment and Aftercare,Supplies and Services,304403,Equipment and Materials,02-May-2021,000007545468618,ADOBE CREATIVE CLOUD,5734,Other consumables,49.94,0.00,49.94
"Regeneration, Economy and Growth",Business Durham CL0850,030689,Inward Investment and Aftercare,Supplies and Services,342222,Computers and Communications,02-May-2021,000007545468624,FASTHOSTS INTERNET,4816,Comp hardware purch-network servers,67.20,0.00,67.20
"Regeneration, Economy and Growth",Business Durham CL0850,030689,Inward Investment and Aftercare,Supplies and Services,342222,Computers and Communications,02-May-2021,000007545468626,FASTHOSTS INTERNET,4816,Comp hardware purch-network servers,72.66,0.00,72.66
"Regeneration, Economy and Growth",Culture Sport and Tourism,030712,VCD - Project Delivery,Supplies and Services,384199,Miscellaneous Expenses,02-May-2021,000007545468682,MAILCHIMP MONTHLY,5968,Other hired and contracted services,204.43,0.00,204.43
Children and Young Peoples Services,Head of Childrens Social Care,085342,16 Hickstead Rise (previously 9 Cedar Ave),Supplies and Services,324117,Provisions E324,02-May-2021,000007545468690,TESCO STORES 2916,5411,Catering costs - provisions,13.03,0.00,13.03
Children and Young Peoples Services,Head of Childrens Social Care,085341,High Etherley Satelite Home,Supplies and Services,324117,Provisions E324,02-May-2021,000007545468702,Kandy Kaye,5441,Catering costs - provisions,19.00,0.00,19.00
Children and Young Peoples Services,Head of Childrens Social Care,085341,High Etherley Satelite Home,Supplies and Services,324117,Provisions E324,02-May-2021,000007545468704,TESCO STORES 6329,5411,Catering costs - provisions,28.16,0.00,28.16
Children and Young Peoples Services,Head of Childrens Social Care,085341,High Etherley Satelite Home,Supplies and Services,344033,Telephones,02-May-2021,000007545468794,TESCO STORES 6329,5411,Telephones general-all costs,39.98,0.00,39.98
Children and Young Peoples Services,Head of Childrens Social Care,085341,High Etherley Satelite Home,Supplies and Services,304259,Equipment and Materials,02-May-2021,000007545468796,TESCO STORES 6329,5411,Equipment-purchase and rental,25.00,0.00,25.00
Children and Young Peoples Services,Head of Childrens Social Care,085352,New Childrens Home (previously Tow Law),Supplies and Services,384237,Miscellaneous Expenses,02-May-2021,000007545468814,SMUGGLERS COVE GOLF,7999,Recreational exps outings parties,6.40,0.00,6.40
Children and Young Peoples Services,Head of Childrens Social Care,085352,New Childrens Home (previously Tow Law),Supplies and Services,324117,Provisions E324,02-May-2021,000007545468816,ASDA SUPERSTORE 4987,5411,Catering costs - provisions,67.46,0.00,67.46
Children and Young Peoples Services,Head of Childrens Social Care,085352,New Childrens Home (previously Tow Law),Supplies and Services,324117,Provisions E324,02-May-2021,000007545468818,ASDA SUPERSTORE 4987,5411,Catering costs - provisions,15.00,0.00,15.00
Children and Young Peoples Services,Head of Childrens Social Care,085352,New Childrens Home (previously Tow Law),Supplies and Services,384999,Miscellaneous Expenses,02-May-2021,000007545468820,Amazon.co.uk MK3EC63G4,5969,Other expenses,32.54,5.42,27.12
Children and Young Peoples Services,Head of Childrens Social Care,085352,New Childrens Home (previously Tow Law),Supplies and Services,324117,Provisions E324,02-May-2021,000007545468822,YOFOODIE,5499,Catering costs - provisions,17.40,0.00,17.40
Children and Young Peoples Services,Head of Childrens Social Care,085352,New Childrens Home (previously Tow Law),Supplies and Services,324117,Provisions E324,02-May-2021,000007545468824,ASDA SUPERSTORE 4987,5411,Catering costs - provisions,-15.00,0.00,-15.00
Children and Young Peoples Services,Head of Childrens Social Care,085342,16 Hickstead Rise (previously 9 Cedar Ave),Supplies and Services,348037,Subsistence E348,02-May-2021,000007545468828,WWW.TAKEAWAY.JE,5812,Subsistence,13.90,0.00,13.90
Children and Young Peoples Services,Head of Childrens Social Care,085334,West Rainton Satelite Home,Supplies and Services,304403,Equipment and Materials,02-May-2021,000007545468850,AMZNMktplace,5999,Other consumables,3.50,0.00,3.50
Children and Young Peoples Services,Head of Childrens Social Care,085334,West Rainton Satelite Home,Supplies and Services,304221,Equipment and Materials,02-May-2021,000007545468852,WWW.SARAHRAVEN.COM,5261,Direct materials,20.90,0.00,20.90
Children and Young Peoples Services,Head of Childrens Social Care,085332,Middlestone Moor CU,Supplies and Services,324117,Provisions E324,02-May-2021,000007545468858,TESCO STORES 2916,5411,Catering costs - provisions,7.00,0.00,7.00
Children and Young Peoples Services,Head of Childrens Social Care,071448,Newton Aycliffe One Point Hub,Supplies and Services,384999,Miscellaneous Expenses,02-May-2021,000007545468898,Amazon.co.uk MK2YF13R4,5969,Other expenses,24.00,4.00,20.00
Children and Young Peoples Services,Head of Early Help Inclusion & Vulnerable Children.,085954,Walworth,Supplies and Services,324117,Provisions E324,02-May-2021,000007545468924,TESCO STORES 6329,5411,Catering costs - provisions,42.67,0.00,42.67
Children and Young Peoples Services,Head of Childrens Social Care,085341,High Etherley Satelite Home,Supplies and Services,344033,Telephones,02-May-2021,000007545469042,Mobiletopup.co.uk 9497,4814,Telephones general-all costs,21.49,0.00,21.49
Children and Young Peoples Services,Head of Childrens Social Care,085341,High Etherley Satelite Home,Supplies and Services,304999,Equipment and Materials,02-May-2021,000007545469044,HOME BARGAINS SPENNYMO,5251,Misc equipment tools and materials,17.28,0.00,17.28
Children and Young Peoples Services,Head of Childrens Social Care,085341,High Etherley Satelite Home,Supplies and Services,324117,Provisions E324,02-May-2021,000007545469046,ASDA SUPERSTORE 4987,5411,Catering costs - provisions,34.07,0.00,34.07
Children and Young Peoples Services,Head of Childrens Social Care,085341,High Etherley Satelite Home,Transport,215995,Running Costs of Vehicles,02-May-2021,000007545469048,Coundon Gate Service S,5541,Vehicle running expenses,9.10,0.00,9.10
Children and Young Peoples Services,Head of Childrens Social Care,085341,High Etherley Satelite Home,Transport,215995,Running Costs of Vehicles,02-May-2021,000007545469050,BP THINFORD NORTH,5541,Vehicle running expenses,5.16,0.00,5.16
Children and Young Peoples Services,Head of Childrens Social Care,085352,New Childrens Home (previously Tow Law),Supplies and Services,328041,Clothing uniforms and laundry E328,02-May-2021,000007545469106,FANTASY ISLAND,7996,Clothing uniforms and laundry,100.00,0.00,100.00
Children and Young Peoples Services,Head of Childrens Social Care,085352,New Childrens Home (previously Tow Law),Supplies and Services,304403,Equipment and Materials,02-May-2021,000007545469108,AMZNMKTPLACE AMAZON.CO,5999,Other consumables,28.57,4.77,23.80
Children and Young Peoples Services,Head of Childrens Social Care,085332,Middlestone Moor CU,Supplies and Services,304999,Equipment and Materials,02-May-2021,000007545469264,HOME BARGAINS SPENNYMO,5251,Misc equipment tools and materials,22.14,0.00,22.14
Children and Young Peoples Services,Head of Childrens Social Care,085551,Short Break Services-Park Hse Sher,Supplies and Services,324117,Provisions E324,02-May-2021,000007545469392,SAINSBURYS SACAT 0776,5411,Catering costs - provisions,32.67,0.00,32.67
Children and Young Peoples Services,Head of Childrens Social Care,085551,Short Break Services-Park Hse Sher,Supplies and Services,304403,Equipment and Materials,02-May-2021,000007545469394,AMZNMKTPLACE AMAZON.CO,5999,Other consumables,8.99,0.00,8.99
"Regeneration, Economy and Growth",Culture Sport and Tourism,054731,Killhope Lead Mining Centre,Supplies and Services,304403,Equipment and Materials,02-May-2021,000007554376502,Premier Farnell,5065,Other consumables,68.88,0.00,68.88
Children and Young Peoples Services,Head of Education and Skills,071801,Selby Cottage Childcare Centre,Supplies and Services,304999,Equipment and Materials,03-May-2021,000007545468644,APPLE.COM/BILL,5815,Misc equipment tools and materials,9.99,0.00,9.99
Adult and Health Services,Head of Adults,055302,Durham Pathways,Supplies and Services,384999,Miscellaneous Expenses,03-May-2021,000007545468676,Amazon.co.uk MK5S68JP4,5969,Other expenses,25.33,4.22,21.11
"Regeneration, Economy and Growth",Culture Sport and Tourism,030705,Visit County Durham 030705,Supplies and Services,342033,Computers and Communications,03-May-2021,000007545468684,FASTHOSTS INTERNET,4816,Computer hardware,6.34,1.06,5.28
Children and Young Peoples Services,Head of Childrens Social Care,085342,16 Hickstead Rise (previously 9 Cedar Ave),Supplies and Services,304999,Equipment and Materials,03-May-2021,000007545468692,HOME BARGAINS,5251,Misc equipment tools and materials,2.49,0.00,2.49
Children and Young Peoples Services,Head of Childrens Social Care,085342,16 Hickstead Rise (previously 9 Cedar Ave),Supplies and Services,324117,Provisions E324,03-May-2021,000007545468694,STARBUCKS THINFORD,5499,Catering costs - provisions,7.45,0.00,7.45
Children and Young Peoples Services,Head of Early Help Inclusion & Vulnerable Children.,085952,Secure Education,Supplies and Services,304403,Equipment and Materials,03-May-2021,000007545468776,AMZNMktplace,5999,Other consumables,23.04,3.84,19.20
Children and Young Peoples Services,Head of Early Help Inclusion & Vulnerable Children.,085952,Secure Education,Supplies and Services,304403,Equipment and Materials,03-May-2021,000007545468776 - 1,AMZNMktplace,5999,Other consumables,0.08,,0.08
Children and Young Peoples Services,Head of Childrens Social Care,085332,Middlestone Moor CU,Supplies and Services,348037,Subsistence E348,03-May-2021,000007545468860,GREGGS,5812,Subsistence,5.25,0.00,5.25
Children and Young Peoples Services,Head of Childrens Social Care,085332,Middlestone Moor CU,Supplies and Services,348037,Subsistence E348,03-May-2021,000007545468862,MCDONALD`S,5812,Subsistence,6.52,0.00,6.52
Children and Young Peoples Services,Head of Early Help Inclusion & Vulnerable Children.,085952,Secure Education,Supplies and Services,324117,Provisions E324,03-May-2021,000007545468926,TESCO STORES 6329,5411,Catering costs - provisions,5.05,0.00,5.05
Adult and Health Services,Head of Adults,055643,Hawthorn House LD Respite Unit,Supplies and Services,324117,Provisions E324,03-May-2021,000007545469088,CO-OP GROUP FOOD,5411,Catering costs - provisions,9.45,0.00,9.45
Children and Young Peoples Services,Head of Childrens Social Care,085334,West Rainton Satelite Home,Supplies and Services,324117,Provisions E324,03-May-2021,000007545469150,ASDA SUPERSTORE,5411,Catering costs - provisions,6.00,0.00,6.00
Children and Young Peoples Services,Head of Early Help Inclusion & Vulnerable Children.,085957,Secure Management,Supplies and Services,384999,Miscellaneous Expenses,03-May-2021,000007545469214,Amazon.co.uk MK6HP8TA4,5969,Other expenses,68.61,0.00,68.61
Children and Young Peoples Services,Head of Early Help Inclusion & Vulnerable Children.,085801,CDYJS - Support,Supplies and Services,304403,Equipment and Materials,03-May-2021,000007545469278,AMZNMktplace,5999,Other consumables,2.49,0.42,2.07
Children and Young Peoples Services,Head of Childrens Social Care,085351,Framwellgate Moor CU,Supplies and Services,304999,Equipment and Materials,03-May-2021,000007545469286,London Dungeon,7991,Misc equipment tools and materials,150.00,0.00,150.00
Children and Young Peoples Services,Head of Childrens Social Care,085351,Framwellgate Moor CU,Supplies and Services,384999,Miscellaneous Expenses,03-May-2021,000007545469290,Amazon.co.uk MK4QJ1TE4,5969,Other expenses,9.30,1.55,7.75
Children and Young Peoples Services,Head of Childrens Social Care,085333,Coxhoe Satelite Home,Supplies and Services,328041,Clothing uniforms and laundry E328,03-May-2021,000007545469338,SHEIN.COM,5691,Clothing uniforms and laundry,12.48,0.00,12.48
Children and Young Peoples Services,Head of Childrens Social Care,085342,16 Hickstead Rise (previously 9 Cedar Ave),Supplies and Services,328041,Clothing uniforms and laundry E328,03-May-2021,000007547902554,PRIMARK,5651,Clothing uniforms and laundry,74.80,0.00,74.80
Children and Young Peoples Services,Head of Early Help Inclusion & Vulnerable Children.,085957,Secure Management,Supplies and Services,304403,Equipment and Materials,03-May-2021,000007547903250,AMZNMKTPLACE AMAZON.CO,5999,Other consumables,19.90,3.32,16.58
Children and Young Peoples Services,Head of Early Help Inclusion & Vulnerable Children.,085957,Secure Management,Supplies and Services,372009,Subscriptions E372,03-May-2021,000007547903254,Hachette Partworks,2741,Subscriptions 372009,19.98,0.00,19.98
"Regeneration, Economy and Growth",Development and Housing,030771,Durham Advance Flexible Fund,Supplies and Services,342053,Computers and Communications,04-May-2021,000007545468866,MENTIMETER,5045,Computer software,2.37,0.00,2.37
Children and Young Peoples Services,Head of Childrens Social Care,085351,Framwellgate Moor CU,Supplies and Services,348037,Subsistence E348,04-May-2021,000007545469288,Just Eat,5814,Subsistence,50.60,0.00,50.60
Children and Young Peoples Services,Head of Childrens Social Care,085351,Framwellgate Moor CU,Supplies and Services,348037,Subsistence E348,04-May-2021,000007545469292,Just Eat,5814,Subsistence,9.00,0.00,9.00
"Regeneration, Economy and Growth",Business Durham CL0850,030689,Inward Investment and Aftercare,Supplies and Services,342222,Computers and Communications,04-May-2021,000007547902458,FASTHOSTS INTERNET,4816,Comp hardware purch-network servers,7.54,0.00,7.54
Children and Young Peoples Services,Head of Education and Skills,071801,Selby Cottage Childcare Centre,Supplies and Services,324117,Provisions E324,04-May-2021,000007547902482,TESCO STORES 2371,5411,Catering costs - provisions,86.49,0.00,86.49
Children and Young Peoples Services,Head of Childrens Social Care,085341,High Etherley Satelite Home,Supplies and Services,324117,Provisions E324,04-May-2021,000007547902516,TESCO STORES 6329,5411,Catering costs - provisions,43.86,0.00,43.86
Children and Young Peoples Services,Head of Childrens Social Care,085501,Child Care Cases Legal Expenses,Supplies and Services,304403,Equipment and Materials,04-May-2021,000007547902524,DARLINGTON BC INTERNET,9399,Other consumables,11.00,0.00,11.00
Adult and Health Services,Head of Adults,055302,Durham Pathways,Supplies and Services,304403,Equipment and Materials,04-May-2021,000007547902538,AMZNMktplace,5999,Other consumables,9.49,1.58,7.91
Adult and Health Services,Head of Adults,055302,Durham Pathways,Supplies and Services,384999,Miscellaneous Expenses,04-May-2021,000007547902544,Amazon.co.uk MK00Z00E4,5969,Other expenses,35.76,5.96,29.80
Children and Young Peoples Services,Head of Childrens Social Care,085332,Middlestone Moor CU,Supplies and Services,324117,Provisions E324,04-May-2021,000007547902560,TESCO STORES 2371,5411,Catering costs - provisions,152.74,0.00,152.74
Children and Young Peoples Services,Head of Childrens Social Care,085332,Middlestone Moor CU,Supplies and Services,324117,Provisions E324,04-May-2021,000007547902568,TESCO STORES 2916,5411,Catering costs - provisions,19.00,0.00,19.00
"Regeneration, Economy and Growth",Development and Housing,030776,LINKCD Flexible Fund,Transport,235057,Public Transport,04-May-2021,000007547902672,GO NORTH EAST LIMITED,4131,Staff travelling,7.00,0.00,7.00
Children and Young Peoples Services,Head of Childrens Social Care,085332,Middlestone Moor CU,Supplies and Services,324117,Provisions E324,04-May-2021,000007547902698,TESCO STORES 6329,5411,Catering costs - provisions,13.98,0.00,13.98
Neighbourhoods and Climate Change,Environmental Services,010367,C&G - South Grounds Maintenance,Supplies and Services,304221,Equipment and Materials,04-May-2021,000007547902734,BTL TIMBER AND HARDWAR,5099,Direct materials,49.40,0.00,49.40
"Regeneration, Economy and Growth",Development and Housing,031576,B& B - Temp Accom,Supplies and Services,364320,Grants to Voluntary Organisations,04-May-2021,000007547902740,HI NEWCASTLE WASHI,7011,Accommodation assistance,80.00,0.00,80.00
Children and Young Peoples Services,Head of Early Help Inclusion & Vulnerable Children.,085952,Secure Education,Supplies and Services,372009,Subscriptions E372,04-May-2021,000007547902758,CMP Musicroom.com,2741,Subscriptions 372009,47.97,0.00,47.97
Children and Young Peoples Services,Head of Early Help Inclusion & Vulnerable Children.,085957,Secure Management,Supplies and Services,384999,Miscellaneous Expenses,04-May-2021,000007547902764,Amazon.co.uk MK6J780V4,5969,Other expenses,25.56,4.26,21.30
Children and Young Peoples Services,Head of Early Help Inclusion & Vulnerable Children.,085952,Secure Education,Supplies and Services,304403,Equipment and Materials,04-May-2021,000007547902768,AMZNMktplace,5999,Other consumables,15.98,2.66,13.32
Children and Young Peoples Services,Head of Childrens Social Care,085342,16 Hickstead Rise (previously 9 Cedar Ave),Supplies and Services,344033,Telephones,04-May-2021,000007547902810,WWW.VOXI.CO.UK,4814,Telephones general-all costs,12.00,0.00,12.00
Children and Young Peoples Services,Head of Education and Skills,071732,Dean Bank Childcare,Supplies and Services,324117,Provisions E324,04-May-2021,000007547902830,SAINSBURYS SACAT (2303,5411,Catering costs - provisions,21.28,0.00,21.28
Children and Young Peoples Services,Head of Education and Skills,071732,Dean Bank Childcare,Supplies and Services,324117,Provisions E324,04-May-2021,000007547902834,ASDA GROCERIES ONLINE,5411,Catering costs - provisions,60.09,0.00,60.09
Children and Young Peoples Services,Head of Education and Skills,071732,Dean Bank Childcare,Supplies and Services,324117,Provisions E324,04-May-2021,000007547902838,ASDA GROCERIES ONLINE,5411,Catering costs - provisions,46.73,0.00,46.73
Children and Young Peoples Services,Head of Education and Skills,071732,Dean Bank Childcare,Supplies and Services,324117,Provisions E324,04-May-2021,000007547902842,ASDA GROCERIES ONLINE,5411,Catering costs - provisions,-0.25,0.00,-0.25
Children and Young Peoples Services,Head of Education and Skills,071732,Dean Bank Childcare,Supplies and Services,324117,Provisions E324,04-May-2021,000007547902844,ASDA GROCERIES ONLINE,5411,Catering costs - provisions,-8.50,0.00,-8.50
"Regeneration, Economy and Growth",Culture Sport and Tourism,054967,Theatre - Technical Staffing,Supplies and Services,304221,Equipment and Materials,04-May-2021,000007547902854,SCREWFIX DIRECT,5211,Direct materials,22.99,0.00,22.99
"Regeneration, Economy and Growth",Development and Housing,031576,B& B - Temp Accom,Supplies and Services,364320,Grants to Voluntary Organisations,04-May-2021,000007547902930,CROXDALE INN,5812,Accommodation assistance,500.00,0.00,500.00
Children and Young Peoples Services,Head of Early Help Inclusion & Vulnerable Children.,085957,Secure Management,Supplies and Services,340001,Postages E340,04-May-2021,000007547902942,CEX LTD,5065,Postages,2.95,0.00,2.95
Children and Young Peoples Services,Head of Early Help Inclusion & Vulnerable Children.,085962,Aycliffe Secure - Durham,Transfer Payments,515002,Social Services Clients,04-May-2021,000007547902948,ETSY.COM - BUGFRAMES,5699,Pocket money,30.00,0.00,30.00
Children and Young Peoples Services,Head of Early Help Inclusion & Vulnerable Children.,085962,Aycliffe Secure - Durham,Transfer Payments,515002,Social Services Clients,04-May-2021,000007547902952,AMZNMktplace,5999,Pocket money,5.79,0.97,4.82
Children and Young Peoples Services,Head of Early Help Inclusion & Vulnerable Children.,085962,Aycliffe Secure - Durham,Transfer Payments,515002,Social Services Clients,04-May-2021,000007547902956,JD SPORTS INTERNET,5941,Pocket money,16.99,0.00,16.99
Children and Young Peoples Services,Head of Early Help Inclusion & Vulnerable Children.,085956,Lumley,Transfer Payments,515002,Social Services Clients,04-May-2021,000007547902960,SHEIN.COM,5691,Pocket money,-20.22,0.00,-20.22
Children and Young Peoples Services,Head of Education and Skills,075021,DurhamWorks Progression and Learning,Supplies and Services,364301,Grants to Voluntary Organisations,04-May-2021,000007547902986,GO NORTH EAST LIMITED,4131,Hardship,17.00,0.00,17.00
Resources BK0010,People & Talent Management,010984,Training and Development,Employees,040149,Recruitment Instruction and Training,04-May-2021,000007547902992,WWW.JIB.ORG.UK,8699,Training-all costs,250.00,0.00,250.00
Children and Young Peoples Services,Head of Early Help Inclusion & Vulnerable Children.,088119,Durham 0-19 Community Family Hub,Supplies and Services,324117,Provisions E324,04-May-2021,000007547903014,CO-OP GROUP 010460,5411,Catering costs - provisions,6.00,0.00,6.00
Children and Young Peoples Services,Head of Childrens Social Care,085551,Short Break Services-Park Hse Sher,Supplies and Services,324117,Provisions E324,04-May-2021,000007547903038,J FREEMAN & SONS LTD,5499,Catering costs - provisions,131.92,0.00,131.92
Children and Young Peoples Services,Head of Childrens Social Care,085551,Short Break Services-Park Hse Sher,Supplies and Services,324117,Provisions E324,04-May-2021,000007547903044,JR HOLLAND FOODSERVICE,5499,Catering costs - provisions,165.66,0.00,165.66
Neighbourhoods and Climate Change,Environmental Services,010367,C&G - South Grounds Maintenance,Supplies and Services,304999,Equipment and Materials,04-May-2021,000007547903082,Snowballs,5251,Misc equipment tools and materials,48.60,0.00,48.60
Neighbourhoods and Climate Change,Environmental Services,010367,C&G - South Grounds Maintenance,Supplies and Services,304221,Equipment and Materials,04-May-2021,000007547903088,B & Q 1120,5200,Direct materials,119.06,0.00,119.06
Adult and Health Services,Head of Adults,055643,Hawthorn House LD Respite Unit,Supplies and Services,304403,Equipment and Materials,04-May-2021,000007547903104,AMZNMktplace,5999,Other consumables,13.99,2.33,11.66
Adult and Health Services,Head of Adults,055643,Hawthorn House LD Respite Unit,Supplies and Services,324117,Provisions E324,04-May-2021,000007547903108,CO-OP GROUP 010465,5411,Catering costs - provisions,2.20,0.00,2.20
Neighbourhoods and Climate Change,Environmental Services,010367,C&G - South Grounds Maintenance,Supplies and Services,304221,Equipment and Materials,04-May-2021,000007547903160,B & Q 1120,5200,Direct materials,9.25,0.00,9.25
Neighbourhoods and Climate Change,Environmental Services,010367,C&G - South Grounds Maintenance,Supplies and Services,304221,Equipment and Materials,04-May-2021,000007547903164,B&Q DIRECT,5200,Direct materials,10.00,0.00,10.00
Neighbourhoods and Climate Change,Environmental Services,010367,C&G - South Grounds Maintenance,Supplies and Services,304221,Equipment and Materials,04-May-2021,000007547903170,B & Q 1120,5200,Direct materials,-10.00,0.00,-10.00
Children and Young Peoples Services,Head of Childrens Social Care,085334,West Rainton Satelite Home,Supplies and Services,324117,Provisions E324,04-May-2021,000007547903198,TESCO STORES 2371,5411,Catering costs - provisions,5.94,0.00,5.94
Children and Young Peoples Services,Head of Childrens Social Care,085334,West Rainton Satelite Home,Supplies and Services,324117,Provisions E324,04-May-2021,000007547903204,TESCO STORES 2371,5411,Catering costs - provisions,89.96,0.00,89.96
"Regeneration, Economy and Growth",Development and Housing,031576,B& B - Temp Accom,Supplies and Services,364320,Grants to Voluntary Organisations,04-May-2021,000007547903288,CROXDALE INN,5812,Accommodation assistance,135.00,0.00,135.00
"Regeneration, Economy and Growth",Development and Housing,031576,B& B - Temp Accom,Supplies and Services,364320,Grants to Voluntary Organisations,04-May-2021,000007547903292,PREMIER LODGE NORTH,7011,Accommodation assistance,300.00,0.00,300.00
Children and Young Peoples Services,Head of Childrens Social Care,085351,Framwellgate Moor CU,Supplies and Services,328041,Clothing uniforms and laundry E328,04-May-2021,000007547903312,KARTING NORTH EAST,7996,Clothing uniforms and laundry,50.00,0.00,50.00
Children and Young Peoples Services,Head of Education and Skills,071802,Louisa Cent Nursery,Supplies and Services,324117,Provisions E324,04-May-2021,000007547903320,ALDI 11 774,5411,Catering costs - provisions,21.36,0.00,21.36
Adult and Health Services,Head of Adults,052229,Countywide AMHP Team,Supplies and Services,338048,Services,04-May-2021,000007547903380,HMCOURTS-SERVICE.G,9222,Court costs 338048,75.00,0.00,75.00
"Regeneration, Economy and Growth",Development and Housing,031500,Housing Solutions - Core,Transport,235057,Public Transport,04-May-2021,000007547903398,BLUE LINE TAXIS,4121,Staff travelling,35.00,0.00,35.00
"Regeneration, Economy and Growth",Development and Housing,031500,Housing Solutions - Core,Transport,235057,Public Transport,04-May-2021,000007547903402,BLUE LINE TAXIS,4121,Staff travelling,23.20,0.00,23.20
Children and Young Peoples Services,Head of Childrens Social Care,085332,Middlestone Moor CU,Supplies and Services,304999,Equipment and Materials,04-May-2021,000007547903460,London Dungeon,7991,Misc equipment tools and materials,140.00,0.00,140.00
Neighbourhoods and Climate Change,Environmental Services,011060,C&G - Hardwick Park Catering,Supplies and Services,324117,Provisions E324,04-May-2021,000007551098898,BATLEYS PERTH,5300,Catering costs - provisions,63.06,10.51,52.55
Neighbourhoods and Climate Change,Environmental Services,011060,C&G - Hardwick Park Catering,Supplies and Services,324117,Provisions E324,04-May-2021,000007551098898 - 1,BATLEYS PERTH,5300,Catering costs - provisions,178.45,,178.45
Adult and Health Services,Head of Adults,055309,Peterlee Pathways,Supplies and Services,304403,Equipment and Materials,04-May-2021,000007551099636,AMZNMKTPLACE AMAZON.CO,5999,Other consumables,14.04,2.34,11.70
Adult and Health Services,Head of Adults,055309,Peterlee Pathways,Supplies and Services,304403,Equipment and Materials,04-May-2021,000007551099636 - 1,AMZNMKTPLACE AMAZON.CO,5999,Other consumables,9.44,,9.44
"Regeneration, Economy and Growth",Corporate Property and Land,015015,FM-Civic Bldgs-Spectrum 8 Seaham,Supplies and Services,372009,Subscriptions E372,04-May-2021,000007554377980,TVLICENSING.CO.UK,7392,Subscriptions 372009,159.00,0.00,159.00
"Regeneration, Economy and Growth",Business Durham CL0850,030689,Inward Investment and Aftercare,Supplies and Services,336005,Advertising E336,05-May-2021,000007547902466,GOOGLE ADS6853017821,7311,Advertising other than for staff,84.63,0.00,84.63
Adult and Health Services,Head of Adults,055302,Durham Pathways,Supplies and Services,304403,Equipment and Materials,05-May-2021,000007547902546,AMZNMktplace,5999,Other consumables,5.39,0.90,4.49
"Regeneration, Economy and Growth",Culture Sport and Tourism,054967,Theatre - Technical Staffing,Supplies and Services,304221,Equipment and Materials,05-May-2021,000007547902850,SHOP.ETCCONNECT.COM,5085,Direct materials,10.87,0.00,10.87
"Regeneration, Economy and Growth",Culture Sport and Tourism,054967,Theatre - Technical Staffing,Supplies and Services,304221,Equipment and Materials,05-May-2021,000007547902858,SHOP.ETCCONNECT.COM,5085,Direct materials,0.30,0.00,0.30
Children and Young Peoples Services,Head of Education and Skills,071801,Selby Cottage Childcare Centre,Supplies and Services,324117,Provisions E324,05-May-2021,000007551098048,JR HOLLAND FOODSERVICE,5499,Catering costs - provisions,456.51,0.00,456.51
Resources BK0010,Procurement Sales & Business Services,065503,Business Support - Spectrum,Supplies and Services,304403,Equipment and Materials,05-May-2021,000007551098072,AMZNMktplace,5999,Other consumables,11.98,2.00,9.98
"Regeneration, Economy and Growth",Communications Management,060270,Communications and Marketing,Supplies and Services,304403,Equipment and Materials,05-May-2021,000007551098078,AMZNMktplace,5999,Other consumables,25.98,4.33,21.65
"Regeneration, Economy and Growth",Culture Sport and Tourism,010601,Spennymoor Leisure Cr - General,Supplies and Services,304259,Equipment and Materials,05-May-2021,000007551098158,AMZNMktplace,5999,Equipment-purchase and rental,19.92,3.32,16.60
"Regeneration, Economy and Growth",Culture Sport and Tourism,010601,Spennymoor Leisure Cr - General,Supplies and Services,304259,Equipment and Materials,05-May-2021,000007551098158 - 1,AMZNMktplace,5999,Equipment-purchase and rental,0.04,,0.04
Children and Young Peoples Services,Head of Childrens Social Care,085342,16 Hickstead Rise (previously 9 Cedar Ave),Supplies and Services,324117,Provisions E324,05-May-2021,000007551098214,SAINSBURYS SACAT 2199,5411,Catering costs - provisions,0.30,0.05,0.25
Children and Young Peoples Services,Head of Childrens Social Care,085342,16 Hickstead Rise (previously 9 Cedar Ave),Supplies and Services,324117,Provisions E324,05-May-2021,000007551098214 - 1,SAINSBURYS SACAT 2199,5411,Catering costs - provisions,0.65,,0.65
Children and Young Peoples Services,Head of Childrens Social Care,085342,16 Hickstead Rise (previously 9 Cedar Ave),Supplies and Services,324117,Provisions E324,05-May-2021,000007551098224,SAINSBURYS 2199,5411,Catering costs - provisions,53.10,0.00,53.10
Children and Young Peoples Services,Head of Childrens Social Care,085342,16 Hickstead Rise (previously 9 Cedar Ave),Supplies and Services,304999,Equipment and Materials,05-May-2021,000007551098230,HOME BARGAINS,5251,Misc equipment tools and materials,6.79,0.00,6.79
Children and Young Peoples Services,Head of Childrens Social Care,085342,16 Hickstead Rise (previously 9 Cedar Ave),Supplies and Services,328041,Clothing uniforms and laundry E328,05-May-2021,000007551098232,POUNDLAND LTD 1554,5310,Clothing uniforms and laundry,10.00,0.00,10.00
Children and Young Peoples Services,Head of Childrens Social Care,085332,Middlestone Moor CU,Supplies and Services,304999,Equipment and Materials,05-May-2021,000007551098242,HOME BARGAINS SPENNYMO,5251,Misc equipment tools and materials,82.61,0.00,82.61
Children and Young Peoples Services,Head of Childrens Social Care,085332,Middlestone Moor CU,Supplies and Services,324117,Provisions E324,05-May-2021,000007551098248,ASDA SUPERSTORE 4987,5411,Catering costs - provisions,45.07,0.00,45.07
Children and Young Peoples Services,Head of Childrens Social Care,085332,Middlestone Moor CU,Supplies and Services,324117,Provisions E324,05-May-2021,000007551098254,LIDL GB SPENNYMOOR,5411,Catering costs - provisions,4.25,0.00,4.25
Children and Young Peoples Services,Head of Childrens Social Care,085341,High Etherley Satelite Home,Supplies and Services,324117,Provisions E324,05-May-2021,000007551098304,SAINSBURYS SACAT 2199,5411,Catering costs - provisions,37.57,0.00,37.57
"Regeneration, Economy and Growth",Development and Housing,030776,LINKCD Flexible Fund,Transport,235057,Public Transport,05-May-2021,000007551098410,GO NORTH EAST LIMITED,4131,Staff travelling,25.00,0.00,25.00
Children and Young Peoples Services,Head of Childrens Social Care,085352,New Childrens Home (previously Tow Law),Supplies and Services,304403,Equipment and Materials,05-May-2021,000007551098412,CEX,5065,Other consumables,220.00,0.00,220.00
Children and Young Peoples Services,Head of Childrens Social Care,085352,New Childrens Home (previously Tow Law),Supplies and Services,348037,Subsistence E348,05-May-2021,000007551098416,MCDONALDS 1555,5814,Subsistence,6.54,0.00,6.54
"Regeneration, Economy and Growth",Development and Housing,030544,Rural Employability - Client Engagement,Transport,235057,Public Transport,05-May-2021,000007551098448,GO NORTH EAST LIMITED,4131,Staff travelling,25.00,0.00,25.00
Children and Young Peoples Services,Head of Early Help Inclusion & Vulnerable Children.,085954,Walworth,Supplies and Services,384999,Miscellaneous Expenses,05-May-2021,000007551098524,NEXT DIRECTORY,5965,Other expenses,43.99,0.00,43.99
"Regeneration, Economy and Growth",Development and Housing,030772,CLLD South,Supplies and Services,304259,Equipment and Materials,05-May-2021,000007551098554,SECURITY INDUSTRY,7393,Equipment-purchase and rental,190.00,0.00,190.00
Children and Young Peoples Services,Head of Childrens Social Care,085362,LAC & Permanence Team 2,Supplies and Services,304403,Equipment and Materials,05-May-2021,000007551098564,WWW.DURHAM.GOV.UK,9399,Other consumables,22.00,0.00,22.00
"Regeneration, Economy and Growth",Culture Sport and Tourism,010664,Freemans Quay Leisure Centre,Supplies and Services,304403,Equipment and Materials,05-May-2021,000007551098648,AMZNMKTPLACE AMAZON.CO,5999,Other consumables,747.80,124.80,623.00
Children and Young Peoples Services,Head of Childrens Social Care,085342,16 Hickstead Rise (previously 9 Cedar Ave),Supplies and Services,384999,Miscellaneous Expenses,05-May-2021,000007551098654,ELEVENARCHES.ORG,7922,Other expenses,50.00,0.00,50.00
"Regeneration, Economy and Growth",Culture Sport and Tourism,054967,Theatre - Technical Staffing,Supplies and Services,304221,Equipment and Materials,05-May-2021,000007551098688,SCREWFIX DIRECT,5211,Direct materials,17.98,0.00,17.98
Children and Young Peoples Services,Head of Childrens Social Care,085332,Middlestone Moor CU,Supplies and Services,348037,Subsistence E348,05-May-2021,000007551098710,GREGGS PLC,5812,Subsistence,6.15,0.00,6.15
Children and Young Peoples Services,Head of Childrens Social Care,085332,Middlestone Moor CU,Supplies and Services,304259,Equipment and Materials,05-May-2021,000007551098714,J D SPORTS 634,5941,Equipment-purchase and rental,55.10,0.00,55.10
"Regeneration, Economy and Growth",Development and Housing,030771,Durham Advance Flexible Fund,Supplies and Services,324117,Provisions E324,05-May-2021,000007551098746,TESCO STORES 2916,5411,Catering costs - provisions,22.00,0.00,22.00
"Regeneration, Economy and Growth",Development and Housing,030771,Durham Advance Flexible Fund,Transport,215995,Running Costs of Vehicles,05-May-2021,000007551098752,TESCO PFS 4088,5541,Vehicle running expenses,7.00,0.00,7.00
Neighbourhoods and Climate Change,Environmental Services,010301,C&G - North Grounds Maintenance,Supplies and Services,304221,Equipment and Materials,05-May-2021,000007551098760,AZTEC CHEMICALS LTD,5169,Direct materials,377.71,62.95,314.76
Neighbourhoods and Climate Change,Environmental Services,010301,C&G - North Grounds Maintenance,Supplies and Services,304221,Equipment and Materials,05-May-2021,000007551098770,AZTEC CHEMICALS LTD,5169,Direct materials,460.22,76.70,383.52
Children and Young Peoples Services,Head of Childrens Social Care,071448,Newton Aycliffe One Point Hub,Supplies and Services,304403,Equipment and Materials,05-May-2021,000007551098790,AMZNMKTPLACE AMAZON.CO,5999,Other consumables,12.99,2.17,10.82
Children and Young Peoples Services,Head of Childrens Social Care,071448,Newton Aycliffe One Point Hub,Supplies and Services,304403,Equipment and Materials,05-May-2021,000007551098798,AMZNMktplace,5999,Other consumables,52.80,8.80,44.00
Children and Young Peoples Services,Head of Childrens Social Care,071448,Newton Aycliffe One Point Hub,Supplies and Services,304403,Equipment and Materials,05-May-2021,000007551098802,AMZNMktplace,5999,Other consumables,45.36,7.56,37.80
Children and Young Peoples Services,Head of Childrens Social Care,071448,Newton Aycliffe One Point Hub,Supplies and Services,304403,Equipment and Materials,05-May-2021,000007551098802 - 1,AMZNMktplace,5999,Other consumables,0.06,,0.06
Children and Young Peoples Services,Head of Childrens Social Care,071448,Newton Aycliffe One Point Hub,Supplies and Services,304403,Equipment and Materials,05-May-2021,000007551098808,AMZNMktplace,5999,Other consumables,51.76,8.64,43.12
Children and Young Peoples Services,Head of Early Help Inclusion & Vulnerable Children.,085954,Walworth,Transfer Payments,515002,Social Services Clients,05-May-2021,000007551098820,Mainline Menswear Ltd,5611,Pocket money,86.58,0.00,86.58
Children and Young Peoples Services,Head of Early Help Inclusion & Vulnerable Children.,085954,Walworth,Supplies and Services,384302,Miscellaneous Expenses,05-May-2021,000007551098824,AMZNMKTPLACE AMAZON.CO,5999,Activity expenses,16.99,2.83,14.16
Children and Young Peoples Services,Head of Early Help Inclusion & Vulnerable Children.,085957,Secure Management,Premises,108099,Service Repairs and Maintenance,05-May-2021,000007551098828,ADVANCEDSCAPE,5399,General repairs 108099,170.00,28.33,141.67
Children and Young Peoples Services,Head of Early Help Inclusion & Vulnerable Children.,085954,Walworth,Supplies and Services,384302,Miscellaneous Expenses,05-May-2021,000007551098834,Amazon.co.uk MK5SC91V4,5969,Activity expenses,5.94,0.99,4.95
Children and Young Peoples Services,Head of Early Help Inclusion & Vulnerable Children.,085954,Walworth,Supplies and Services,384302,Miscellaneous Expenses,05-May-2021,000007551098834 - 1,Amazon.co.uk MK5SC91V4,5969,Activity expenses,0.03,,0.03
Children and Young Peoples Services,Head of Early Help Inclusion & Vulnerable Children.,085954,Walworth,Supplies and Services,384302,Miscellaneous Expenses,05-May-2021,000007551098838,Amazon.co.uk MK7E991F4,5969,Activity expenses,150.00,25.02,124.98
Children and Young Peoples Services,Head of Early Help Inclusion & Vulnerable Children.,085956,Lumley,Supplies and Services,384302,Miscellaneous Expenses,05-May-2021,000007551098842,AMZNMktplace,5999,Activity expenses,11.65,1.95,9.70
Children and Young Peoples Services,Head of Early Help Inclusion & Vulnerable Children.,085956,Lumley,Supplies and Services,384302,Miscellaneous Expenses,05-May-2021,000007551098850,AMZNMktplace,5999,Activity expenses,4.98,0.83,4.15
Children and Young Peoples Services,Head of Early Help Inclusion & Vulnerable Children.,085957,Secure Management,Premises,108099,Service Repairs and Maintenance,05-May-2021,000007551098852,INDESIT COMPANY UK,5722,General repairs 108099,15.85,0.00,15.85
Children and Young Peoples Services,Head of Early Help Inclusion & Vulnerable Children.,085962,Aycliffe Secure - Durham,Supplies and Services,324117,Provisions E324,05-May-2021,000007551098856,TESCO STORES 6329,5411,Catering costs - provisions,69.08,0.00,69.08
Children and Young Peoples Services,Head of Early Help Inclusion & Vulnerable Children.,085957,Secure Management,Premises,108099,Service Repairs and Maintenance,05-May-2021,000007551098862,SCREWFIX DIRECT,5211,General repairs 108099,46.50,7.75,38.75
Children and Young Peoples Services,Head of Early Help Inclusion & Vulnerable Children.,088115,Young Parents Programme 088115,Supplies and Services,328041,Clothing uniforms and laundry E328,05-May-2021,000007551098868,ARGOS LTD,5310,Clothing uniforms and laundry,27.95,0.00,27.95
Children and Young Peoples Services,Head of Early Help Inclusion & Vulnerable Children.,088115,Young Parents Programme 088115,Supplies and Services,328041,Clothing uniforms and laundry E328,05-May-2021,000007551098874,ARGOS LTD,5310,Clothing uniforms and laundry,67.98,0.00,67.98
Children and Young Peoples Services,Head of Early Help Inclusion & Vulnerable Children.,088112,Seaham & Central Durham 0-19 Targeted Family Support,Supplies and Services,304259,Equipment and Materials,05-May-2021,000007551098878,Durham County CNCL,9399,Equipment-purchase and rental,16.00,0.00,16.00
Neighbourhoods and Climate Change,Environmental Services,010919,C&G - Countryside Site Management,Supplies and Services,304221,Equipment and Materials,05-May-2021,000007551098886,SCREWFIX DIRECT,5211,Direct materials,102.66,17.11,85.55
Neighbourhoods and Climate Change,Environmental Services,010919,C&G - Countryside Site Management,Supplies and Services,304221,Equipment and Materials,05-May-2021,000007551098886 - 1,SCREWFIX DIRECT,5211,Direct materials,0.18,,0.18
Children and Young Peoples Services,Head of Education and Skills,075021,DurhamWorks Progression and Learning,Supplies and Services,364301,Grants to Voluntary Organisations,05-May-2021,000007551098932,GO NORTH EAST LIMITED,4131,Hardship,68.00,0.00,68.00
Children and Young Peoples Services,Head of Education and Skills,075021,DurhamWorks Progression and Learning,Supplies and Services,364301,Grants to Voluntary Organisations,05-May-2021,000007551098940,SCREWFIX DIRECT,5211,Hardship,127.50,21.25,106.25
Children and Young Peoples Services,Head of Education and Skills,075021,DurhamWorks Progression and Learning,Supplies and Services,364301,Grants to Voluntary Organisations,05-May-2021,000007551098940 - 1,SCREWFIX DIRECT,5211,Hardship,74.61,,74.61
Resources BK0010,People & Talent Management,010984,Training and Development,Employees,040149,Recruitment Instruction and Training,05-May-2021,000007551098952,The Royal Life Saving,8299,Training-all costs,102.50,0.00,102.50
Children and Young Peoples Services,Head of Childrens Social Care,085331,New Lea Childrens Home,Supplies and Services,304403,Equipment and Materials,05-May-2021,000007551098976,AMZNMktplace,5999,Other consumables,33.98,0.00,33.98
Children and Young Peoples Services,Head of Childrens Social Care,085331,New Lea Childrens Home,Supplies and Services,348037,Subsistence E348,05-May-2021,000007551098984,SumUp Starbeck deli,5814,Subsistence,7.00,0.00,7.00
Children and Young Peoples Services,Head of Early Help Inclusion & Vulnerable Children.,088106,Ferryhill & N.Aycliffe 0-19 Targeted Family Support,Supplies and Services,304259,Equipment and Materials,05-May-2021,000007551099078,AMZNMktplace,5999,Equipment-purchase and rental,459.98,76.66,383.32
Children and Young Peoples Services,Head of Early Help Inclusion & Vulnerable Children.,088106,Ferryhill & N.Aycliffe 0-19 Targeted Family Support,Supplies and Services,364301,Grants to Voluntary Organisations,05-May-2021,000007551099084,RAWCLIFFES STOCKTON,5137,Hardship,83.97,0.00,83.97
Children and Young Peoples Services,Head of Early Help Inclusion & Vulnerable Children.,088109,Spennymoor & Shildon 0-19 Community Family Hub,Supplies and Services,304259,Equipment and Materials,05-May-2021,000007551099094,Amazon.co.uk MK1DR5PO4,5969,Equipment-purchase and rental,15.09,0.00,15.09
Children and Young Peoples Services,Head of Education and Skills,071802,Louisa Cent Nursery,Supplies and Services,304999,Equipment and Materials,05-May-2021,000007551099132,HOME BARGAINS,5251,Misc equipment tools and materials,39.22,0.00,39.22
Children and Young Peoples Services,Head of Childrens Social Care,085352,New Childrens Home (previously Tow Law),Supplies and Services,324117,Provisions E324,05-May-2021,000007551099172,SAINSBURYS 0776,5411,Catering costs - provisions,143.26,0.00,143.26
Neighbourhoods and Climate Change,Environmental Services,010367,C&G - South Grounds Maintenance,Supplies and Services,304221,Equipment and Materials,05-May-2021,000007551099204,SCREWFIX DIRECT,5211,Direct materials,11.99,0.00,11.99
Adult and Health Services,Head of Adults,055643,Hawthorn House LD Respite Unit,Supplies and Services,324117,Provisions E324,05-May-2021,000007551099212,JR HOLLAND FOODSERVICE,5499,Catering costs - provisions,8.01,0.00,8.01
Adult and Health Services,Head of Adults,055643,Hawthorn House LD Respite Unit,Supplies and Services,324117,Provisions E324,05-May-2021,000007551099218,JR HOLLAND FOODSERVICE,5499,Catering costs - provisions,4.88,0.00,4.88
Adult and Health Services,Head of Adults,055643,Hawthorn House LD Respite Unit,Supplies and Services,324117,Provisions E324,05-May-2021,000007551099222,JR HOLLAND FOODSERVICE,5499,Catering costs - provisions,5.28,0.00,5.28
Neighbourhoods and Climate Change,Environmental Services,031202,North Pennines - Peatscapes,Supplies and Services,332047,Printing Stationery and Gen Off Exps,05-May-2021,000007551099230,SAINSBURYS SACAT 2199,5411,Stationery,6.00,0.00,6.00
Children and Young Peoples Services,Head of Education and Skills,071903,Early Years Sustainability,Supplies and Services,304999,Equipment and Materials,05-May-2021,000007551099250,VIMEO.COM,5968,Misc equipment tools and materials,49.00,0.00,49.00
Children and Young Peoples Services,Head of Childrens Social Care,085334,West Rainton Satelite Home,Supplies and Services,324117,Provisions E324,05-May-2021,000007551099262,TESCO STORES 2371,5411,Catering costs - provisions,159.21,0.00,159.21
Children and Young Peoples Services,Head of Childrens Social Care,085334,West Rainton Satelite Home,Supplies and Services,304259,Equipment and Materials,05-May-2021,000007551099264,SPORTSDIRECT 264,5941,Equipment-purchase and rental,128.97,0.00,128.97
Neighbourhoods and Climate Change,Environmental Services,010301,C&G - North Grounds Maintenance,Supplies and Services,304999,Equipment and Materials,05-May-2021,000007551099270,GRALANDS WOODWORK SUPP,5251,Misc equipment tools and materials,90.35,0.00,90.35
Children and Young Peoples Services,Head of Early Help Inclusion & Vulnerable Children.,088115,Young Parents Programme 088115,Supplies and Services,384302,Miscellaneous Expenses,05-May-2021,000007551099278,WWW.SAFETYFIRSTAID.CO.,5085,Activity expenses,141.53,0.00,141.53
Children and Young Peoples Services,Head of Early Help Inclusion & Vulnerable Children.,088115,Young Parents Programme 088115,Supplies and Services,384302,Miscellaneous Expenses,05-May-2021,000007551099284,WILKO.COM,5399,Activity expenses,27.05,0.00,27.05
Children and Young Peoples Services,Head of Early Help Inclusion & Vulnerable Children.,088115,Young Parents Programme 088115,Supplies and Services,384302,Miscellaneous Expenses,05-May-2021,000007551099288,WILKO.COM,5399,Activity expenses,81.80,0.00,81.80
Children and Young Peoples Services,Head of Childrens Social Care,085363,LAC & Permanence Team 3,Supplies and Services,338045,Services,05-May-2021,000007551099290,Durham County CNCL,9399,Legal expenses 338045,44.00,0.00,44.00
Resources BK0010,Digital and Customer Services,065335,School Services - Implementations,Supplies and Services,304639,Equipment and Materials,05-May-2021,000007551099298,AMZNMktplace,5999,Technicians-supplies,22.97,3.83,19.14
Children and Young Peoples Services,Head of Early Help Inclusion & Vulnerable Children.,085957,Secure Management,Supplies and Services,384999,Miscellaneous Expenses,05-May-2021,000007551099314,AMZ Amazon.co.uk,5969,Other expenses,-99.00,-16.50,-82.50
Children and Young Peoples Services,Head of Early Help Inclusion & Vulnerable Children.,085957,Secure Management,Supplies and Services,384999,Miscellaneous Expenses,05-May-2021,000007551099318,AMZ Amazon.co.uk,5969,Other expenses,-198.00,-33.00,-165.00
Children and Young Peoples Services,Head of Early Help Inclusion & Vulnerable Children.,088115,Young Parents Programme 088115,Supplies and Services,384302,Miscellaneous Expenses,05-May-2021,000007551099362,Amazon.co.uk MK8692PT4,5969,Activity expenses,49.90,0.00,49.90
"Regeneration, Economy and Growth",Transport and Contracted Services,031701,Care Connect All Localities,Supplies and Services,304259,Equipment and Materials,05-May-2021,000007551099382,AMZNMktplace,5999,Equipment-purchase and rental,24.50,4.08,20.42
Children and Young Peoples Services,Head of Childrens Social Care,085342,16 Hickstead Rise (previously 9 Cedar Ave),Supplies and Services,324117,Provisions E324,05-May-2021,000007551099424,TESCO STORES 2916,5411,Catering costs - provisions,142.11,0.00,142.11
Resources BK0010,Procurement Sales & Business Services,069800,Corporate Procurement 069800,Supplies and Services,352001,Conference Expenses,05-May-2021,000007551099480,HAYMARKET MEDIA GROUP,7392,Conferencesseminars fees etc,142.80,0.00,142.80
Children and Young Peoples Services,Head of Childrens Social Care,085333,Coxhoe Satelite Home,Supplies and Services,324117,Provisions E324,05-May-2021,000007551099548,ASDA SUPERSTORE 4987,5411,Catering costs - provisions,100.76,0.00,100.76
"Regeneration, Economy and Growth",Development and Housing,031500,Housing Solutions - Core,Supplies and Services,352001,Conference Expenses,05-May-2021,000007551099596,TRAVELODGE,3615,Conferencesseminars fees etc,210.44,0.00,210.44
Adult and Health Services,Head of Adults,055309,Peterlee Pathways,Supplies and Services,328041,Clothing uniforms and laundry E328,05-May-2021,000007551099640,POUNDSTRETCHER 396,5331,Clothing uniforms and laundry,9.97,0.00,9.97
Children and Young Peoples Services,Head of Childrens Social Care,085551,Short Break Services-Park Hse Sher,Supplies and Services,304999,Equipment and Materials,05-May-2021,000007551099682,HOME BARGAINS PETERLEE,5251,Misc equipment tools and materials,14.99,0.00,14.99
Children and Young Peoples Services,Head of Childrens Social Care,085551,Short Break Services-Park Hse Sher,Supplies and Services,324117,Provisions E324,05-May-2021,000007551099686,ASDA STORES LTD,5411,Catering costs - provisions,7.75,0.00,7.75
"Regeneration, Economy and Growth",Development and Housing,030771,Durham Advance Flexible Fund,Supplies and Services,304259,Equipment and Materials,05-May-2021,000007551099758,CURRYS ONLINE,5732,Equipment-purchase and rental,29.99,5.00,24.99
"Regeneration, Economy and Growth",Culture Sport and Tourism,054798,dli Museum - WW1 Education Programme,Supplies and Services,304259,Equipment and Materials,05-May-2021,000007554376506,AMZNMKTPLACE AMAZON.CO,5999,Equipment-purchase and rental,15.99,2.67,13.32
Children and Young Peoples Services,Head of Childrens Social Care,085332,Middlestone Moor CU,Supplies and Services,328041,Clothing uniforms and laundry E328,05-May-2021,000007554376930,PRIMARK,5651,Clothing uniforms and laundry,20.00,0.00,20.00
Children and Young Peoples Services,Head of Early Help Inclusion & Vulnerable Children.,085965,Barnard,Supplies and Services,384302,Miscellaneous Expenses,05-May-2021,000007554376988,AMZNMKTPLACE AMAZON.CO,5999,Activity expenses,24.90,4.16,20.74
Children and Young Peoples Services,Head of Early Help Inclusion & Vulnerable Children.,088115,Young Parents Programme 088115,Supplies and Services,304403,Equipment and Materials,05-May-2021,000007554377014,AMZNMKTPLACE AMAZON.CO,5999,Other consumables,79.97,0.00,79.97
"Regeneration, Economy and Growth",Development and Housing,030554,International Relations 030554,Supplies and Services,348037,Subsistence E348,05-May-2021,000007554377162,RAVENSWORTH ARMS (LAME,5813,Subsistence,17.70,0.00,17.70
Resources BK0010,Digital and Customer Services,065335,School Services - Implementations,Supplies and Services,304639,Equipment and Materials,05-May-2021,000007554377434,ALIEXPRESS,5311,Technicians-supplies,26.30,0.00,26.30
Children and Young Peoples Services,Head of Early Help Inclusion & Vulnerable Children.,088111,Easington & Peterlee 0-19 Community Family Hub,Supplies and Services,384302,Miscellaneous Expenses,05-May-2021,000007554377554,AMZNMKTPLACE AMAZON.CO,5999,Activity expenses,47.96,8.00,39.96
Neighbourhoods and Climate Change,Environmental Services,010301,C&G - North Grounds Maintenance,Supplies and Services,304221,Equipment and Materials,05-May-2021,000009505321635,GREENHAM TRADING LTD,5085,Direct materials,115.70,19.28,96.42
Children and Young Peoples Services,Head of Early Help Inclusion & Vulnerable Children.,085954,Walworth,Supplies and Services,384999,Miscellaneous Expenses,05-May-2021,000009527469909,NEXT DIRECTORY,5965,Other expenses,-43.99,0.00,-43.99
"Regeneration, Economy and Growth",Business Durham CL0850,030689,Inward Investment and Aftercare,Supplies and Services,342033,Computers and Communications,06-May-2021,000007551098022,AdRoll_EMEA,7372,Computer hardware,109.11,0.00,109.11
"Regeneration, Economy and Growth",Business Durham CL0850,030689,Inward Investment and Aftercare,Supplies and Services,342033,Computers and Communications,06-May-2021,000007551098030,AdRoll_EMEA,7372,Computer hardware,3.00,0.00,3.00
"Regeneration, Economy and Growth",Business Durham CL0850,030689,Inward Investment and Aftercare,Supplies and Services,336005,Advertising E336,06-May-2021,000007554376400,LINKEDIN IRELAND,7311,Advertising other than for staff,85.50,0.00,85.50
"Regeneration, Economy and Growth",Business Durham CL0850,030689,Inward Investment and Aftercare,Supplies and Services,342033,Computers and Communications,06-May-2021,000007554376404,STK Shutterstock,7333,Computer hardware,19.00,0.00,19.00
"Regeneration, Economy and Growth",Business Durham CL0850,030689,Inward Investment and Aftercare,Supplies and Services,336005,Advertising E336,06-May-2021,000007554376408,LINKEDIN-659 3348104,7311,Advertising other than for staff,96.41,0.00,96.41
Resources BK0010,Digital and Customer Services,065481,Technical Services 065481,Supplies and Services,304403,Equipment and Materials,06-May-2021,000007554376426,AMZNMktplace,5999,Other consumables,52.76,8.80,43.96
"Regeneration, Economy and Growth",Development and Housing,031576,B& B - Temp Accom,Supplies and Services,352001,Conference Expenses,06-May-2021,000007554376468,TOAST LETTINGS,7011,Conferencesseminars fees etc,455.00,0.00,455.00
Children and Young Peoples Services,Head of Childrens Social Care,085357,LAC Bespoke Placements,Supplies and Services,304999,Equipment and Materials,06-May-2021,000007554376482,YPS BIRTLEYS HIDDEN GE,6513,Misc equipment tools and materials,995.00,0.00,995.00
Children and Young Peoples Services,Head of Childrens Social Care,085357,LAC Bespoke Placements,Transport,235057,Public Transport,06-May-2021,000007554376488,HOLIDAY PAYMENT AVR,4722,Staff travelling,"1,098.00",0.00,1098.00
"Regeneration, Economy and Growth",Culture Sport and Tourism,054798,dli Museum - WW1 Education Programme,Supplies and Services,304259,Equipment and Materials,06-May-2021,000007554376512,WWW.TTS-GROUPS.CO.UK,5943,Equipment-purchase and rental,38.28,0.00,38.28
"Regeneration, Economy and Growth",Culture Sport and Tourism,054798,dli Museum - WW1 Education Programme,Supplies and Services,304259,Equipment and Materials,06-May-2021,000007554376518,AMZNMktplace,5999,Equipment-purchase and rental,39.90,6.65,33.25
"Regeneration, Economy and Growth",Culture Sport and Tourism,054798,dli Museum - WW1 Education Programme,Supplies and Services,304259,Equipment and Materials,06-May-2021,000007554376518 - 1,AMZNMktplace,5999,Equipment-purchase and rental,0.05,,0.05
"Regeneration, Economy and Growth",Culture Sport and Tourism,054233,Bishop Auckland Town Hall Library,Supplies and Services,304259,Equipment and Materials,06-May-2021,000007554376522,ST JOHN AMBULANCE,8398,Equipment-purchase and rental,66.00,0.00,66.00
Children and Young Peoples Services,Head of Childrens Social Care,085332,Middlestone Moor CU,Supplies and Services,324117,Provisions E324,06-May-2021,000007554376536,WILKO RETAIL LIMITED,5399,Catering costs - provisions,3.50,0.00,3.50
"Regeneration, Economy and Growth",Development and Housing,030770,Durham Advance,Transport,235057,Public Transport,06-May-2021,000007554376664,GO NORTH EAST LIMITED,4131,Staff travelling,3.50,0.00,3.50
Neighbourhoods and Climate Change,Environmental Services,010367,C&G - South Grounds Maintenance,Supplies and Services,304999,Equipment and Materials,06-May-2021,000007554376742,Snowballs,5251,Misc equipment tools and materials,4.13,0.00,4.13
Children and Young Peoples Services,Head of Early Help Inclusion & Vulnerable Children.,085956,Lumley,Supplies and Services,328041,Clothing uniforms and laundry E328,06-May-2021,000007554376774,SPORTSDIRECT.COM,5691,Clothing uniforms and laundry,4.98,0.83,4.15
Children and Young Peoples Services,Head of Early Help Inclusion & Vulnerable Children.,085956,Lumley,Supplies and Services,328041,Clothing uniforms and laundry E328,06-May-2021,000007554376774 - 1,SPORTSDIRECT.COM,5691,Clothing uniforms and laundry,28.00,,28.00
Children and Young Peoples Services,Head of Early Help Inclusion & Vulnerable Children.,085952,Secure Education,Supplies and Services,384999,Miscellaneous Expenses,06-May-2021,000007554376780,Amazon.co.uk MK4OR7G54,5969,Other expenses,14.98,2.50,12.48
Children and Young Peoples Services,Head of Early Help Inclusion & Vulnerable Children.,085954,Walworth,Supplies and Services,304403,Equipment and Materials,06-May-2021,000007554376784,AMZNMktplace,5999,Other consumables,17.98,3.00,14.98
Children and Young Peoples Services,Head of Early Help Inclusion & Vulnerable Children.,085956,Lumley,Supplies and Services,324117,Provisions E324,06-May-2021,000007554376788,WILKO.COM,5399,Catering costs - provisions,36.38,6.06,30.32
Children and Young Peoples Services,Head of Early Help Inclusion & Vulnerable Children.,085956,Lumley,Supplies and Services,304999,Equipment and Materials,06-May-2021,000007554376794,SUPERDRUG STORES PLC,5912,Misc equipment tools and materials,23.17,0.00,23.17
Children and Young Peoples Services,Head of Early Help Inclusion & Vulnerable Children.,073998,TTF-Co-ordinator Grant,Transfer Payments,525033,Other,06-May-2021,000007554376812,J DODDS CARPETS LTD,5713,Grants to individuals,250.00,0.00,250.00
Children and Young Peoples Services,Head of Education and Skills,071732,Dean Bank Childcare,Supplies and Services,324117,Provisions E324,06-May-2021,000007554376880,B&M 035 - SHILDON,5399,Catering costs - provisions,25.94,0.00,25.94
Children and Young Peoples Services,Head of Childrens Social Care,085334,West Rainton Satelite Home,Supplies and Services,324117,Provisions E324,06-May-2021,000007554376920,TESCO STORES 2371,5411,Catering costs - provisions,10.00,0.00,10.00
Children and Young Peoples Services,Head of Early Help Inclusion & Vulnerable Children.,085962,Aycliffe Secure - Durham,Supplies and Services,304403,Equipment and Materials,06-May-2021,000007554376938,AMZNMktplace,5999,Other consumables,77.95,0.00,77.95
"Regeneration, Economy and Growth",Development and Housing,031576,B& B - Temp Accom,Supplies and Services,364320,Grants to Voluntary Organisations,06-May-2021,000007554376964,AYCLIFFE BIZ,7011,Accommodation assistance,266.00,0.00,266.00
"Regeneration, Economy and Growth",Development and Housing,031576,B& B - Temp Accom,Supplies and Services,364320,Grants to Voluntary Organisations,06-May-2021,000007554376966,AYCLIFFE BIZ,7011,Accommodation assistance,380.00,0.00,380.00
"Regeneration, Economy and Growth",Development and Housing,031576,B& B - Temp Accom,Supplies and Services,364320,Grants to Voluntary Organisations,06-May-2021,000007554376972,AYCLIFFE BIZ,7011,Accommodation assistance,266.00,0.00,266.00
"Regeneration, Economy and Growth",Development and Housing,031576,B& B - Temp Accom,Supplies and Services,364320,Grants to Voluntary Organisations,06-May-2021,000007554376976,AYCLIFFE BIZ,7011,Accommodation assistance,266.00,0.00,266.00
Adult and Health Services,Head of Adults,055302,Durham Pathways,Supplies and Services,324117,Provisions E324,06-May-2021,000007554376980,ASDA SUPERSTORE 4987,5411,Catering costs - provisions,13.08,0.00,13.08
Children and Young Peoples Services,Head of Early Help Inclusion & Vulnerable Children.,085956,Lumley,Supplies and Services,384302,Miscellaneous Expenses,06-May-2021,000007554376994,AMZNMktplace,5999,Activity expenses,88.44,14.74,73.70
Children and Young Peoples Services,Head of Early Help Inclusion & Vulnerable Children.,085956,Lumley,Supplies and Services,384302,Miscellaneous Expenses,06-May-2021,000007554376994 - 1,AMZNMktplace,5999,Activity expenses,9.88,,9.88
Children and Young Peoples Services,Head of Early Help Inclusion & Vulnerable Children.,088115,Young Parents Programme 088115,Supplies and Services,304403,Equipment and Materials,06-May-2021,000007554377016,AMZNMktplace,5999,Other consumables,116.91,0.00,116.91
Neighbourhoods and Climate Change,Environmental Services,010919,C&G - Countryside Site Management,Supplies and Services,304221,Equipment and Materials,06-May-2021,000007554377022,SCREWFIX DIRECT,5211,Direct materials,19.98,3.33,16.65
Neighbourhoods and Climate Change,Environmental Services,011060,C&G - Hardwick Park Catering,Supplies and Services,324117,Provisions E324,06-May-2021,000007554377032,JR HOLLAND FOODSERVICE,5499,Catering costs - provisions,76.77,0.00,76.77
Children and Young Peoples Services,Head of Education and Skills,075021,DurhamWorks Progression and Learning,Supplies and Services,364301,Grants to Voluntary Organisations,06-May-2021,000007554377038,MATALAN.CO.UK,5691,Hardship,31.95,0.00,31.95
Children and Young Peoples Services,Head of Education and Skills,075021,DurhamWorks Progression and Learning,Supplies and Services,364301,Grants to Voluntary Organisations,06-May-2021,000007554377042,GO NORTH EAST LIMITED,4131,Hardship,4.50,0.00,4.50
Children and Young Peoples Services,Head of Education and Skills,075021,DurhamWorks Progression and Learning,Supplies and Services,364301,Grants to Voluntary Organisations,06-May-2021,000007554377044,GO NORTH EAST LIMITED,4131,Hardship,4.50,0.00,4.50
Children and Young Peoples Services,Head of Education and Skills,075021,DurhamWorks Progression and Learning,Supplies and Services,364301,Grants to Voluntary Organisations,06-May-2021,000007554377048,GO NORTH EAST LIMITED,4131,Hardship,4.50,0.00,4.50
Children and Young Peoples Services,Head of Education and Skills,075021,DurhamWorks Progression and Learning,Supplies and Services,364301,Grants to Voluntary Organisations,06-May-2021,000007554377052,GO NORTH EAST LIMITED,4131,Hardship,4.50,0.00,4.50
Children and Young Peoples Services,Head of Education and Skills,075021,DurhamWorks Progression and Learning,Supplies and Services,364301,Grants to Voluntary Organisations,06-May-2021,000007554377058,GO NORTH EAST LIMITED,4131,Hardship,4.50,0.00,4.50
Children and Young Peoples Services,Head of Education and Skills,075021,DurhamWorks Progression and Learning,Supplies and Services,364301,Grants to Voluntary Organisations,06-May-2021,000007554377060,GO NORTH EAST LIMITED,4131,Hardship,4.50,0.00,4.50
Children and Young Peoples Services,Head of Education and Skills,075021,DurhamWorks Progression and Learning,Supplies and Services,364301,Grants to Voluntary Organisations,06-May-2021,000007554377066,GO NORTH EAST LIMITED,4131,Hardship,4.50,0.00,4.50
Children and Young Peoples Services,Head of Education and Skills,075021,DurhamWorks Progression and Learning,Supplies and Services,364301,Grants to Voluntary Organisations,06-May-2021,000007554377070,GO NORTH EAST LIMITED,4131,Hardship,4.50,0.00,4.50
Children and Young Peoples Services,Head of Education and Skills,075021,DurhamWorks Progression and Learning,Supplies and Services,364301,Grants to Voluntary Organisations,06-May-2021,000007554377072,GO NORTH EAST LIMITED,4131,Hardship,4.50,0.00,4.50
"Regeneration, Economy and Growth",Development and Housing,031500,Housing Solutions - Core,Supplies and Services,352001,Conference Expenses,06-May-2021,000007554377102,HI NEWCASTLE WASHI,7011,Conferencesseminars fees etc,160.00,0.00,160.00
Children and Young Peoples Services,Head of Early Help Inclusion & Vulnerable Children.,088106,Ferryhill & N.Aycliffe 0-19 Targeted Family Support,Supplies and Services,304259,Equipment and Materials,06-May-2021,000007554377170,AMZNMktplace,5999,Equipment-purchase and rental,229.99,38.33,191.66
Children and Young Peoples Services,Head of Childrens Social Care,085341,High Etherley Satelite Home,Supplies and Services,324117,Provisions E324,06-May-2021,000007554377188,TESCO STORES 2371,5411,Catering costs - provisions,46.09,0.00,46.09
Neighbourhoods and Climate Change,Environmental Services,010367,C&G - South Grounds Maintenance,Supplies and Services,304221,Equipment and Materials,06-May-2021,000007554377206,CARRS BILLINGTON SPENN,5599,Direct materials,173.09,0.00,173.09
Adult and Health Services,Head of Adults,055643,Hawthorn House LD Respite Unit,Supplies and Services,304403,Equipment and Materials,06-May-2021,000007554377246,AMZNMktplace,5999,Other consumables,16.39,2.73,13.66
Adult and Health Services,Head of Adults,055643,Hawthorn House LD Respite Unit,Supplies and Services,324117,Provisions E324,06-May-2021,000007554377250,SAINSBURYS SACAT 0776,5411,Catering costs - provisions,11.29,0.00,11.29
Children and Young Peoples Services,Head of Childrens Social Care,085334,West Rainton Satelite Home,Supplies and Services,308011,Furniture,06-May-2021,000007554377330,DUNELM LTD,5714,Furniture repair and replacement,76.00,0.00,76.00
Children and Young Peoples Services,Head of Education and Skills,078100,Curric and Professional Development 078100,Supplies and Services,304403,Equipment and Materials,06-May-2021,000007554377338,ADOBE STOCK,5734,Other consumables,23.99,0.00,23.99
Children and Young Peoples Services,Head of Childrens Social Care,085334,West Rainton Satelite Home,Supplies and Services,324117,Provisions E324,06-May-2021,000007554377346,TESCO STORES 2371,5411,Catering costs - provisions,34.00,0.00,34.00
Children and Young Peoples Services,Head of Childrens Social Care,085334,West Rainton Satelite Home,Supplies and Services,324117,Provisions E324,06-May-2021,000007554377350,TESCO STORES 2371,5411,Catering costs - provisions,18.50,0.00,18.50
Children and Young Peoples Services,Head of Early Help Inclusion & Vulnerable Children.,088103,Consett & Stanley 0-19 Community Family Hub,Supplies and Services,340001,Postages E340,06-May-2021,000007554377358,POST OFFICE COUNTER,9402,Postages,26.29,0.00,26.29
Children and Young Peoples Services,Head of Early Help Inclusion & Vulnerable Children.,088115,Young Parents Programme 088115,Supplies and Services,384302,Miscellaneous Expenses,06-May-2021,000007554377362,AMZNMKTPLACE AMAZON.CO,5999,Activity expenses,27.72,4.62,23.10
Children and Young Peoples Services,Head of Early Help Inclusion & Vulnerable Children.,088102,Consett & Stanley 0-19 Targeted Family Support,Supplies and Services,384302,Miscellaneous Expenses,06-May-2021,000007554377362 - 1,AMZNMKTPLACE AMAZON.CO,5999,Activity expenses,0.14,,0.14
Children and Young Peoples Services,Head of Early Help Inclusion & Vulnerable Children.,088115,Young Parents Programme 088115,Supplies and Services,384302,Miscellaneous Expenses,06-May-2021,000007554377366,AMZNMKTPLACE AMAZON.CO,5999,Activity expenses,27.72,4.62,23.10
Children and Young Peoples Services,Head of Early Help Inclusion & Vulnerable Children.,088115,Young Parents Programme 088115,Supplies and Services,384302,Miscellaneous Expenses,06-May-2021,000007554377366 - 1,AMZNMKTPLACE AMAZON.CO,5999,Activity expenses,0.14,,0.14
Children and Young Peoples Services,Head of Early Help Inclusion & Vulnerable Children.,088115,Young Parents Programme 088115,Supplies and Services,384302,Miscellaneous Expenses,06-May-2021,000007554377368,AMZNMKTPLACE AMAZON.CO,5999,Activity expenses,7.92,1.32,6.60
Children and Young Peoples Services,Head of Early Help Inclusion & Vulnerable Children.,088115,Young Parents Programme 088115,Supplies and Services,384302,Miscellaneous Expenses,06-May-2021,000007554377368 - 1,AMZNMKTPLACE AMAZON.CO,5999,Activity expenses,0.04,,0.04
Children and Young Peoples Services,Head of Early Help Inclusion & Vulnerable Children.,088115,Young Parents Programme 088115,Supplies and Services,384302,Miscellaneous Expenses,06-May-2021,000007554377370,AMZNMKTPLACE AMAZON.CO,5999,Activity expenses,79.92,13.32,66.60
Children and Young Peoples Services,Head of Early Help Inclusion & Vulnerable Children.,088115,Young Parents Programme 088115,Supplies and Services,384302,Miscellaneous Expenses,06-May-2021,000007554377370 - 1,AMZNMKTPLACE AMAZON.CO,5999,Activity expenses,0.04,,0.04
Children and Young Peoples Services,Head of Early Help Inclusion & Vulnerable Children.,088115,Young Parents Programme 088115,Supplies and Services,384302,Miscellaneous Expenses,06-May-2021,000007554377372,Amazon.co.uk MK0G89GT4,5969,Activity expenses,71.68,0.00,71.68
Children and Young Peoples Services,Head of Early Help Inclusion & Vulnerable Children.,088102,Consett & Stanley 0-19 Targeted Family Support,Supplies and Services,384302,Miscellaneous Expenses,06-May-2021,000007554377376,AMZNMktplace,5999,Activity expenses,89.90,15.00,74.90
Children and Young Peoples Services,Head of Early Help Inclusion & Vulnerable Children.,088115,Young Parents Programme 088115,Supplies and Services,384302,Miscellaneous Expenses,06-May-2021,000007554377378,AMZNMktplace,5999,Activity expenses,33.98,5.66,28.32
Children and Young Peoples Services,Head of Early Help Inclusion & Vulnerable Children.,088115,Young Parents Programme 088115,Supplies and Services,384302,Miscellaneous Expenses,06-May-2021,000007554377380,AMZNMktplace,5999,Activity expenses,199.80,33.30,166.50
Children and Young Peoples Services,Head of Early Help Inclusion & Vulnerable Children.,088115,Young Parents Programme 088115,Supplies and Services,384302,Miscellaneous Expenses,06-May-2021,000007554377380 - 1,AMZNMktplace,5999,Activity expenses,0.10,,0.10
Children and Young Peoples Services,Head of Early Help Inclusion & Vulnerable Children.,088102,Consett & Stanley 0-19 Targeted Family Support,Supplies and Services,384302,Miscellaneous Expenses,06-May-2021,000007554377384,AMZNMktplace,5999,Activity expenses,65.88,10.98,54.90
Children and Young Peoples Services,Head of Early Help Inclusion & Vulnerable Children.,088102,Consett & Stanley 0-19 Targeted Family Support,Supplies and Services,384302,Miscellaneous Expenses,06-May-2021,000007554377384 - 1,AMZNMktplace,5999,Activity expenses,0.06,,0.06
Children and Young Peoples Services,Head of Early Help Inclusion & Vulnerable Children.,088102,Consett & Stanley 0-19 Targeted Family Support,Supplies and Services,384302,Miscellaneous Expenses,06-May-2021,000007554377386,AMZNMktplace,5999,Activity expenses,10.99,1.83,9.16
Children and Young Peoples Services,Head of Early Help Inclusion & Vulnerable Children.,088102,Consett & Stanley 0-19 Targeted Family Support,Supplies and Services,384302,Miscellaneous Expenses,06-May-2021,000007554377388,AMZNMktplace,5999,Activity expenses,70.56,11.76,58.80
Children and Young Peoples Services,Head of Early Help Inclusion & Vulnerable Children.,088102,Consett & Stanley 0-19 Targeted Family Support,Supplies and Services,384302,Miscellaneous Expenses,06-May-2021,000007554377388 - 1,AMZNMktplace,5999,Activity expenses,0.07,,0.07
Children and Young Peoples Services,Head of Early Help Inclusion & Vulnerable Children.,088102,Consett & Stanley 0-19 Targeted Family Support,Supplies and Services,384302,Miscellaneous Expenses,06-May-2021,000007554377392,AMZNMktplace,5999,Activity expenses,30.24,5.04,25.20
Children and Young Peoples Services,Head of Early Help Inclusion & Vulnerable Children.,088102,Consett & Stanley 0-19 Targeted Family Support,Supplies and Services,384302,Miscellaneous Expenses,06-May-2021,000007554377392 - 1,AMZNMktplace,5999,Activity expenses,0.03,,0.03
Children and Young Peoples Services,Head of Childrens Social Care,085363,LAC & Permanence Team 3,Supplies and Services,338045,Services,06-May-2021,000007554377396,HARTLEPOOL BC,9399,Legal expenses 338045,11.00,0.00,11.00
Children and Young Peoples Services,Head of Childrens Social Care,085363,LAC & Permanence Team 3,Supplies and Services,338045,Services,06-May-2021,000007554377402,HARTLEPOOL BC,9399,Legal expenses 338045,11.00,0.00,11.00
Children and Young Peoples Services,Head of Early Help Inclusion & Vulnerable Children.,088102,Consett & Stanley 0-19 Targeted Family Support,Supplies and Services,384302,Miscellaneous Expenses,06-May-2021,000007554377406,AMZNMktplace,5999,Activity expenses,13.99,2.33,11.66
Children and Young Peoples Services,Head of Early Help Inclusion & Vulnerable Children.,088102,Consett & Stanley 0-19 Targeted Family Support,Supplies and Services,384302,Miscellaneous Expenses,06-May-2021,000007554377408,AMZNMktplace,5999,Activity expenses,30.24,5.04,25.20
Children and Young Peoples Services,Head of Early Help Inclusion & Vulnerable Children.,088115,Young Parents Programme 088115,Supplies and Services,384302,Miscellaneous Expenses,06-May-2021,000007554377408 - 1,AMZNMktplace,5999,Activity expenses,0.03,,0.03
Children and Young Peoples Services,Head of Early Help Inclusion & Vulnerable Children.,088102,Consett & Stanley 0-19 Targeted Family Support,Supplies and Services,384302,Miscellaneous Expenses,06-May-2021,000007554377412,AMZNMktplace,5999,Activity expenses,13.99,2.33,11.66
Children and Young Peoples Services,Head of Early Help Inclusion & Vulnerable Children.,088102,Consett & Stanley 0-19 Targeted Family Support,Supplies and Services,384302,Miscellaneous Expenses,06-May-2021,000007554377414,AMZNMktplace,5999,Activity expenses,103.93,17.32,86.61
Resources BK0010,Digital and Customer Services,065335,School Services - Implementations,Supplies and Services,304639,Equipment and Materials,06-May-2021,000007554377432,SP IFIXIT STORE UK,5732,Technicians-supplies,27.83,0.00,27.83
Resources BK0010,Digital and Customer Services,065335,School Services - Implementations,Supplies and Services,304639,Equipment and Materials,06-May-2021,000007554377440,REPLACEBASE,5732,Technicians-supplies,32.46,0.00,32.46
Resources BK0010,Digital and Customer Services,065335,School Services - Implementations,Supplies and Services,304639,Equipment and Materials,06-May-2021,000007554377444,AMZNMktplace,5999,Technicians-supplies,50.69,8.46,42.23
Resources BK0010,Digital and Customer Services,065323,Operations - Installations,Supplies and Services,304639,Equipment and Materials,06-May-2021,000007554377450,RJHFINISHING.CO.UK,5251,Technicians-supplies,84.83,0.00,84.83
Children and Young Peoples Services,Head of Early Help Inclusion & Vulnerable Children.,085957,Secure Management,Supplies and Services,304999,Equipment and Materials,06-May-2021,000007554377504,WORKSHOP SUPPLIES NORT,5072,Misc equipment tools and materials,97.33,16.22,81.11
Children and Young Peoples Services,Head of Early Help Inclusion & Vulnerable Children.,088111,Easington & Peterlee 0-19 Community Family Hub,Supplies and Services,384302,Miscellaneous Expenses,06-May-2021,000007554377546,AMZNMktplace,5999,Activity expenses,7.43,1.24,6.19
Children and Young Peoples Services,Head of Early Help Inclusion & Vulnerable Children.,088111,Easington & Peterlee 0-19 Community Family Hub,Supplies and Services,384302,Miscellaneous Expenses,06-May-2021,000007554377562,AMZNMktplace,5999,Activity expenses,3.99,0.67,3.32
Children and Young Peoples Services,Head of Early Help Inclusion & Vulnerable Children.,088111,Easington & Peterlee 0-19 Community Family Hub,Supplies and Services,384302,Miscellaneous Expenses,06-May-2021,000007554377568,AMZNMktplace,5999,Activity expenses,23.99,4.00,19.99
Children and Young Peoples Services,Head of Early Help Inclusion & Vulnerable Children.,088111,Easington & Peterlee 0-19 Community Family Hub,Supplies and Services,384302,Miscellaneous Expenses,06-May-2021,000007554377574,AMZNMktplace,5999,Activity expenses,36.95,6.16,30.79
Children and Young Peoples Services,Head of Early Help Inclusion & Vulnerable Children.,088111,Easington & Peterlee 0-19 Community Family Hub,Supplies and Services,384302,Miscellaneous Expenses,06-May-2021,000007554377578,AMZNMktplace,5999,Activity expenses,29.97,5.01,24.96
Children and Young Peoples Services,Head of Early Help Inclusion & Vulnerable Children.,088111,Easington & Peterlee 0-19 Community Family Hub,Supplies and Services,384302,Miscellaneous Expenses,06-May-2021,000007554377580,AMZNMktplace,5999,Activity expenses,26.96,4.49,22.47
Children and Young Peoples Services,Head of Early Help Inclusion & Vulnerable Children.,088111,Easington & Peterlee 0-19 Community Family Hub,Supplies and Services,384302,Miscellaneous Expenses,06-May-2021,000007554377586,AMZNMktplace,5999,Activity expenses,13.98,2.34,11.64
Children and Young Peoples Services,Head of Early Help Inclusion & Vulnerable Children.,088111,Easington & Peterlee 0-19 Community Family Hub,Supplies and Services,384302,Miscellaneous Expenses,06-May-2021,000007554377592,AMZNMktplace,5999,Activity expenses,35.64,5.94,29.70
Children and Young Peoples Services,Head of Early Help Inclusion & Vulnerable Children.,088111,Easington & Peterlee 0-19 Community Family Hub,Supplies and Services,384302,Miscellaneous Expenses,06-May-2021,000007554377592 - 1,AMZNMktplace,5999,Activity expenses,32.90,,32.90
Children and Young Peoples Services,Head of Early Help Inclusion & Vulnerable Children.,088111,Easington & Peterlee 0-19 Community Family Hub,Supplies and Services,384302,Miscellaneous Expenses,06-May-2021,000007554377596,AMZNMktplace,5999,Activity expenses,29.97,5.01,24.96
Children and Young Peoples Services,Head of Early Help Inclusion & Vulnerable Children.,088115,Young Parents Programme 088115,Supplies and Services,384302,Miscellaneous Expenses,06-May-2021,000007554377602,FIRSTAID4LESS.CO.UK,5999,Activity expenses,114.48,19.08,95.40
Children and Young Peoples Services,Head of Early Help Inclusion & Vulnerable Children.,088115,Young Parents Programme 088115,Supplies and Services,384302,Miscellaneous Expenses,06-May-2021,000007554377606,WILKO.COM,5399,Activity expenses,112.50,0.00,112.50
Children and Young Peoples Services,Head of Early Help Inclusion & Vulnerable Children.,088111,Easington & Peterlee 0-19 Community Family Hub,Supplies and Services,384302,Miscellaneous Expenses,06-May-2021,000007554377610,ASDA GROCERIES ONLINE,5411,Activity expenses,93.32,0.00,93.32
Children and Young Peoples Services,Head of Early Help Inclusion & Vulnerable Children.,088111,Easington & Peterlee 0-19 Community Family Hub,Supplies and Services,384302,Miscellaneous Expenses,06-May-2021,000007554377616,AMZNMktplace,5999,Activity expenses,39.90,6.70,33.20
Children and Young Peoples Services,Head of Early Help Inclusion & Vulnerable Children.,088111,Easington & Peterlee 0-19 Community Family Hub,Supplies and Services,384302,Miscellaneous Expenses,06-May-2021,000007554377620,AMZNMktplace,5999,Activity expenses,10.62,1.77,8.85
Children and Young Peoples Services,Head of Early Help Inclusion & Vulnerable Children.,088111,Easington & Peterlee 0-19 Community Family Hub,Supplies and Services,384302,Miscellaneous Expenses,06-May-2021,000007554377624,AMZNMktplace,5999,Activity expenses,90.88,15.16,75.72
Children and Young Peoples Services,Head of Early Help Inclusion & Vulnerable Children.,088111,Easington & Peterlee 0-19 Community Family Hub,Supplies and Services,384302,Miscellaneous Expenses,06-May-2021,000007554377630,AMZNMktplace,5999,Activity expenses,20.09,3.36,16.73
Children and Young Peoples Services,Head of Early Help Inclusion & Vulnerable Children.,088111,Easington & Peterlee 0-19 Community Family Hub,Supplies and Services,384302,Miscellaneous Expenses,06-May-2021,000007554377638,AMZNMktplace,5999,Activity expenses,13.08,2.18,10.90
Children and Young Peoples Services,Head of Early Help Inclusion & Vulnerable Children.,088111,Easington & Peterlee 0-19 Community Family Hub,Supplies and Services,384302,Miscellaneous Expenses,06-May-2021,000007554377642,ASDA GROCERIES ONLINE,5411,Activity expenses,-0.48,0.00,-0.48
"Regeneration, Economy and Growth",Development and Housing,031576,B& B - Temp Accom,Supplies and Services,364320,Grants to Voluntary Organisations,06-May-2021,000007554377672,HI NEWCASTLE WASHI,7011,Accommodation assistance,500.00,0.00,500.00
"Regeneration, Economy and Growth",Development and Housing,031576,B& B - Temp Accom,Supplies and Services,364320,Grants to Voluntary Organisations,06-May-2021,000007554377678,HI NEWCASTLE WASHI,7011,Accommodation assistance,270.00,0.00,270.00
"Regeneration, Economy and Growth",Development and Housing,031576,B& B - Temp Accom,Supplies and Services,364320,Grants to Voluntary Organisations,06-May-2021,000007554377682,HI NEWCASTLE WASHI,7011,Accommodation assistance,150.00,0.00,150.00
"Regeneration, Economy and Growth",Development and Housing,031576,B& B - Temp Accom,Supplies and Services,364320,Grants to Voluntary Organisations,06-May-2021,000007554377688,HI NEWCASTLE WASHI,7011,Accommodation assistance,500.00,0.00,500.00
"Regeneration, Economy and Growth",Development and Housing,031576,B& B - Temp Accom,Supplies and Services,364320,Grants to Voluntary Organisations,06-May-2021,000007554377690,HI NEWCASTLE WASHI,7011,Accommodation assistance,140.00,0.00,140.00
"Regeneration, Economy and Growth",Development and Housing,031576,B& B - Temp Accom,Supplies and Services,364320,Grants to Voluntary Organisations,06-May-2021,000007554377694,HI NEWCASTLE WASHI,7011,Accommodation assistance,-160.00,0.00,-160.00
Children and Young Peoples Services,Head of Early Help Inclusion & Vulnerable Children.,085801,CDYJS - Support,Supplies and Services,324117,Provisions E324,06-May-2021,000007554377706,GREGGS,5462,Catering costs - provisions,50.00,0.00,50.00
Children and Young Peoples Services,Head of Early Help Inclusion & Vulnerable Children.,085801,CDYJS - Support,Supplies and Services,324117,Provisions E324,06-May-2021,000007554377710,GREGGS,5462,Catering costs - provisions,50.00,0.00,50.00
Children and Young Peoples Services,Head of Childrens Social Care,085351,Framwellgate Moor CU,Supplies and Services,328041,Clothing uniforms and laundry E328,06-May-2021,000007554377716,FOOTASYLUM PLC,5691,Clothing uniforms and laundry,119.99,0.00,119.99
Children and Young Peoples Services,Head of Childrens Social Care,085351,Framwellgate Moor CU,Supplies and Services,384237,Miscellaneous Expenses,06-May-2021,000007554377718,WWW.ZSL.ORG-DOM,7999,Recreational exps outings parties,97.50,0.00,97.50
Children and Young Peoples Services,Head of Childrens Social Care,085351,Framwellgate Moor CU,Supplies and Services,348037,Subsistence E348,06-May-2021,000007554377724,MCDONALDS,5812,Subsistence,0.99,0.00,0.99
Children and Young Peoples Services,Head of Childrens Social Care,085342,16 Hickstead Rise (previously 9 Cedar Ave),Supplies and Services,324117,Provisions E324,06-May-2021,000007554377728,WALKERS BUTCHERS & BAK,5499,Catering costs - provisions,24.17,0.00,24.17
Children and Young Peoples Services,Head of Childrens Social Care,085344,Childrens Residential Emergency Staffing,Supplies and Services,324117,Provisions E324,06-May-2021,000007554377732,TESCO STORES 2916,5411,Catering costs - provisions,87.48,0.00,87.48
Children and Young Peoples Services,Head of Education and Skills,071802,Louisa Cent Nursery,Supplies and Services,324117,Provisions E324,06-May-2021,000007554377736,ASDA GROCERIES ONLINE,5411,Catering costs - provisions,187.56,0.00,187.56
Children and Young Peoples Services,Head of Early Help Inclusion & Vulnerable Children.,088107,Ferryhill & Newton Aycliffe 0-19 Community Family Hub,Supplies and Services,324117,Provisions E324,06-May-2021,000007554377752,ASDA GROCERIES ONLINE,5411,Catering costs - provisions,113.95,0.00,113.95
Children and Young Peoples Services,Head of Early Help Inclusion & Vulnerable Children.,088107,Ferryhill & Newton Aycliffe 0-19 Community Family Hub,Supplies and Services,324117,Provisions E324,06-May-2021,000007554377756,ASDA GROCERIES ONLINE,5411,Catering costs - provisions,-0.45,0.00,-0.45
Children and Young Peoples Services,Head of Early Help Inclusion & Vulnerable Children.,085962,Aycliffe Secure - Durham,Supplies and Services,304403,Equipment and Materials,06-May-2021,000007554377764,AMZNMktplace,5999,Other consumables,41.85,0.00,41.85
Children and Young Peoples Services,Head of Childrens Social Care,085333,Coxhoe Satelite Home,Supplies and Services,328041,Clothing uniforms and laundry E328,06-May-2021,000007554377792,JustFab by TechStyle,5631,Clothing uniforms and laundry,35.00,0.00,35.00
Resources BK0010,Legal & Democratic Services,069556,Electoral Registration,Supplies and Services,304403,Equipment and Materials,06-May-2021,000007554377818,AMZNMktplace,5999,Other consumables,100.21,16.71,83.50
Resources BK0010,Legal & Democratic Services,069556,Electoral Registration,Supplies and Services,304403,Equipment and Materials,06-May-2021,000007554377824,AMZNMktplace,5999,Other consumables,47.52,7.92,39.60
Resources BK0010,Legal & Democratic Services,069556,Electoral Registration,Supplies and Services,304403,Equipment and Materials,06-May-2021,000007554377824 - 1,AMZNMktplace,5999,Other consumables,0.06,,0.06
Resources BK0010,Legal & Democratic Services,069556,Electoral Registration,Supplies and Services,304403,Equipment and Materials,06-May-2021,000007554377826,AMZNMktplace,5999,Other consumables,4.99,0.83,4.16
Resources BK0010,Legal & Democratic Services,069556,Electoral Registration,Supplies and Services,304403,Equipment and Materials,06-May-2021,000007554377830,AMZNMktplace,5999,Other consumables,39.80,6.64,33.16
Resources BK0010,People & Talent Management,066895,Advice & Guidance,Employees,040149,Recruitment Instruction and Training,06-May-2021,000007554377836,WWW.TEES.AC.UK,8220,Training-all costs,495.00,0.00,495.00
Resources BK0010,People & Talent Management,066895,Advice & Guidance,Employees,040149,Recruitment Instruction and Training,06-May-2021,000007554377840,WWW.TEES.AC.UK,8220,Training-all costs,495.00,0.00,495.00
"Regeneration, Economy and Growth",Corporate Property and Land,021235,Catering - Wharton Park,Supplies and Services,324117,Provisions E324,06-May-2021,000007554377914,JR HOLLAND FOODSERVICE,5499,Catering costs - provisions,21.70,0.00,21.70
Children and Young Peoples Services,Head of Childrens Social Care,085332,Middlestone Moor CU,Supplies and Services,328041,Clothing uniforms and laundry E328,06-May-2021,000007554377950,Legoland Windsor,7996,Clothing uniforms and laundry,93.00,0.00,93.00
Children and Young Peoples Services,Head of Childrens Social Care,085334,West Rainton Satelite Home,Supplies and Services,304403,Equipment and Materials,06-May-2021,000009497673453,AMZNMKTPLACE AMAZON.CO,5999,Other consumables,8.38,0.00,8.38
Children and Young Peoples Services,Head of Early Help Inclusion & Vulnerable Children.,088115,Young Parents Programme 088115,Supplies and Services,384302,Miscellaneous Expenses,06-May-2021,000009497674007,AMZNMKTPLACE AMAZON.CO,5999,Activity expenses,307.86,51.38,256.48
Resources BK0010,Digital and Customer Services,065303,Design & Print - Design,Supplies and Services,304259,Equipment and Materials,07-May-2021,000007554376430,APPLE.COM/UK,5732,Equipment-purchase and rental,38.00,6.33,31.67
"Regeneration, Economy and Growth",Culture Sport and Tourism,054967,Theatre - Technical Staffing,Supplies and Services,304221,Equipment and Materials,07-May-2021,000007554376886,SHOP.ETCCONNECT.COM,5085,Direct materials,54.13,0.00,54.13
"Regeneration, Economy and Growth",Culture Sport and Tourism,054967,Theatre - Technical Staffing,Supplies and Services,304221,Equipment and Materials,07-May-2021,000007554376888,SHOP.ETCCONNECT.COM,5085,Direct materials,1.49,0.00,1.49
Children and Young Peoples Services,Head of Early Help Inclusion & Vulnerable Children.,085956,Lumley,Supplies and Services,384302,Miscellaneous Expenses,07-May-2021,000007554376996,AMZNMktplace,5999,Activity expenses,41.95,7.01,34.94
Children and Young Peoples Services,Head of Education and Skills,071801,Selby Cottage Childcare Centre,Supplies and Services,324117,Provisions E324,07-May-2021,000009497672913,TESCO STORES 2278,5411,Catering costs - provisions,73.64,0.00,73.64
Resources BK0010,Digital and Customer Services,065432,Web Development Group,Supplies and Services,342033,Computers and Communications,07-May-2021,000009497672927,WPMU DEV INCSUBFEE.COM,7372,Computer hardware,13.71,0.00,13.71
"Regeneration, Economy and Growth",Development and Housing,031576,B& B - Temp Accom,Supplies and Services,352001,Conference Expenses,07-May-2021,000009497672947,TOAST LETTINGS,7011,Conferencesseminars fees etc,500.00,0.00,500.00
"Regeneration, Economy and Growth",Development and Housing,031576,B& B - Temp Accom,Supplies and Services,352001,Conference Expenses,07-May-2021,000009497672949,TOAST LETTINGS,7011,Conferencesseminars fees etc,400.00,0.00,400.00
Children and Young Peoples Services,Head of Childrens Social Care,085341,High Etherley Satelite Home,Supplies and Services,324117,Provisions E324,07-May-2021,000009497672959,COOPLANDS BAKERY,5462,Catering costs - provisions,6.20,0.00,6.20
Children and Young Peoples Services,Head of Childrens Social Care,085341,High Etherley Satelite Home,Supplies and Services,324117,Provisions E324,07-May-2021,000009497672963,TESCO STORES 6329,5411,Catering costs - provisions,32.79,0.00,32.79
Children and Young Peoples Services,Head of Education and Skills,075021,DurhamWorks Progression and Learning,Supplies and Services,364301,Grants to Voluntary Organisations,07-May-2021,000009497672975,PAYPAL DBSSERVICES,9399,Hardship,23.22,3.87,19.35
Children and Young Peoples Services,Head of Education and Skills,075021,DurhamWorks Progression and Learning,Supplies and Services,364301,Grants to Voluntary Organisations,07-May-2021,000009497672975 - 1,PAYPAL DBSSERVICES,9399,Hardship,39.98,,39.98
Children and Young Peoples Services,Head of Education and Skills,075021,DurhamWorks Progression and Learning,Supplies and Services,364301,Grants to Voluntary Organisations,07-May-2021,000009497672979,GO NORTH EAST LIMITED,4131,Hardship,13.50,0.00,13.50
Children and Young Peoples Services,Head of Education and Skills,075021,DurhamWorks Progression and Learning,Supplies and Services,364301,Grants to Voluntary Organisations,07-May-2021,000009497672981,GO NORTH EAST LIMITED,4131,Hardship,4.50,0.00,4.50
Children and Young Peoples Services,Head of Education and Skills,075021,DurhamWorks Progression and Learning,Supplies and Services,364301,Grants to Voluntary Organisations,07-May-2021,000009497672989,GO NORTH EAST LIMITED,4131,Hardship,4.50,0.00,4.50
Children and Young Peoples Services,Head of Education and Skills,075021,DurhamWorks Progression and Learning,Supplies and Services,364301,Grants to Voluntary Organisations,07-May-2021,000009497672993,GO NORTH EAST LIMITED,4131,Hardship,17.00,0.00,17.00
"Regeneration, Economy and Growth",Culture Sport and Tourism,011290,Community Testing,Supplies and Services,304259,Equipment and Materials,07-May-2021,000009497673001,DISPLAY STANDS LTD,8999,Equipment-purchase and rental,49.31,0.00,49.31
"Regeneration, Economy and Growth",Culture Sport and Tourism,054798,dli Museum - WW1 Education Programme,Supplies and Services,304259,Equipment and Materials,07-May-2021,000009497673009,ETSY.COM - KEMPHANDMAD,5699,Equipment-purchase and rental,21.70,0.00,21.70
"Regeneration, Economy and Growth",Development and Housing,030776,LINKCD Flexible Fund,Supplies and Services,304403,Equipment and Materials,07-May-2021,000009497673113,AMZNMktplace,5999,Other consumables,18.98,0.00,18.98
Neighbourhoods and Climate Change,Environmental Services,010367,C&G - South Grounds Maintenance,Supplies and Services,304999,Equipment and Materials,07-May-2021,000009497673175,Snowballs,5251,Misc equipment tools and materials,13.28,0.00,13.28
Children and Young Peoples Services,Head of Early Help Inclusion & Vulnerable Children.,085956,Lumley,Supplies and Services,384999,Miscellaneous Expenses,07-May-2021,000009497673203,SP LOVISA UK,5944,Other expenses,11.95,0.00,11.95
Children and Young Peoples Services,Head of Education and Skills,071732,Dean Bank Childcare,Supplies and Services,324117,Provisions E324,07-May-2021,000009497673427,CO OP GROUP FOOD,5411,Catering costs - provisions,6.30,0.00,6.30
Children and Young Peoples Services,Head of Childrens Social Care,085334,West Rainton Satelite Home,Supplies and Services,384999,Miscellaneous Expenses,07-May-2021,000009497673457,Amazon.co.uk MK3YP5VX4,5969,Other expenses,14.98,0.00,14.98
Neighbourhoods and Climate Change,Environmental Services,026591,C&G - Hardwick Park,Supplies and Services,332047,Printing Stationery and Gen Off Exps,07-May-2021,000009497673473,AMZNMktplace,5999,Stationery,29.98,5.00,24.98
Neighbourhoods and Climate Change,Environmental Services,026591,C&G - Hardwick Park,Supplies and Services,332047,Printing Stationery and Gen Off Exps,07-May-2021,000009497673477,AMZNMktplace,5999,Stationery,14.77,2.46,12.31
Neighbourhoods and Climate Change,Environmental Services,026591,C&G - Hardwick Park,Supplies and Services,332047,Printing Stationery and Gen Off Exps,07-May-2021,000009497673481,AMZNMktplace,5999,Stationery,18.98,3.16,15.82
"Regeneration, Economy and Growth",Development and Housing,030771,Durham Advance Flexible Fund,Supplies and Services,304259,Equipment and Materials,07-May-2021,000009497673519,HALFORDS ON LINE,5940,Equipment-purchase and rental,190.00,0.00,190.00
Children and Young Peoples Services,Head of Early Help Inclusion & Vulnerable Children.,088115,Young Parents Programme 088115,Supplies and Services,304403,Equipment and Materials,07-May-2021,000009497673569,AMZNMktplace,5999,Other consumables,28.00,0.00,28.00
Children and Young Peoples Services,Head of Early Help Inclusion & Vulnerable Children.,088115,Young Parents Programme 088115,Supplies and Services,304403,Equipment and Materials,07-May-2021,000009497673575,AMZNMktplace,5999,Other consumables,24.90,0.00,24.90
Children and Young Peoples Services,Head of Early Help Inclusion & Vulnerable Children.,088115,Young Parents Programme 088115,Supplies and Services,304403,Equipment and Materials,07-May-2021,000009497673577,AMZNMktplace,5999,Other consumables,6.20,0.00,6.20
Children and Young Peoples Services,Head of Early Help Inclusion & Vulnerable Children.,088115,Young Parents Programme 088115,Supplies and Services,324117,Provisions E324,07-May-2021,000009497673581,WILKO.COM,5399,Catering costs - provisions,53.00,0.00,53.00
Neighbourhoods and Climate Change,Environmental Services,011060,C&G - Hardwick Park Catering,Supplies and Services,324117,Provisions E324,07-May-2021,000009497673591,HOPWELLS LTD,5811,Catering costs - provisions,31.68,5.28,26.40
Neighbourhoods and Climate Change,Environmental Services,011060,C&G - Hardwick Park Catering,Supplies and Services,324117,Provisions E324,07-May-2021,000009497673591 - 1,HOPWELLS LTD,5811,Catering costs - provisions,98.05,,98.05
Neighbourhoods and Climate Change,Environmental Services,011060,C&G - Hardwick Park Catering,Supplies and Services,324117,Provisions E324,07-May-2021,000009497673593,HOPWELLS LTD,5811,Catering costs - provisions,11.51,0.00,11.51
Neighbourhoods and Climate Change,Environmental Services,011060,C&G - Hardwick Park Catering,Premises,145009,Cleaning and Domestic Supplies,07-May-2021,000009497673599,ALLIANCE DISPOSABLES L,2842,Other cleaning and domestic costs,122.09,20.35,101.74
Neighbourhoods and Climate Change,Environmental Services,011060,C&G - Hardwick Park Catering,Supplies and Services,324117,Provisions E324,07-May-2021,000009497673605,HOPWELLS LTD,5811,Catering costs - provisions,-11.51,0.00,-11.51
"Regeneration, Economy and Growth",Development and Housing,031500,Housing Solutions - Core,Supplies and Services,304259,Equipment and Materials,07-May-2021,000009497673657,GATESHEAD COUNCIL MOTO,9399,Equipment-purchase and rental,11.00,0.00,11.00
"Regeneration, Economy and Growth",Development and Housing,031500,Housing Solutions - Core,Supplies and Services,304259,Equipment and Materials,07-May-2021,000009497673661,GATESHEAD COUNCIL MOTO,9399,Equipment-purchase and rental,-11.00,0.00,-11.00
"Regeneration, Economy and Growth",Development and Housing,031576,B& B - Temp Accom,Supplies and Services,364320,Grants to Voluntary Organisations,07-May-2021,000009497673713,TOAST LETTINGS,7011,Accommodation assistance,420.00,0.00,420.00
"Regeneration, Economy and Growth",Development and Housing,031576,B& B - Temp Accom,Supplies and Services,364320,Grants to Voluntary Organisations,07-May-2021,000009497673719,TOAST LETTINGS,7011,Accommodation assistance,560.00,0.00,560.00
Children and Young Peoples Services,Head of Early Help Inclusion & Vulnerable Children.,088115,Young Parents Programme 088115,Supplies and Services,384302,Miscellaneous Expenses,07-May-2021,000009497673807,HOME BARGAINS,5251,Activity expenses,12.01,0.00,12.01
Children and Young Peoples Services,Head of Early Help Inclusion & Vulnerable Children.,088106,Ferryhill & N.Aycliffe 0-19 Targeted Family Support,Supplies and Services,364301,Grants to Voluntary Organisations,07-May-2021,000009497673809,TESCO ONLINE,5999,Hardship,19.99,0.00,19.99
Adult and Health Services,Head of Adults,055643,Hawthorn House LD Respite Unit,Supplies and Services,304221,Equipment and Materials,07-May-2021,000009497673841,FOOD SAFETY DIRECT,5169,Direct materials,86.34,0.00,86.34
"Regeneration, Economy and Growth",Development and Housing,030771,Durham Advance Flexible Fund,Supplies and Services,304259,Equipment and Materials,07-May-2021,000009497673869,CURRYS ONLINE,5732,Equipment-purchase and rental,438.99,73.17,365.82
Children and Young Peoples Services,Head of Childrens Social Care,085333,Coxhoe Satelite Home,Supplies and Services,324117,Provisions E324,07-May-2021,000009497673889,ASDA SUPERSTORE 4987,5411,Catering costs - provisions,165.37,0.00,165.37
Children and Young Peoples Services,Head of Education and Skills,078554,Adult Skills-Main,Supplies and Services,352001,Conference Expenses,07-May-2021,000009497673919,HTTP://ACE.APPRENTICES,7392,Conferencesseminars fees etc,125.00,0.00,125.00
"Regeneration, Economy and Growth",Corporate Property and Land,030691,Catering - Durham Dales Centre,Supplies and Services,324117,Provisions E324,07-May-2021,000009497673927,JR HOLLAND FOODSERVICE,5499,Catering costs - provisions,30.66,0.00,30.66
"Regeneration, Economy and Growth",Corporate Property and Land,030691,Catering - Durham Dales Centre,Supplies and Services,324117,Provisions E324,07-May-2021,000009497673929,JR HOLLAND FOODSERVICE,5499,Catering costs - provisions,9.20,0.00,9.20
Adult and Health Services,Head of Adults,055643,Hawthorn House LD Respite Unit,Supplies and Services,324117,Provisions E324,07-May-2021,000009497673955,HOPWELLS LTD,5811,Catering costs - provisions,63.14,0.00,63.14
Adult and Health Services,Head of Adults,055643,Hawthorn House LD Respite Unit,Supplies and Services,324117,Provisions E324,07-May-2021,000009497673961,JR HOLLAND FOODSERVICE,5499,Catering costs - provisions,19.38,0.00,19.38
Adult and Health Services,Head of Adults,055643,Hawthorn House LD Respite Unit,Supplies and Services,324117,Provisions E324,07-May-2021,000009497673965,JR HOLLAND FOODSERVICE,5499,Catering costs - provisions,25.30,0.00,25.30
Children and Young Peoples Services,Head of Childrens Social Care,085334,West Rainton Satelite Home,Supplies and Services,304403,Equipment and Materials,07-May-2021,000009497673979,AMZNMKTPLACE AMAZON.CO,5999,Other consumables,32.99,5.50,27.49
Children and Young Peoples Services,Head of Childrens Social Care,085363,LAC & Permanence Team 3,Supplies and Services,340001,Postages E340,07-May-2021,000009497674001,POST OFFICE COUNTER,9402,Postages,4.72,0.00,4.72
Children and Young Peoples Services,Head of Childrens Social Care,085363,LAC & Permanence Team 3,Supplies and Services,338045,Services,07-May-2021,000009497674011,HM PASSPORT OFFICE,9399,Legal expenses 338045,49.00,0.00,49.00
Children and Young Peoples Services,Head of Childrens Social Care,085371,Young Peoples Service Team 1,Supplies and Services,338045,Services,07-May-2021,000009497674095,PAYPAL TP EXPRESS,4789,Legal expenses 338045,20.00,0.00,20.00
Children and Young Peoples Services,Head of Childrens Social Care,085378,Young Persons Service Team 3,Supplies and Services,338045,Services,07-May-2021,000009497674099,Durham County CNCL,9399,Legal expenses 338045,11.00,0.00,11.00
Children and Young Peoples Services,Head of Early Help Inclusion & Vulnerable Children.,088111,Easington & Peterlee 0-19 Community Family Hub,Supplies and Services,384302,Miscellaneous Expenses,07-May-2021,000009497674103,AMZNMktplace,5999,Activity expenses,25.98,4.34,21.64
Children and Young Peoples Services,Head of Early Help Inclusion & Vulnerable Children.,088111,Easington & Peterlee 0-19 Community Family Hub,Supplies and Services,384302,Miscellaneous Expenses,07-May-2021,000009497674109,AMZNMktplace,5999,Activity expenses,7.90,1.32,6.58
Children and Young Peoples Services,Head of Early Help Inclusion & Vulnerable Children.,088115,Young Parents Programme 088115,Supplies and Services,384302,Miscellaneous Expenses,07-May-2021,000009497674115,AMZNMKTPLACE AMAZON.CO,5999,Activity expenses,219.90,36.70,183.20
Children and Young Peoples Services,Head of Early Help Inclusion & Vulnerable Children.,088111,Easington & Peterlee 0-19 Community Family Hub,Supplies and Services,384302,Miscellaneous Expenses,07-May-2021,000009497674119,AMZNMktplace,5999,Activity expenses,12.90,2.15,10.75
Children and Young Peoples Services,Head of Early Help Inclusion & Vulnerable Children.,088111,Easington & Peterlee 0-19 Community Family Hub,Supplies and Services,384302,Miscellaneous Expenses,07-May-2021,000009497674119 - 1,AMZNMktplace,5999,Activity expenses,0.05,,0.05
Children and Young Peoples Services,Head of Childrens Social Care,085332,Middlestone Moor CU,Supplies and Services,304999,Equipment and Materials,07-May-2021,000009497674181,HOME BARGAINS SPENNYMO,5251,Misc equipment tools and materials,15.75,0.00,15.75
"Regeneration, Economy and Growth",Development and Housing,031576,B& B - Temp Accom,Supplies and Services,364320,Grants to Voluntary Organisations,07-May-2021,000009497674207,PREMIER LODGE NORTH,7011,Accommodation assistance,250.00,0.00,250.00
"Regeneration, Economy and Growth",Development and Housing,031576,B& B - Temp Accom,Supplies and Services,364320,Grants to Voluntary Organisations,07-May-2021,000009497674213,BUDGET H EXPRESS HOTEL,7011,Accommodation assistance,356.00,0.00,356.00
"Regeneration, Economy and Growth",Development and Housing,031576,B& B - Temp Accom,Supplies and Services,364320,Grants to Voluntary Organisations,07-May-2021,000009497674221,CROXDALE INN,5812,Accommodation assistance,135.00,0.00,135.00
Children and Young Peoples Services,Head of Early Help Inclusion & Vulnerable Children.,085801,CDYJS - Support,Supplies and Services,324117,Provisions E324,07-May-2021,000009497674233,ASDA SUPERSTORE,5411,Catering costs - provisions,24.00,0.00,24.00
"Regeneration, Economy and Growth",Communications Management,060270,Communications and Marketing,Supplies and Services,336005,Advertising E336,07-May-2021,000009497674347,LINKEDIN-659 7753164,7311,Advertising other than for staff,61.14,0.00,61.14
Adult and Health Services,Head of Adults,055310,Positive Journeys (Tudhoe),Supplies and Services,324117,Provisions E324,07-May-2021,000009497674377,SAINSBURYS SACAT 0776,5411,Catering costs - provisions,1.75,0.00,1.75
Children and Young Peoples Services,Head of Childrens Social Care,085551,Short Break Services-Park Hse Sher,Supplies and Services,324117,Provisions E324,07-May-2021,000009497674481,WM Morrisons Store,5411,Catering costs - provisions,17.75,0.00,17.75
Adult and Health Services,Head of Adults,055643,Hawthorn House LD Respite Unit,Supplies and Services,324117,Provisions E324,07-May-2021,000009502562055,BATLEYS PERTH,5300,Catering costs - provisions,53.10,8.85,44.25
Adult and Health Services,Head of Adults,055643,Hawthorn House LD Respite Unit,Supplies and Services,324117,Provisions E324,07-May-2021,000009502562055 - 1,BATLEYS PERTH,5300,Catering costs - provisions,154.17,,154.17
Children and Young Peoples Services,Head of Childrens Social Care,085371,Young Peoples Service Team 1,Supplies and Services,384956,Miscellaneous Expenses,07-May-2021,000009502562227,TVLICENSING.CO.UK,7392,Licences,159.00,0.00,159.00
Children and Young Peoples Services,Head of Early Help Inclusion & Vulnerable Children.,088115,Young Parents Programme 088115,Supplies and Services,324117,Provisions E324,07-May-2021,000009511853421,WILKO.COM,5399,Catering costs - provisions,-53.00,0.00,-53.00
"Regeneration, Economy and Growth",Business Durham CL0850,030689,Inward Investment and Aftercare,Supplies and Services,384999,Miscellaneous Expenses,08-May-2021,000009497672893,Amazon.co.uk MK1VQ0M24,5969,Other expenses,119.00,19.83,99.17
Children and Young Peoples Services,Head of Education and Skills,071801,Selby Cottage Childcare Centre,Supplies and Services,304999,Equipment and Materials,08-May-2021,000009497672919,Amazon Prime MK1N79MH4,5968,Misc equipment tools and materials,7.99,0.00,7.99
Resources BK0010,Digital and Customer Services,065303,Design & Print - Design,Supplies and Services,342053,Computers and Communications,08-May-2021,000009497672933,ISSUU,5045,Computer software,302.63,0.00,302.63
"Regeneration, Economy and Growth",Culture Sport and Tourism,030705,Visit County Durham 030705,Supplies and Services,342033,Computers and Communications,08-May-2021,000009497673019,FASTHOSTS INTERNET,4816,Computer hardware,132.00,22.00,110.00
Children and Young Peoples Services,Head of Childrens Social Care,085332,Middlestone Moor CU,Supplies and Services,384999,Miscellaneous Expenses,08-May-2021,000009497673151,HOBBYCRAFT,5970,Other expenses,8.40,0.00,8.40
Children and Young Peoples Services,Head of Childrens Social Care,085332,Middlestone Moor CU,Supplies and Services,348037,Subsistence E348,08-May-2021,000009497673153,MCDONALDS,5814,Subsistence,14.68,0.00,14.68
Children and Young Peoples Services,Head of Childrens Social Care,085511,Emergency Duty Team,Supplies and Services,324117,Provisions E324,08-May-2021,000009497673207,ASDA STORES LTD,5411,Catering costs - provisions,17.73,0.00,17.73
Children and Young Peoples Services,Head of Childrens Social Care,085334,West Rainton Satelite Home,Supplies and Services,304259,Equipment and Materials,08-May-2021,000009497673459,OVERRIDE,5940,Equipment-purchase and rental,12.80,0.00,12.80
Children and Young Peoples Services,Head of Childrens Social Care,085334,West Rainton Satelite Home,Supplies and Services,348037,Subsistence E348,08-May-2021,000009497673463,MCDONALDS,5812,Subsistence,7.68,0.00,7.68
Children and Young Peoples Services,Head of Childrens Social Care,085334,West Rainton Satelite Home,Supplies and Services,324117,Provisions E324,08-May-2021,000009497673467,TESCO STORES 2371,5411,Catering costs - provisions,22.50,0.00,22.50
Children and Young Peoples Services,Head of Childrens Social Care,085332,Middlestone Moor CU,Supplies and Services,328041,Clothing uniforms and laundry E328,08-May-2021,000009497673483,PRIMARK,5651,Clothing uniforms and laundry,17.00,0.00,17.00
Children and Young Peoples Services,Head of Childrens Social Care,085332,Middlestone Moor CU,Supplies and Services,348037,Subsistence E348,08-May-2021,000009497673487,GREGGS,5812,Subsistence,5.75,0.00,5.75
Children and Young Peoples Services,Head of Early Help Inclusion & Vulnerable Children.,085956,Lumley,Supplies and Services,324117,Provisions E324,08-May-2021,000009497673551,TESCO STORES 6329,5411,Catering costs - provisions,90.96,0.00,90.96
Children and Young Peoples Services,Head of Childrens Social Care,085341,High Etherley Satelite Home,Supplies and Services,324117,Provisions E324,08-May-2021,000009497673813,ONEBELOW,5411,Catering costs - provisions,6.54,0.00,6.54
Children and Young Peoples Services,Head of Childrens Social Care,085341,High Etherley Satelite Home,Supplies and Services,324117,Provisions E324,08-May-2021,000009497673817,B&M 595 - TEESBAY,5399,Catering costs - provisions,15.00,0.00,15.00
Children and Young Peoples Services,Head of Childrens Social Care,085334,West Rainton Satelite Home,Supplies and Services,304403,Equipment and Materials,08-May-2021,000009497673987,AMZNMKTPLACE AMAZON.CO,5999,Other consumables,25.99,4.33,21.66
Children and Young Peoples Services,Head of Education and Skills,078100,Curric and Professional Development 078100,Supplies and Services,342033,Computers and Communications,08-May-2021,000009497673991,STK Shutterstock,7333,Computer hardware,22.80,0.00,22.80
Neighbourhoods and Climate Change,Technical Services CM0300,010010,Gilesgate DSHI 08/09,Employees,040149,Recruitment Instruction and Training,08-May-2021,000009497674351,CREATIVE_FED,8699,Training-all costs,25.00,0.00,25.00
Children and Young Peoples Services,Head of Childrens Social Care,085551,Short Break Services-Park Hse Sher,Supplies and Services,324117,Provisions E324,08-May-2021,000009497674483,WWW.ICELAND.CO.UK,5411,Catering costs - provisions,62.00,0.00,62.00
"Regeneration, Economy and Growth",Business Durham CL0850,030689,Inward Investment and Aftercare,Supplies and Services,304999,Equipment and Materials,09-May-2021,000009497672897,MAILCHIMP MONTHLY,5968,Misc equipment tools and materials,76.08,0.00,76.08
Children and Young Peoples Services,Head of Childrens Social Care,085341,High Etherley Satelite Home,Supplies and Services,348037,Subsistence E348,09-May-2021,000009497672967,SMITHS SEAVIEW CAFE,5812,Subsistence,27.95,0.00,27.95
Children and Young Peoples Services,Head of Childrens Social Care,085341,High Etherley Satelite Home,Transport,235057,Public Transport,09-May-2021,000009497672969,SOUTH TYNESIDE COUNCIL,7523,Staff travelling,2.70,0.00,2.70
Children and Young Peoples Services,Head of Education and Skills,075021,DurhamWorks Progression and Learning,Supplies and Services,364301,Grants to Voluntary Organisations,09-May-2021,000009497672995,GO NORTH EAST LIMITED,4131,Hardship,4.50,0.00,4.50
"Regeneration, Economy and Growth",Culture Sport and Tourism,011290,Community Testing,Supplies and Services,304259,Equipment and Materials,09-May-2021,000009497673013,Amazon.co.uk MK3TA75T4,5969,Equipment-purchase and rental,35.91,6.00,29.91
Children and Young Peoples Services,Head of Childrens Social Care,085332,Middlestone Moor CU,Supplies and Services,304403,Equipment and Materials,09-May-2021,000009497673155,AMZNMktplace,5999,Other consumables,26.15,4.37,21.78
Children and Young Peoples Services,Head of Childrens Social Care,085352,New Childrens Home (previously Tow Law),Supplies and Services,324117,Provisions E324,09-May-2021,000009497673379,ASDA GROCERIES ONLINE,5411,Catering costs - provisions,61.87,0.00,61.87
Children and Young Peoples Services,Head of Childrens Social Care,085352,New Childrens Home (previously Tow Law),Supplies and Services,324117,Provisions E324,09-May-2021,000009497673383,ASDA GROCERIES ONLINE,5411,Catering costs - provisions,-1.16,0.00,-1.16
Children and Young Peoples Services,Head of Childrens Social Care,085342,16 Hickstead Rise (previously 9 Cedar Ave),Supplies and Services,348037,Subsistence E348,09-May-2021,000009497673405,WWW.TAKEAWAY.JE,5812,Subsistence,16.40,0.00,16.40
Children and Young Peoples Services,Head of Education and Skills,071732,Dean Bank Childcare,Supplies and Services,304259,Equipment and Materials,09-May-2021,000009497673429,Amazon Music MK3I905H4,5735,Equipment-purchase and rental,14.99,0.00,14.99
Children and Young Peoples Services,Head of Childrens Social Care,085332,Middlestone Moor CU,Supplies and Services,304999,Equipment and Materials,09-May-2021,000009497673493,Amazon Prime MK60B45F4,5968,Misc equipment tools and materials,7.99,1.33,6.66
Children and Young Peoples Services,Head of Early Help Inclusion & Vulnerable Children.,085962,Aycliffe Secure - Durham,Supplies and Services,324117,Provisions E324,09-May-2021,000009497673499,CO-OP GROUP 010467,5411,Catering costs - provisions,5.14,0.00,5.14
Children and Young Peoples Services,Head of Early Help Inclusion & Vulnerable Children.,085810,CDYJS - Interventions Team,Supplies and Services,348037,Subsistence E348,09-May-2021,000009497673537,KFC PETERLEE,5814,Subsistence,40.66,0.00,40.66
Children and Young Peoples Services,Head of Early Help Inclusion & Vulnerable Children.,085954,Walworth,Supplies and Services,324117,Provisions E324,09-May-2021,000009497673555,TESCO STORES 6329,5411,Catering costs - provisions,65.85,0.00,65.85
Children and Young Peoples Services,Head of Early Help Inclusion & Vulnerable Children.,085956,Lumley,Transfer Payments,515002,Social Services Clients,09-May-2021,000009497673557,www.asos.com,5651,Pocket money,-19.99,0.00,-19.99
Children and Young Peoples Services,Head of Early Help Inclusion & Vulnerable Children.,088115,Young Parents Programme 088115,Supplies and Services,304403,Equipment and Materials,09-May-2021,000009497673583,AMZNMktplace,5999,Other consumables,63.48,0.00,63.48
Children and Young Peoples Services,Head of Early Help Inclusion & Vulnerable Children.,088115,Young Parents Programme 088115,Supplies and Services,304403,Equipment and Materials,09-May-2021,000009497673585,AMZNMktplace,5999,Other consumables,76.93,0.00,76.93
Neighbourhoods and Climate Change,Environmental Services,010367,C&G - South Grounds Maintenance,Supplies and Services,304221,Equipment and Materials,09-May-2021,000009497673823,B & Q 1120,5200,Direct materials,68.00,0.00,68.00
Children and Young Peoples Services,Head of Early Help Inclusion & Vulnerable Children.,085957,Secure Management,Supplies and Services,304999,Equipment and Materials,09-May-2021,000009497674063,Microsoft Ultimate 1-M,5816,Misc equipment tools and materials,10.99,0.00,10.99
Children and Young Peoples Services,Head of Childrens Social Care,085332,Middlestone Moor CU,Supplies and Services,324117,Provisions E324,09-May-2021,000009497674183,ASDA SUPERSTORE 4987,5411,Catering costs - provisions,41.68,0.00,41.68
Children and Young Peoples Services,Head of Childrens Social Care,085332,Middlestone Moor CU,Supplies and Services,304403,Equipment and Materials,09-May-2021,000009497674271,PAY EAT,5734,Other consumables,14.63,0.00,14.63
Children and Young Peoples Services,Head of Childrens Social Care,085332,Middlestone Moor CU,Supplies and Services,324117,Provisions E324,09-May-2021,000009497674275,CO-OP GROUP 010143,5411,Catering costs - provisions,7.90,0.00,7.90
Children and Young Peoples Services,Head of Childrens Social Care,085332,Middlestone Moor CU,Supplies and Services,324117,Provisions E324,09-May-2021,000009497674279,WM MORRISONS STORE,5411,Catering costs - provisions,5.40,0.00,5.40
Children and Young Peoples Services,Head of Early Help Inclusion & Vulnerable Children.,085962,Aycliffe Secure - Durham,Supplies and Services,324117,Provisions E324,09-May-2021,000009497674305,TESCO STORES 6329,5411,Catering costs - provisions,45.26,0.00,45.26
Neighbourhoods and Climate Change,Technical Services CM0300,011036,Highway Capitalised Maint - Carriageway A Class Roads,Employees,040149,Recruitment Instruction and Training,09-May-2021,000009497674355,THE CHARTERED INSTITUT,8398,Training-all costs,150.00,0.00,150.00
Resources BK0010,COVID19 - Resources,091007,COVID19 - Resources,Supplies and Services,340001,Postages E340,09-May-2021,000009497674361,ROYAL MAIL REDIRECTION,9402,Postages,216.00,0.00,216.00
Adult and Health Services,Head of Adults,055309,Peterlee Pathways,Supplies and Services,304403,Equipment and Materials,09-May-2021,000009497674445,AMZNMktplace,5999,Other consumables,154.26,25.74,128.52
Adult and Health Services,Head of Adults,055309,Peterlee Pathways,Supplies and Services,304403,Equipment and Materials,09-May-2021,000009497674451,AMZNMKTPLACE AMAZON.CO,5999,Other consumables,85.70,14.30,71.40
"Regeneration, Economy and Growth",Business Durham CL0850,030689,Inward Investment and Aftercare,Supplies and Services,304999,Equipment and Materials,10-May-2021,000009497672901,MAILCHIMP MONTHLY,5968,Misc equipment tools and materials,2.09,0.00,2.09
Resources BK0010,Digital and Customer Services,065432,Web Development Group,Supplies and Services,342033,Computers and Communications,10-May-2021,000009497672937,WPMU DEV INCSUBFEE.COM,7372,Computer hardware,0.38,0.00,0.38
Resources BK0010,Digital and Customer Services,065303,Design & Print - Design,Supplies and Services,342033,Computers and Communications,10-May-2021,000009497672939,WPMU DEV INCSUBFEE.COM,7372,Computer hardware,8.32,0.00,8.32
Children and Young Peoples Services,Head of Childrens Social Care,085351,Framwellgate Moor CU,Supplies and Services,372009,Subscriptions E372,10-May-2021,000009497674247,NETFLIX.COM,4899,Subscriptions 372009,13.99,0.00,13.99
"Regeneration, Economy and Growth",Business Durham CL0850,030689,Inward Investment and Aftercare,Third Party Payments,430100,Rendered by Private Contractors,10-May-2021,000009502560611,BLS monday.com,7399,Payments to sub-contractors,148.80,0.00,148.80
"Regeneration, Economy and Growth",Development and Housing,031576,B& B - Temp Accom,Supplies and Services,352001,Conference Expenses,10-May-2021,000009502560655,TOAST LETTINGS,7011,Conferencesseminars fees etc,420.00,0.00,420.00
"Regeneration, Economy and Growth",Development and Housing,031576,B& B - Temp Accom,Supplies and Services,352001,Conference Expenses,10-May-2021,000009502560663,TOAST LETTINGS,7011,Conferencesseminars fees etc,420.00,0.00,420.00
"Regeneration, Economy and Growth",Development and Housing,031576,B& B - Temp Accom,Supplies and Services,364320,Grants to Voluntary Organisations,10-May-2021,000009502560701,TOAST LETTINGS,7011,Accommodation assistance,490.00,0.00,490.00
Children and Young Peoples Services,Head of Education and Skills,075021,DurhamWorks Progression and Learning,Supplies and Services,304403,Equipment and Materials,10-May-2021,000009502560759,AMZNMktplace,5999,Other consumables,12.99,2.17,10.82
Children and Young Peoples Services,Head of Education and Skills,075021,DurhamWorks Progression and Learning,Supplies and Services,304403,Equipment and Materials,10-May-2021,000009502560763,AMZNMktplace,5999,Other consumables,12.99,2.17,10.82
Children and Young Peoples Services,Head of Education and Skills,075021,DurhamWorks Progression and Learning,Supplies and Services,304403,Equipment and Materials,10-May-2021,000009502560765,AMZNMktplace,5999,Other consumables,12.99,2.17,10.82
Children and Young Peoples Services,Head of Education and Skills,075021,DurhamWorks Progression and Learning,Supplies and Services,304403,Equipment and Materials,10-May-2021,000009502560773,AMZNMktplace,5999,Other consumables,12.99,2.17,10.82
Children and Young Peoples Services,Head of Education and Skills,075021,DurhamWorks Progression and Learning,Supplies and Services,304403,Equipment and Materials,10-May-2021,000009502560779,AMZNMktplace,5999,Other consumables,12.99,2.17,10.82
Children and Young Peoples Services,Head of Education and Skills,075021,DurhamWorks Progression and Learning,Supplies and Services,364301,Grants to Voluntary Organisations,10-May-2021,000009502560783,GO NORTH EAST LIMITED,4131,Hardship,68.00,0.00,68.00
Neighbourhoods and Climate Change,Environmental Services,010383,C&G - South Street Cleansing,Supplies and Services,304403,Equipment and Materials,10-May-2021,000009502560799,TIMPSON LTD,5999,Other consumables,31.00,0.00,31.00
Children and Young Peoples Services,Head of Childrens Social Care,085342,16 Hickstead Rise (previously 9 Cedar Ave),Supplies and Services,324117,Provisions E324,10-May-2021,000009502560807,SAINSBURYS 0774,5411,Catering costs - provisions,60.00,0.00,60.00
Children and Young Peoples Services,Head of Childrens Social Care,085342,16 Hickstead Rise (previously 9 Cedar Ave),Supplies and Services,328041,Clothing uniforms and laundry E328,10-May-2021,000009502560817,TK MAXX,5331,Clothing uniforms and laundry,18.99,0.00,18.99
Children and Young Peoples Services,Head of Childrens Social Care,085342,16 Hickstead Rise (previously 9 Cedar Ave),Supplies and Services,324117,Provisions E324,10-May-2021,000009502560823,ICELAND,5411,Catering costs - provisions,10.80,0.00,10.80
Children and Young Peoples Services,Head of Childrens Social Care,085342,16 Hickstead Rise (previously 9 Cedar Ave),Supplies and Services,324117,Provisions E324,10-May-2021,000009502560831,ICELAND,5411,Catering costs - provisions,4.00,0.00,4.00
Children and Young Peoples Services,Head of Childrens Social Care,085342,16 Hickstead Rise (previously 9 Cedar Ave),Supplies and Services,304999,Equipment and Materials,10-May-2021,000009502560835,BOOTS 6023,5912,Misc equipment tools and materials,15.10,0.00,15.10
Dedicated Schools Grant BG0015,DSG High Needs Block,079050,SENSS-Sensory,Supplies and Services,304403,Equipment and Materials,10-May-2021,000009502560845,AMZNMktplace,5999,Other consumables,29.00,4.85,24.15
Neighbourhoods and Climate Change,Environmental Services,010367,C&G - South Grounds Maintenance,Supplies and Services,304221,Equipment and Materials,10-May-2021,000009502560997,SCREWFIX DIRECT,5211,Direct materials,34.99,5.83,29.16
Neighbourhoods and Climate Change,Environmental Services,010367,C&G - South Grounds Maintenance,Supplies and Services,304221,Equipment and Materials,10-May-2021,000009502561009,SCREWFIX DIRECT,5211,Direct materials,13.48,0.00,13.48
Children and Young Peoples Services,Head of Childrens Social Care,085517,Supporting Solutions Service (Edge of Care),Supplies and Services,308011,Furniture,10-May-2021,000009502561055,ARGOS LTD,5310,Furniture repair and replacement,80.00,13.33,66.67
Neighbourhoods and Climate Change,Environmental Services,010367,C&G - South Grounds Maintenance,Supplies and Services,304221,Equipment and Materials,10-May-2021,000009502561117,S&A BUILDERS MERCHANTS,5211,Direct materials,77.12,0.00,77.12
Children and Young Peoples Services,Head of Early Help Inclusion & Vulnerable Children.,079599,Psychological-HQ,Employees,040149,Recruitment Instruction and Training,10-May-2021,000009502561153,SIOBHAN RAY,8299,Training-all costs,295.00,0.00,295.00
Children and Young Peoples Services,Head of Early Help Inclusion & Vulnerable Children.,079599,Psychological-HQ,Employees,040149,Recruitment Instruction and Training,10-May-2021,000009502561157,SIOBHAN RAY,8299,Training-all costs,295.00,0.00,295.00
Children and Young Peoples Services,Head of Early Help Inclusion & Vulnerable Children.,085952,Secure Education,Supplies and Services,324117,Provisions E324,10-May-2021,000009502561169,TESCO STORES 6329,5411,Catering costs - provisions,112.64,0.00,112.64
Children and Young Peoples Services,Head of Childrens Social Care,085362,LAC & Permanence Team 2,Supplies and Services,304403,Equipment and Materials,10-May-2021,000009502561193,SUNDERLAND CC,7523,Other consumables,11.00,0.00,11.00
Children and Young Peoples Services,Head of Childrens Social Care,085362,LAC & Permanence Team 2,Supplies and Services,304403,Equipment and Materials,10-May-2021,000009502561201,SUNDERLAND CC,7523,Other consumables,-11.00,0.00,-11.00
Neighbourhoods and Climate Change,Environmental Services,010900,Fleet - Meadowfield Fleet,Transport,215013,Running Costs of Vehicles,10-May-2021,000009502561247,DVLA VEHICLE TAX,9311,Vehicle Excise Duty (VED),277.50,0.00,277.50
Neighbourhoods and Climate Change,Environmental Services,010900,Fleet - Meadowfield Fleet,Transport,215013,Running Costs of Vehicles,10-May-2021,000009502561255,DVLA VEHICLE TAX,9311,Vehicle Excise Duty (VED),277.50,0.00,277.50
Neighbourhoods and Climate Change,Environmental Services,010561,Fleet - Morrison Busty Fleet,Transport,215013,Running Costs of Vehicles,10-May-2021,000009502561261,DVLA VEHICLE TAX,9311,Vehicle Excise Duty (VED),277.50,0.00,277.50
Neighbourhoods and Climate Change,Environmental Services,010551,Fleet - Chilton Fleet,Transport,215013,Running Costs of Vehicles,10-May-2021,000009502561267,DVLA VEHICLE TAX,9311,Vehicle Excise Duty (VED),277.50,0.00,277.50
Neighbourhoods and Climate Change,Environmental Services,010900,Fleet - Meadowfield Fleet,Transport,215013,Running Costs of Vehicles,10-May-2021,000009502561277,DVLA VEHICLE TAX,9311,Vehicle Excise Duty (VED),277.50,0.00,277.50
Neighbourhoods and Climate Change,Environmental Services,010551,Fleet - Chilton Fleet,Transport,215013,Running Costs of Vehicles,10-May-2021,000009502561283,DVLA VEHICLE TAX,9311,Vehicle Excise Duty (VED),277.50,0.00,277.50
Neighbourhoods and Climate Change,Environmental Services,010551,Fleet - Chilton Fleet,Transport,215013,Running Costs of Vehicles,10-May-2021,000009502561289,DVLA VEHICLE TAX,9311,Vehicle Excise Duty (VED),277.50,0.00,277.50
Neighbourhoods and Climate Change,Environmental Services,010561,Fleet - Morrison Busty Fleet,Transport,215013,Running Costs of Vehicles,10-May-2021,000009502561297,DVLA VEHICLE TAX,9311,Vehicle Excise Duty (VED),277.50,0.00,277.50
Neighbourhoods and Climate Change,Environmental Services,010561,Fleet - Morrison Busty Fleet,Transport,215013,Running Costs of Vehicles,10-May-2021,000009502561305,DVLA VEHICLE TAX,9311,Vehicle Excise Duty (VED),277.50,0.00,277.50
Neighbourhoods and Climate Change,Environmental Services,010900,Fleet - Meadowfield Fleet,Transport,215013,Running Costs of Vehicles,10-May-2021,000009502561311,DVLA VEHICLE TAX,9311,Vehicle Excise Duty (VED),277.50,0.00,277.50
Neighbourhoods and Climate Change,Environmental Services,010900,Fleet - Meadowfield Fleet,Transport,215013,Running Costs of Vehicles,10-May-2021,000009502561315,DVLA VEHICLE TAX,9311,Vehicle Excise Duty (VED),277.50,0.00,277.50
Neighbourhoods and Climate Change,Environmental Services,010864,Fleet - Hackworth Road Fleet,Transport,215013,Running Costs of Vehicles,10-May-2021,000009502561321,DVLA VEHICLE TAX,9311,Vehicle Excise Duty (VED),167.50,0.00,167.50
Neighbourhoods and Climate Change,Environmental Services,010561,Fleet - Morrison Busty Fleet,Transport,215013,Running Costs of Vehicles,10-May-2021,000009502561329,DVLA VEHICLE TAX,9311,Vehicle Excise Duty (VED),167.50,0.00,167.50
Neighbourhoods and Climate Change,Environmental Services,010551,Fleet - Chilton Fleet,Transport,215013,Running Costs of Vehicles,10-May-2021,000009502561335,DVLA VEHICLE TAX,9311,Vehicle Excise Duty (VED),277.50,0.00,277.50
Neighbourhoods and Climate Change,Environmental Services,010900,Fleet - Meadowfield Fleet,Transport,215013,Running Costs of Vehicles,10-May-2021,000009502561341,DVLA VEHICLE TAX,9311,Vehicle Excise Duty (VED),277.50,0.00,277.50
Neighbourhoods and Climate Change,Environmental Services,010900,Fleet - Meadowfield Fleet,Transport,215013,Running Costs of Vehicles,10-May-2021,000009502561349,DVLA VEHICLE TAX,9311,Vehicle Excise Duty (VED),277.50,0.00,277.50
Neighbourhoods and Climate Change,Environmental Services,010561,Fleet - Morrison Busty Fleet,Transport,215013,Running Costs of Vehicles,10-May-2021,000009502561353,DVLA VEHICLE TAX,9311,Vehicle Excise Duty (VED),167.50,0.00,167.50
Neighbourhoods and Climate Change,Environmental Services,010900,Fleet - Meadowfield Fleet,Transport,215013,Running Costs of Vehicles,10-May-2021,000009502561359,DVLA VEHICLE TAX,9311,Vehicle Excise Duty (VED),132.50,0.00,132.50
Neighbourhoods and Climate Change,Environmental Services,010900,Fleet - Meadowfield Fleet,Transport,215013,Running Costs of Vehicles,10-May-2021,000009502561367,DVLA VEHICLE TAX,9311,Vehicle Excise Duty (VED),277.50,0.00,277.50
Neighbourhoods and Climate Change,Environmental Services,010561,Fleet - Morrison Busty Fleet,Transport,215013,Running Costs of Vehicles,10-May-2021,000009502561375,DVLA VEHICLE TAX,9311,Vehicle Excise Duty (VED),277.50,0.00,277.50
Neighbourhoods and Climate Change,Environmental Services,010551,Fleet - Chilton Fleet,Transport,215013,Running Costs of Vehicles,10-May-2021,000009502561381,DVLA VEHICLE TAX,9311,Vehicle Excise Duty (VED),277.50,0.00,277.50
Neighbourhoods and Climate Change,Environmental Services,010900,Fleet - Meadowfield Fleet,Transport,215013,Running Costs of Vehicles,10-May-2021,000009502561387,DVLA VEHICLE TAX,9311,Vehicle Excise Duty (VED),132.50,0.00,132.50
Neighbourhoods and Climate Change,Environmental Services,010900,Fleet - Meadowfield Fleet,Transport,215013,Running Costs of Vehicles,10-May-2021,000009502561393,DVLA VEHICLE TAX,9311,Vehicle Excise Duty (VED),277.50,0.00,277.50
Neighbourhoods and Climate Change,Environmental Services,010551,Fleet - Chilton Fleet,Transport,215013,Running Costs of Vehicles,10-May-2021,000009502561401,DVLA VEHICLE TAX,9311,Vehicle Excise Duty (VED),277.50,0.00,277.50
Neighbourhoods and Climate Change,Environmental Services,010900,Fleet - Meadowfield Fleet,Transport,215013,Running Costs of Vehicles,10-May-2021,000009502561411,DVLA VEHICLE TAX,9311,Vehicle Excise Duty (VED),172.50,0.00,172.50
Neighbourhoods and Climate Change,Environmental Services,010561,Fleet - Morrison Busty Fleet,Transport,215013,Running Costs of Vehicles,10-May-2021,000009502561419,DVLA VEHICLE TAX,9311,Vehicle Excise Duty (VED),277.50,0.00,277.50
Neighbourhoods and Climate Change,Environmental Services,010551,Fleet - Chilton Fleet,Transport,215013,Running Costs of Vehicles,10-May-2021,000009502561423,DVLA VEHICLE TAX,9311,Vehicle Excise Duty (VED),277.50,0.00,277.50
Resources BK0010,Procurement Sales & Business Services,065502,Business Support - Crook,Supplies and Services,352001,Conference Expenses,10-May-2021,000009502561475,NOMINET UK,7392,Conferencesseminars fees etc,18.72,0.00,18.72
Resources BK0010,Procurement Sales & Business Services,065502,Business Support - Crook,Supplies and Services,352001,Conference Expenses,10-May-2021,000009502561479,NOMINET UK,7392,Conferencesseminars fees etc,46.80,0.00,46.80
Children and Young Peoples Services,Head of Early Help Inclusion & Vulnerable Children.,088109,Spennymoor & Shildon 0-19 Community Family Hub,Supplies and Services,364301,Grants to Voluntary Organisations,10-May-2021,000009502561487,ARGOS LTD,5310,Hardship,63.95,0.00,63.95
Children and Young Peoples Services,Head of Education and Skills,071732,Dean Bank Childcare,Supplies and Services,324117,Provisions E324,10-May-2021,000009502561513,JR HOLLAND FOODSERVICE,5499,Catering costs - provisions,820.69,0.00,820.69
Children and Young Peoples Services,Head of Education and Skills,071732,Dean Bank Childcare,Supplies and Services,324117,Provisions E324,10-May-2021,000009502561521,ASDA GROCERIES ONLINE,5411,Catering costs - provisions,53.07,0.00,53.07
Children and Young Peoples Services,Head of Education and Skills,071732,Dean Bank Childcare,Supplies and Services,324117,Provisions E324,10-May-2021,000009502561523,Wm Morrisons Store Pic,5411,Catering costs - provisions,59.77,0.00,59.77
Children and Young Peoples Services,Head of Early Help Inclusion & Vulnerable Children.,085962,Aycliffe Secure - Durham,Supplies and Services,304403,Equipment and Materials,10-May-2021,000009502561563,AMZNMKTPLACE AMAZON.CO,5999,Other consumables,8.88,0.00,8.88
"Regeneration, Economy and Growth",Development and Housing,031576,B& B - Temp Accom,Supplies and Services,364320,Grants to Voluntary Organisations,10-May-2021,000009502561621,AYCLIFFE BIZ,7011,Accommodation assistance,152.00,0.00,152.00
"Regeneration, Economy and Growth",Development and Housing,031576,B& B - Temp Accom,Supplies and Services,364320,Grants to Voluntary Organisations,10-May-2021,000009502561627,AYCLIFFE BIZ,7011,Accommodation assistance,152.00,0.00,152.00
"Regeneration, Economy and Growth",Development and Housing,031623,Rough Sleeping,Transport,235073,Public Transport,10-May-2021,000009502561633,BLUELINE TAXIS,4121,Travel-clients/students/children,17.00,0.00,17.00
"Regeneration, Economy and Growth",Development and Housing,031623,Rough Sleeping,Transport,235073,Public Transport,10-May-2021,000009502561643,STANLEY TRAVEL (NORTH,4121,Travel-clients/students/children,17.50,0.00,17.50
"Regeneration, Economy and Growth",Development and Housing,031623,Rough Sleeping,Payments In advance A932,932001,Payments in advance,10-May-2021,000009502561647,SAFE AND SECURE PROPER,8999,Payments in advance,81.00,0.00,81.00
Children and Young Peoples Services,Head of Early Help Inclusion & Vulnerable Children.,088115,Young Parents Programme 088115,Supplies and Services,304403,Equipment and Materials,10-May-2021,000009502561709,AMZNMKTPLACE AMAZON.CO,5999,Other consumables,20.89,0.00,20.89
Children and Young Peoples Services,Head of Early Help Inclusion & Vulnerable Children.,088115,Young Parents Programme 088115,Supplies and Services,324117,Provisions E324,10-May-2021,000009502561713,ASDA GROCERIES ONLINE,5411,Catering costs - provisions,44.50,0.00,44.50
Neighbourhoods and Climate Change,Environmental Services,011060,C&G - Hardwick Park Catering,Supplies and Services,324117,Provisions E324,10-May-2021,000009502561733,FREEMAN CATERING BUTCH,5422,Catering costs - provisions,56.97,0.00,56.97
Neighbourhoods and Climate Change,Environmental Services,011058,C&G - Wharton Park,Supplies and Services,304259,Equipment and Materials,10-May-2021,000009502561765,B&M 681 - DURHAM,5399,Equipment-purchase and rental,8.99,0.00,8.99
"Regeneration, Economy and Growth",Development and Housing,030554,International Relations 030554,Supplies and Services,304259,Equipment and Materials,10-May-2021,000009502561891,SALTWELL TOWERS,9399,Equipment-purchase and rental,2.20,0.00,2.20
Adult and Health Services,Head of Adults,055643,Hawthorn House LD Respite Unit,Supplies and Services,324117,Provisions E324,10-May-2021,000009502561945,SAINSBURYS SACAT 0776,5411,Catering costs - provisions,3.82,0.00,3.82
Children and Young Peoples Services,Head of Education and Skills,078554,Adult Skills-Main,Supplies and Services,352001,Conference Expenses,10-May-2021,000009502561983,HTTP://ACE.APPRENTICES,7392,Conferencesseminars fees etc,250.00,0.00,250.00
Children and Young Peoples Services,Head of Childrens Social Care,085352,New Childrens Home (previously Tow Law),Supplies and Services,324117,Provisions E324,10-May-2021,000009502561999,SAINSBURYS 0776,5411,Catering costs - provisions,185.06,0.00,185.06
Adult and Health Services,Head of Adults,055643,Hawthorn House LD Respite Unit,Supplies and Services,324117,Provisions E324,10-May-2021,000009502562065,FREEMAN CATERING BUTCH,5422,Catering costs - provisions,43.23,0.00,43.23
Adult and Health Services,Head of Adults,055643,Hawthorn House LD Respite Unit,Supplies and Services,324117,Provisions E324,10-May-2021,000009502562069,JR HOLLAND FOODSERVICE,5499,Catering costs - provisions,15.98,0.00,15.98
"Regeneration, Economy and Growth",Culture Sport and Tourism,054399,Local Delivery-Libraries,Supplies and Services,312009,Newspapers books and periodicals E312,10-May-2021,000009502562077,Amazon.co.uk MK8F89B14,5969,Newspapers books and periodicals,12.40,0.00,12.40
Children and Young Peoples Services,Head of Childrens Social Care,085334,West Rainton Satelite Home,Supplies and Services,324117,Provisions E324,10-May-2021,000009502562087,TESCO STORES 2371,5411,Catering costs - provisions,7.50,0.00,7.50
Children and Young Peoples Services,Head of Childrens Social Care,085334,West Rainton Satelite Home,Supplies and Services,324117,Provisions E324,10-May-2021,000009502562089,TESCO STORES 2371,5411,Catering costs - provisions,146.07,0.00,146.07
Resources BK0010,Digital and Customer Services,065335,School Services - Implementations,Supplies and Services,304639,Equipment and Materials,10-May-2021,000009502562153,AMZNMktplace,5999,Technicians-supplies,21.99,3.67,18.32
Children and Young Peoples Services,Head of Childrens Social Care,085371,Young Peoples Service Team 1,Supplies and Services,308011,Furniture,10-May-2021,000009502562221,AMZNMktplace,5999,Furniture repair and replacement,128.99,21.50,107.49
Children and Young Peoples Services,Head of Childrens Social Care,085372,Young Peoples Service Team 2,Supplies and Services,308011,Furniture,10-May-2021,000009502562229,ARGOS LTD,5310,Furniture repair and replacement,256.95,0.00,256.95
Children and Young Peoples Services,Head of Childrens Social Care,085372,Young Peoples Service Team 2,Supplies and Services,308011,Furniture,10-May-2021,000009502562233,ARGOS LTD,5310,Furniture repair and replacement,29.99,0.00,29.99
Children and Young Peoples Services,Head of Education and Skills,071903,Early Years Sustainability,Employees,040149,Recruitment Instruction and Training,10-May-2021,000009502562241,WP-THE BRITISH ASS,8398,Training-all costs,8.50,0.00,8.50
Children and Young Peoples Services,Head of Childrens Social Care,085351,Framwellgate Moor CU,Supplies and Services,352001,Conference Expenses,10-May-2021,000009502562313,Hotel on Booking.com,7011,Conferencesseminars fees etc,-234.09,0.00,-234.09
Children and Young Peoples Services,Head of Childrens Social Care,085344,Childrens Residential Emergency Staffing,Supplies and Services,324117,Provisions E324,10-May-2021,000009502562323,B&M 410 - DARLINGTON,5399,Catering costs - provisions,133.97,0.00,133.97
Children and Young Peoples Services,Head of Childrens Social Care,085344,Childrens Residential Emergency Staffing,Supplies and Services,324117,Provisions E324,10-May-2021,000009502562327,TESCO STORES 2916,5411,Catering costs - provisions,89.00,0.00,89.00
Children and Young Peoples Services,Head of Childrens Social Care,085344,Childrens Residential Emergency Staffing,Supplies and Services,328041,Clothing uniforms and laundry E328,10-May-2021,000009502562331,THE RANGE,5311,Clothing uniforms and laundry,144.40,0.00,144.40
Children and Young Peoples Services,Head of Childrens Social Care,085332,Middlestone Moor CU,Transport,215995,Running Costs of Vehicles,10-May-2021,000009502562347,CO-OP GROUP PETROL,5541,Vehicle running expenses,20.04,0.00,20.04
"Regeneration, Economy and Growth",Development and Housing,031500,Housing Solutions - Core,Supplies and Services,352001,Conference Expenses,10-May-2021,000009502562361,HI NEWCASTLE WASHI,7011,Conferencesseminars fees etc,450.00,0.00,450.00
"Regeneration, Economy and Growth",Development and Housing,031500,Housing Solutions - Core,Supplies and Services,352001,Conference Expenses,10-May-2021,000009502562363,HI NEWCASTLE WASHI,7011,Conferencesseminars fees etc,350.00,0.00,350.00
"Regeneration, Economy and Growth",Development and Housing,031500,Housing Solutions - Core,Supplies and Services,352001,Conference Expenses,10-May-2021,000009502562365,HI NEWCASTLE WASHI,7011,Conferencesseminars fees etc,240.00,0.00,240.00
"Regeneration, Economy and Growth",Development and Housing,031500,Housing Solutions - Core,Supplies and Services,352001,Conference Expenses,10-May-2021,000009502562369,HI NEWCASTLE WASHI,7011,Conferencesseminars fees etc,320.00,0.00,320.00
Resources BK0010,Procurement Sales & Business Services,065503,Business Support - Spectrum,Supplies and Services,304403,Equipment and Materials,10-May-2021,000009502562399,AMZNMktplace,5999,Other consumables,11.98,2.00,9.98
Neighbourhoods and Climate Change,Environmental Services,031200,North Pennines Core,Supplies and Services,344033,Telephones,10-May-2021,000009502562491,ZOOM.US 888-799-9666,4814,Telephones general-all costs,134.40,0.00,134.40
Children and Young Peoples Services,Head of Childrens Social Care,085332,Middlestone Moor CU,Supplies and Services,348037,Subsistence E348,10-May-2021,000009502562515,MCDONALDS 1514,5814,Subsistence,5.01,0.00,5.01
"Regeneration, Economy and Growth",Development and Housing,030771,Durham Advance Flexible Fund,Supplies and Services,328041,Clothing uniforms and laundry E328,10-May-2021,000009502562525,ARGOS LTD,5310,Clothing uniforms and laundry,99.99,0.00,99.99
Children and Young Peoples Services,Head of Education and Skills,075021,DurhamWorks Progression and Learning,Supplies and Services,304403,Equipment and Materials,10-May-2021,000009505320367,AMZNMKTPLACE AMAZON.CO,5999,Other consumables,12.99,2.17,10.82
"Regeneration, Economy and Growth",Development and Housing,031623,Rough Sleeping,Supplies and Services,364320,Grants to Voluntary Organisations,10-May-2021,000009505321027,HARTLEPOOL BC CNP,9399,Accommodation assistance,40.90,0.00,40.90
Children and Young Peoples Services,Head of Childrens Social Care,085352,New Childrens Home (previously Tow Law),Supplies and Services,352001,Conference Expenses,10-May-2021,000009505321193,PAYPAL LANG GLAMP,7011,Conferencesseminars fees etc,430.00,0.00,430.00
Children and Young Peoples Services,Head of Childrens Social Care,085372,Young Peoples Service Team 2,Supplies and Services,308011,Furniture,10-May-2021,000009505321513,Dunelm,5712,Furniture repair and replacement,34.95,0.00,34.95
Children and Young Peoples Services,Head of Childrens Social Care,085372,Young Peoples Service Team 2,Supplies and Services,308011,Furniture,10-May-2021,000009505321517,Dunelm,5712,Furniture repair and replacement,30.45,0.00,30.45
"Regeneration, Economy and Growth",Corporate Property and Land,021235,Catering - Wharton Park,Supplies and Services,324117,Provisions E324,10-May-2021,000009505321847,BATLEYS PERTH,5300,Catering costs - provisions,158.76,26.46,132.30
"Regeneration, Economy and Growth",Business Durham CL0850,030689,Inward Investment and Aftercare,Supplies and Services,336005,Advertising E336,11-May-2021,000009505320239,LINKEDIN-661 0627044,7311,Advertising other than for staff,80.89,0.00,80.89
Children and Young Peoples Services,Head of Education and Skills,071801,Selby Cottage Childcare Centre,Supplies and Services,324117,Provisions E324,11-May-2021,000009505320259,TESCO STORES 2371,5411,Catering costs - provisions,95.56,0.00,95.56
Resources BK0010,Digital and Customer Services,065256,Nodes/Circuits,Supplies and Services,304221,Equipment and Materials,11-May-2021,000009505320267,SCREWFIX DIRECT,5211,Direct materials,149.98,0.00,149.98
Children and Young Peoples Services,Head of Childrens Social Care,085341,High Etherley Satelite Home,Supplies and Services,324117,Provisions E324,11-May-2021,000009505320343,TESCO STORES 6329,5411,Catering costs - provisions,11.82,0.00,11.82
Children and Young Peoples Services,Head of Childrens Social Care,085501,Child Care Cases Legal Expenses,Supplies and Services,304403,Equipment and Materials,11-May-2021,000009505320351,GATESHEAD COUNCIL MOTO,9399,Other consumables,35.00,0.00,35.00
Children and Young Peoples Services,Head of Education and Skills,075024,Durham Directions,Supplies and Services,384999,Miscellaneous Expenses,11-May-2021,000009505320371,Amazon.co.uk MK8SO7QM4,5969,Other expenses,34.20,5.70,28.50
Adult and Health Services,Head of Adults,055302,Durham Pathways,Supplies and Services,384999,Miscellaneous Expenses,11-May-2021,000009505320389,Amazon.co.uk MK9K216S4,5969,Other expenses,14.25,0.00,14.25
Children and Young Peoples Services,Head of Childrens Social Care,085332,Middlestone Moor CU,Supplies and Services,328041,Clothing uniforms and laundry E328,11-May-2021,000009505320405,POUNDSTRETCHER 128,5331,Clothing uniforms and laundry,11.99,0.00,11.99
Children and Young Peoples Services,Head of Childrens Social Care,085332,Middlestone Moor CU,Supplies and Services,324117,Provisions E324,11-May-2021,000009505320411,WILKO RETAIL LIMITED,5399,Catering costs - provisions,1.50,0.00,1.50
Children and Young Peoples Services,Head of Childrens Social Care,085332,Middlestone Moor CU,Supplies and Services,324117,Provisions E324,11-May-2021,000009505320413,HERON FOODS NEWTON AYC,5411,Catering costs - provisions,2.18,0.00,2.18
Children and Young Peoples Services,Head of Childrens Social Care,085332,Middlestone Moor CU,Supplies and Services,304999,Equipment and Materials,11-May-2021,000009505320419,HOME BARGAINS SPENNYMO,5251,Misc equipment tools and materials,39.77,0.00,39.77
Children and Young Peoples Services,Head of Childrens Social Care,085332,Middlestone Moor CU,Supplies and Services,324117,Provisions E324,11-May-2021,000009505320425,ASDA SUPERSTORE 4987,5411,Catering costs - provisions,19.33,0.00,19.33
Children and Young Peoples Services,Head of Childrens Social Care,085332,Middlestone Moor CU,Supplies and Services,324117,Provisions E324,11-May-2021,000009505320427,TESCO STORES 2371,5411,Catering costs - provisions,144.20,0.00,144.20
Children and Young Peoples Services,Head of Childrens Social Care,085332,Middlestone Moor CU,Employees,040149,Recruitment Instruction and Training,11-May-2021,000009505320433,PX HELPANDMANUALS.COM,8999,Training-all costs,1.49,0.00,1.49
Children and Young Peoples Services,Head of Early Help Inclusion & Vulnerable Children.,088115,Young Parents Programme 088115,Supplies and Services,384302,Miscellaneous Expenses,11-May-2021,000009505320617,AMZNMktplace,5999,Activity expenses,33.98,5.66,28.32
Children and Young Peoples Services,Head of Early Help Inclusion & Vulnerable Children.,088115,Young Parents Programme 088115,Supplies and Services,384302,Miscellaneous Expenses,11-May-2021,000009505320627,WILKO.COM,5399,Activity expenses,91.40,15.23,76.17
Children and Young Peoples Services,Head of Early Help Inclusion & Vulnerable Children.,088115,Young Parents Programme 088115,Supplies and Services,384302,Miscellaneous Expenses,11-May-2021,000009505320633,WILKO.COM,5399,Activity expenses,20.20,3.37,16.83
Children and Young Peoples Services,Head of Early Help Inclusion & Vulnerable Children.,085956,Lumley,Supplies and Services,384999,Miscellaneous Expenses,11-May-2021,000009505320727,Amazon.co.uk MK17B26U4,5969,Other expenses,8.34,0.00,8.34
Children and Young Peoples Services,Head of Early Help Inclusion & Vulnerable Children.,085956,Lumley,Supplies and Services,384999,Miscellaneous Expenses,11-May-2021,000009505320733,Amazon.co.uk MK77L1694,5969,Other expenses,31.36,0.00,31.36
Children and Young Peoples Services,Head of Early Help Inclusion & Vulnerable Children.,085956,Lumley,Supplies and Services,384999,Miscellaneous Expenses,11-May-2021,000009505320739,Amazon.co.uk MK8152654,5969,Other expenses,7.99,0.00,7.99
Neighbourhoods and Climate Change,Environmental Services,010900,Fleet - Meadowfield Fleet,Transport,215013,Running Costs of Vehicles,11-May-2021,000009505320827,DVLA VEHICLE TAX,9311,Vehicle Excise Duty (VED),167.50,0.00,167.50
Neighbourhoods and Climate Change,Environmental Services,010900,Fleet - Meadowfield Fleet,Transport,215013,Running Costs of Vehicles,11-May-2021,000009505320837,DVLA VEHICLE TAX,9311,Vehicle Excise Duty (VED),302.50,0.00,302.50
Neighbourhoods and Climate Change,Environmental Services,010900,Fleet - Meadowfield Fleet,Transport,215013,Running Costs of Vehicles,11-May-2021,000009505320839,DVLA VEHICLE TAX,9311,Vehicle Excise Duty (VED),277.50,0.00,277.50
Neighbourhoods and Climate Change,Environmental Services,010864,Fleet - Hackworth Road Fleet,Transport,215013,Running Costs of Vehicles,11-May-2021,000009505320847,DVLA VEHICLE TAX,9311,Vehicle Excise Duty (VED),302.50,0.00,302.50
Neighbourhoods and Climate Change,Environmental Services,010900,Fleet - Meadowfield Fleet,Transport,215013,Running Costs of Vehicles,11-May-2021,000009505320853,DVLA VEHICLE TAX,9311,Vehicle Excise Duty (VED),302.50,0.00,302.50
Neighbourhoods and Climate Change,Environmental Services,010900,Fleet - Meadowfield Fleet,Transport,215013,Running Costs of Vehicles,11-May-2021,000009505320857,DVLA VEHICLE TAX,9311,Vehicle Excise Duty (VED),302.50,0.00,302.50
Neighbourhoods and Climate Change,Environmental Services,010900,Fleet - Meadowfield Fleet,Transport,215013,Running Costs of Vehicles,11-May-2021,000009505320863,DVLA VEHICLE TAX,9311,Vehicle Excise Duty (VED),277.50,0.00,277.50
Neighbourhoods and Climate Change,Environmental Services,010900,Fleet - Meadowfield Fleet,Transport,215013,Running Costs of Vehicles,11-May-2021,000009505320869,DVLA VEHICLE TAX,9311,Vehicle Excise Duty (VED),302.50,0.00,302.50
Children and Young Peoples Services,Head of Education and Skills,071732,Dean Bank Childcare,Supplies and Services,324117,Provisions E324,11-May-2021,000009505320915,SAINSBURYS SACAT (2303,5411,Catering costs - provisions,39.45,0.00,39.45
"Regeneration, Economy and Growth",Development and Housing,031500,Housing Solutions - Core,Supplies and Services,352001,Conference Expenses,11-May-2021,000009505320957,TRAVELODGE,3615,Conferencesseminars fees etc,176.39,0.00,176.39
"Regeneration, Economy and Growth",Development and Housing,031500,Housing Solutions - Core,Supplies and Services,352001,Conference Expenses,11-May-2021,000009505320961,HI NEWCASTLE WASHI,7011,Conferencesseminars fees etc,450.00,0.00,450.00
"Regeneration, Economy and Growth",Development and Housing,031500,Housing Solutions - Core,Supplies and Services,352001,Conference Expenses,11-May-2021,000009505320965,HI NEWCASTLE WASHI,7011,Conferencesseminars fees etc,450.00,0.00,450.00
"Regeneration, Economy and Growth",Development and Housing,031500,Housing Solutions - Core,Supplies and Services,352001,Conference Expenses,11-May-2021,000009505320969,HI NEWCASTLE WASHI,7011,Conferencesseminars fees etc,380.00,0.00,380.00
"Regeneration, Economy and Growth",Development and Housing,030771,Durham Advance Flexible Fund,Supplies and Services,304403,Equipment and Materials,11-May-2021,000009505320975,AMZNMktplace,5999,Other consumables,97.99,0.00,97.99
"Regeneration, Economy and Growth",Development and Housing,031576,B& B - Temp Accom,Supplies and Services,364320,Grants to Voluntary Organisations,11-May-2021,000009505321037,HI NEWCASTLE WASHI,7011,Accommodation assistance,450.00,0.00,450.00
"Regeneration, Economy and Growth",Development and Housing,031576,B& B - Temp Accom,Supplies and Services,364320,Grants to Voluntary Organisations,11-May-2021,000009505321043,HI NEWCASTLE WASHI,7011,Accommodation assistance,450.00,0.00,450.00
"Regeneration, Economy and Growth",Development and Housing,031576,B& B - Temp Accom,Supplies and Services,364320,Grants to Voluntary Organisations,11-May-2021,000009505321047,HI NEWCASTLE WASHI,7011,Accommodation assistance,450.00,0.00,450.00
"Regeneration, Economy and Growth",Development and Housing,031576,B& B - Temp Accom,Supplies and Services,364320,Grants to Voluntary Organisations,11-May-2021,000009505321049,HI NEWCASTLE WASHI,7011,Accommodation assistance,400.00,0.00,400.00
Children and Young Peoples Services,Head of Early Help Inclusion & Vulnerable Children.,085954,Walworth,Transfer Payments,515002,Social Services Clients,11-May-2021,000009505321077,Mainline Menswear Ltd,5611,Pocket money,60.00,0.00,60.00
Children and Young Peoples Services,Head of Early Help Inclusion & Vulnerable Children.,085954,Walworth,Transfer Payments,515002,Social Services Clients,11-May-2021,000009505321081,FLANNELS.COM,5691,Pocket money,26.99,0.00,26.99
Children and Young Peoples Services,Head of Early Help Inclusion & Vulnerable Children.,085962,Aycliffe Secure - Durham,Transfer Payments,515002,Social Services Clients,11-May-2021,000009505321091,SPORTSDIRECT.COM,5691,Pocket money,77.99,0.00,77.99
Children and Young Peoples Services,Head of Early Help Inclusion & Vulnerable Children.,085956,Lumley,Supplies and Services,384302,Miscellaneous Expenses,11-May-2021,000009505321093,SMYTHSTOYS.COM,5945,Activity expenses,101.97,0.00,101.97
Children and Young Peoples Services,Head of Early Help Inclusion & Vulnerable Children.,085956,Lumley,Transfer Payments,515002,Social Services Clients,11-May-2021,000009505321101,JD SPORTS INTERNET,5941,Pocket money,23.99,0.00,23.99
Children and Young Peoples Services,Head of Early Help Inclusion & Vulnerable Children.,088115,Young Parents Programme 088115,Supplies and Services,304403,Equipment and Materials,11-May-2021,000009505321139,AMZNMktplace,5999,Other consumables,149.25,0.00,149.25
Children and Young Peoples Services,Head of Education and Skills,075021,DurhamWorks Progression and Learning,Supplies and Services,364301,Grants to Voluntary Organisations,11-May-2021,000009505321153,WWW.DURHAM.GOV.UK,9399,Hardship,11.00,0.00,11.00
Children and Young Peoples Services,Head of Childrens Social Care,085551,Short Break Services-Park Hse Sher,Supplies and Services,304999,Equipment and Materials,11-May-2021,000009505321217,HOME BARGAINS,5251,Misc equipment tools and materials,1.58,0.00,1.58
Children and Young Peoples Services,Head of Childrens Social Care,085551,Short Break Services-Park Hse Sher,Supplies and Services,324117,Provisions E324,11-May-2021,000009505321225,ALDI 12 774,5411,Catering costs - provisions,55.49,0.00,55.49
Children and Young Peoples Services,Head of Early Help Inclusion & Vulnerable Children.,088106,Ferryhill & N.Aycliffe 0-19 Targeted Family Support,Supplies and Services,384302,Miscellaneous Expenses,11-May-2021,000009505321245,WWW.THEWORKS.CO.UK,5310,Activity expenses,125.00,0.00,125.00
Children and Young Peoples Services,Head of Childrens Social Care,085331,New Lea Childrens Home,Supplies and Services,304259,Equipment and Materials,11-May-2021,000009505321251,JD SPORTS PLC,5941,Equipment-purchase and rental,37.00,0.00,37.00
Neighbourhoods and Climate Change,Environmental Services,010367,C&G - South Grounds Maintenance,Supplies and Services,304999,Equipment and Materials,11-May-2021,000009505321275,Snowballs,5251,Misc equipment tools and materials,35.94,0.00,35.94
Neighbourhoods and Climate Change,Environmental Services,010367,C&G - South Grounds Maintenance,Supplies and Services,304221,Equipment and Materials,11-May-2021,000009505321279,B & Q 1120,5200,Direct materials,78.00,0.00,78.00
"Regeneration, Economy and Growth",Corporate Property and Land,020061,Bldg Serv - R&M Div 61 - Building,Supplies and Services,304221,Equipment and Materials,11-May-2021,000009505321313,PAYPAL DISCOUNTDIS,5085,Direct materials,110.94,18.49,92.45
Children and Young Peoples Services,Head of Childrens Social Care,085357,LAC Bespoke Placements,Supplies and Services,324117,Provisions E324,11-May-2021,000009505321329,TESCO STORES 2916,5411,Catering costs - provisions,25.00,0.00,25.00
Children and Young Peoples Services,Head of Childrens Social Care,085352,New Childrens Home (previously Tow Law),Supplies and Services,304999,Equipment and Materials,11-May-2021,000009505321335,HOME BARGAINS,5251,Misc equipment tools and materials,39.45,0.00,39.45
Neighbourhoods and Climate Change,Environmental Services,031200,North Pennines Core,Supplies and Services,348037,Subsistence E348,11-May-2021,000009505321373,THE OLD VILLAGE BAKERY,5812,Subsistence,40.00,0.00,40.00
Children and Young Peoples Services,Head of Childrens Social Care,085334,West Rainton Satelite Home,Supplies and Services,304999,Equipment and Materials,11-May-2021,000009505321379,HOME BARGAINS,5251,Misc equipment tools and materials,50.11,0.00,50.11
Children and Young Peoples Services,Head of Childrens Social Care,085334,West Rainton Satelite Home,Supplies and Services,324117,Provisions E324,11-May-2021,000009505321385,TESCO STORES 2371,5411,Catering costs - provisions,147.31,0.00,147.31
Neighbourhoods and Climate Change,Environmental Services,010301,C&G - North Grounds Maintenance,Supplies and Services,304221,Equipment and Materials,11-May-2021,000009505321409,HARELAW SAWMILL,5211,Direct materials,198.50,0.00,198.50
Children and Young Peoples Services,Head of Early Help Inclusion & Vulnerable Children.,088102,Consett & Stanley 0-19 Targeted Family Support,Supplies and Services,324117,Provisions E324,11-May-2021,000009505321415,ASDA SUPERSTORE,5411,Catering costs - provisions,20.79,0.00,20.79
Resources BK0010,Digital and Customer Services,065335,School Services - Implementations,Supplies and Services,304639,Equipment and Materials,11-May-2021,000009505321427,AMZNMktplace,5999,Technicians-supplies,95.97,0.00,95.97
Resources BK0010,Digital and Customer Services,065335,School Services - Implementations,Supplies and Services,304639,Equipment and Materials,11-May-2021,000009505321433,AMZNMktplace,5999,Technicians-supplies,10.85,1.81,9.04
Children and Young Peoples Services,Head of Early Help Inclusion & Vulnerable Children.,085957,Secure Management,Supplies and Services,304999,Equipment and Materials,11-May-2021,000009505321463,Audible UK,5968,Misc equipment tools and materials,9.18,1.53,7.65
Children and Young Peoples Services,Head of Early Help Inclusion & Vulnerable Children.,085957,Secure Management,Supplies and Services,384999,Miscellaneous Expenses,11-May-2021,000009505321467,Amazon.co.uk MK5DV56H4,5969,Other expenses,70.00,11.70,58.30
Children and Young Peoples Services,Head of Early Help Inclusion & Vulnerable Children.,085957,Secure Management,Supplies and Services,304403,Equipment and Materials,11-May-2021,000009505321473,AMZNMktplace,5999,Other consumables,8.84,0.00,8.84
Children and Young Peoples Services,Head of Early Help Inclusion & Vulnerable Children.,085957,Secure Management,Supplies and Services,304403,Equipment and Materials,11-May-2021,000009505321475,OSBORNE TECHNOLOGIES L,5999,Other consumables,108.00,18.00,90.00
Children and Young Peoples Services,Head of Early Help Inclusion & Vulnerable Children.,085957,Secure Management,Supplies and Services,304999,Equipment and Materials,11-May-2021,000009505321477,Audible UK,5968,Misc equipment tools and materials,-9.18,-1.53,-7.65
Neighbourhoods and Climate Change,Environmental Services,031081,E&D - Heritage Coast 031081,Supplies and Services,384199,Miscellaneous Expenses,11-May-2021,000009505321509,BRUNEL TROPHIES ECOM,5099,Other hired and contracted services,29.99,0.00,29.99
Children and Young Peoples Services,Head of Early Help Inclusion & Vulnerable Children.,088115,Young Parents Programme 088115,Supplies and Services,384302,Miscellaneous Expenses,11-May-2021,000009505321519,ASDA GROCERIES ONLINE,5411,Activity expenses,117.65,0.00,117.65
Children and Young Peoples Services,Head of Early Help Inclusion & Vulnerable Children.,088115,Young Parents Programme 088115,Supplies and Services,384302,Miscellaneous Expenses,11-May-2021,000009505321523,ASDA GROCERIES ONLINE,5411,Activity expenses,-1.00,0.00,-1.00
Children and Young Peoples Services,Head of Education and Skills,071903,Early Years Sustainability,Employees,040149,Recruitment Instruction and Training,11-May-2021,000009505321527,WP-THE BRITISH ASS,8398,Training-all costs,8.50,0.00,8.50
Children and Young Peoples Services,Head of Education and Skills,071903,Early Years Sustainability,Employees,040149,Recruitment Instruction and Training,11-May-2021,000009505321533,WP-THE BRITISH ASS,8398,Training-all costs,8.50,0.00,8.50
Children and Young Peoples Services,Head of Education and Skills,071903,Early Years Sustainability,Employees,040149,Recruitment Instruction and Training,11-May-2021,000009505321537,WP-THE BRITISH ASS,8398,Training-all costs,8.50,0.00,8.50
Children and Young Peoples Services,Head of Education and Skills,071903,Early Years Sustainability,Employees,040149,Recruitment Instruction and Training,11-May-2021,000009505321541,WP-THE BRITISH ASS,8398,Training-all costs,8.50,0.00,8.50
Children and Young Peoples Services,Head of Education and Skills,071903,Early Years Sustainability,Employees,040149,Recruitment Instruction and Training,11-May-2021,000009505321545,WP-THE BRITISH ASS,8398,Training-all costs,8.50,0.00,8.50
Children and Young Peoples Services,Head of Education and Skills,071903,Early Years Sustainability,Employees,040149,Recruitment Instruction and Training,11-May-2021,000009505321549,WP-THE BRITISH ASS,8398,Training-all costs,8.50,0.00,8.50
Children and Young Peoples Services,Head of Education and Skills,071903,Early Years Sustainability,Employees,040149,Recruitment Instruction and Training,11-May-2021,000009505321553,WP-THE BRITISH ASS,8398,Training-all costs,8.50,0.00,8.50
Children and Young Peoples Services,Head of Education and Skills,071903,Early Years Sustainability,Employees,040149,Recruitment Instruction and Training,11-May-2021,000009505321557,WP-THE BRITISH ASS,8398,Training-all costs,8.50,0.00,8.50
Children and Young Peoples Services,Head of Education and Skills,071903,Early Years Sustainability,Employees,040149,Recruitment Instruction and Training,11-May-2021,000009505321559,WP-THE BRITISH ASS,8398,Training-all costs,8.50,0.00,8.50
"Regeneration, Economy and Growth",Transport and Contracted Services,031704,Care Connect - CCTV Countywide,Supplies and Services,384956,Miscellaneous Expenses,11-May-2021,000009505321593,SECURITY INDUSTRY,7393,Licences,190.00,0.00,190.00
"Regeneration, Economy and Growth",Transport and Contracted Services,031704,Care Connect - CCTV Countywide,Supplies and Services,384956,Miscellaneous Expenses,11-May-2021,000009505321597,SECURITY INDUSTRY,7393,Licences,190.00,0.00,190.00
"Regeneration, Economy and Growth",Development and Housing,031576,B& B - Temp Accom,Supplies and Services,364320,Grants to Voluntary Organisations,11-May-2021,000009505321627,BUDGET H EXPRESS HOTEL,7011,Accommodation assistance,267.00,0.00,267.00
"Regeneration, Economy and Growth",Development and Housing,031576,B& B - Temp Accom,Supplies and Services,364320,Grants to Voluntary Organisations,11-May-2021,000009505321631,HI NEWCASTLE WASHI,7011,Accommodation assistance,120.00,0.00,120.00
Children and Young Peoples Services,Head of Childrens Social Care,085351,Framwellgate Moor CU,Supplies and Services,304259,Equipment and Materials,11-May-2021,000009505321659,M and M Direct Ltd,5941,Equipment-purchase and rental,55.42,0.00,55.42
Children and Young Peoples Services,Head of Childrens Social Care,085342,16 Hickstead Rise (previously 9 Cedar Ave),Supplies and Services,324117,Provisions E324,11-May-2021,000009505321677,TESCO STORES 2916,5411,Catering costs - provisions,178.56,0.00,178.56
Children and Young Peoples Services,Head of Education and Skills,071802,Louisa Cent Nursery,Supplies and Services,324117,Provisions E324,11-May-2021,000009505321681,ALDI 11 774,5411,Catering costs - provisions,4.14,0.00,4.14
Resources BK0010,Procurement Sales & Business Services,069800,Corporate Procurement 069800,Employees,040149,Recruitment Instruction and Training,11-May-2021,000009505321719,WWW.CIPS.ORG,8699,Training-all costs,78.00,0.00,78.00
Children and Young Peoples Services,Head of Early Help Inclusion & Vulnerable Children.,085962,Aycliffe Secure - Durham,Supplies and Services,304403,Equipment and Materials,11-May-2021,000009505321745,AMZNMktplace,5999,Other consumables,45.08,0.00,45.08
Neighbourhoods and Climate Change,Community Protection,011035,Consumer Protection 011035,Supplies and Services,340001,Postages E340,11-May-2021,000009505321793,ROYAL MAIL GROUP LTD,9402,Postages,283.50,0.00,283.50
Adult and Health Services,Head of Adults,055310,Positive Journeys (Tudhoe),Supplies and Services,324117,Provisions E324,11-May-2021,000009505321801,ASDA SUPERSTORE 4987,5411,Catering costs - provisions,1.09,0.00,1.09
"Regeneration, Economy and Growth",Development and Housing,030771,Durham Advance Flexible Fund,Supplies and Services,342033,Computers and Communications,11-May-2021,000009505321921,Udemy,7372,Computer hardware,79.97,13.33,66.64
"Regeneration, Economy and Growth",Development and Housing,030771,Durham Advance Flexible Fund,Supplies and Services,304999,Equipment and Materials,11-May-2021,000009505321929,HIGHSPEEDTRAINING.CO.U,8244,Misc equipment tools and materials,24.00,4.00,20.00
"Regeneration, Economy and Growth",Development and Housing,030770,Durham Advance,Supplies and Services,304403,Equipment and Materials,11-May-2021,000009505321945,AMZNMktplace,5999,Other consumables,29.99,0.00,29.99
"Regeneration, Economy and Growth",Development and Housing,030770,Durham Advance,Supplies and Services,304259,Equipment and Materials,11-May-2021,000009505321949,CURRYS ONLINE,5732,Equipment-purchase and rental,224.00,37.33,186.67
Children and Young Peoples Services,Head of Early Help Inclusion & Vulnerable Children.,088115,Young Parents Programme 088115,Supplies and Services,384302,Miscellaneous Expenses,11-May-2021,000009508627557,AMZNMKTPLACE AMAZON.CO,5999,Activity expenses,76.18,12.70,63.48
Children and Young Peoples Services,Head of Early Help Inclusion & Vulnerable Children.,088115,Young Parents Programme 088115,Supplies and Services,384302,Miscellaneous Expenses,11-May-2021,000009508627559,AMZNMKTPLACE AMAZON.CO,5999,Activity expenses,25.95,4.33,21.62
Children and Young Peoples Services,Head of Childrens Social Care,071448,Newton Aycliffe One Point Hub,Supplies and Services,304403,Equipment and Materials,11-May-2021,000009508628155,AMZNMKTPLACE AMAZON.CO,5999,Other consumables,111.66,18.61,93.05
Children and Young Peoples Services,Head of Childrens Social Care,071448,Newton Aycliffe One Point Hub,Supplies and Services,304403,Equipment and Materials,11-May-2021,000009508628155 - 1,AMZNMKTPLACE AMAZON.CO,5999,Other consumables,0.09,,0.09
Children and Young Peoples Services,Head of Childrens Social Care,071448,Newton Aycliffe One Point Hub,Supplies and Services,304403,Equipment and Materials,11-May-2021,000009508628163,AMZNMKTPLACE AMAZON.CO,5999,Other consumables,90.66,15.11,75.55
Children and Young Peoples Services,Head of Childrens Social Care,071448,Newton Aycliffe One Point Hub,Supplies and Services,304403,Equipment and Materials,11-May-2021,000009508628163 - 1,AMZNMKTPLACE AMAZON.CO,5999,Other consumables,0.09,,0.09
Neighbourhoods and Climate Change,Environmental Services,011060,C&G - Hardwick Park Catering,Supplies and Services,324117,Provisions E324,11-May-2021,000009508628259,BATLEYS PERTH,5300,Catering costs - provisions,157.68,26.28,131.40
Neighbourhoods and Climate Change,Environmental Services,011060,C&G - Hardwick Park Catering,Supplies and Services,324117,Provisions E324,11-May-2021,000009508628259 - 1,BATLEYS PERTH,5300,Catering costs - provisions,135.52,,135.52
Children and Young Peoples Services,Head of Childrens Social Care,085344,Childrens Residential Emergency Staffing,Supplies and Services,308011,Furniture,11-May-2021,000009508628603,Dunelm,5712,Furniture repair and replacement,78.00,0.00,78.00
"Regeneration, Economy and Growth",Culture Sport and Tourism,054235,Bishop Auckland Town Hall Cafe,Supplies and Services,324117,Provisions E324,11-May-2021,000009551145299,BATLEYS PERTH,5300,Catering costs - provisions,476.82,79.47,397.35
"Regeneration, Economy and Growth",Culture Sport and Tourism,054235,Bishop Auckland Town Hall Cafe,Supplies and Services,324117,Provisions E324,11-May-2021,000009551145299 - 1,BATLEYS PERTH,5300,Catering costs - provisions,233.22,,233.22
"Regeneration, Economy and Growth",Business Durham CL0850,030689,Inward Investment and Aftercare,Supplies and Services,336005,Advertising E336,12-May-2021,000009508626977,LINKEDIN-661 5421884,7311,Advertising other than for staff,77.02,0.00,77.02
Children and Young Peoples Services,Head of Childrens Social Care,085622,Families First Ferryhill,Supplies and Services,304403,Equipment and Materials,12-May-2021,000009508627071,AMZNMktplace,5999,Other consumables,18.99,3.17,15.82
Adult and Health Services,Head of Adults,055302,Durham Pathways,Supplies and Services,304403,Equipment and Materials,12-May-2021,000009508627129,AMZNMktplace,5999,Other consumables,10.60,1.77,8.83
Adult and Health Services,Head of Adults,055302,Durham Pathways,Supplies and Services,324117,Provisions E324,12-May-2021,000009508627139,LIDL GB DURHAM,5411,Catering costs - provisions,2.07,0.00,2.07
"Regeneration, Economy and Growth",Culture Sport and Tourism,010601,Spennymoor Leisure Cr - General,Supplies and Services,304259,Equipment and Materials,12-May-2021,000009508627161,AMZNMktplace,5999,Equipment-purchase and rental,44.99,7.50,37.49
"Regeneration, Economy and Growth",Culture Sport and Tourism,010601,Spennymoor Leisure Cr - General,Supplies and Services,304259,Equipment and Materials,12-May-2021,000009508627169,AMZNMktplace,5999,Equipment-purchase and rental,89.99,15.00,74.99
"Regeneration, Economy and Growth",Culture Sport and Tourism,010601,Spennymoor Leisure Cr - General,Supplies and Services,304259,Equipment and Materials,12-May-2021,000009508627183,AMZNMktplace,5999,Equipment-purchase and rental,69.99,11.67,58.32
Children and Young Peoples Services,Head of Childrens Social Care,085332,Middlestone Moor CU,Supplies and Services,304999,Equipment and Materials,12-May-2021,000009508627287,HOME BARGAINS,5251,Misc equipment tools and materials,0.89,0.00,0.89
Children and Young Peoples Services,Head of Childrens Social Care,085332,Middlestone Moor CU,Supplies and Services,328041,Clothing uniforms and laundry E328,12-May-2021,000009508627301,TK MAXX,5331,Clothing uniforms and laundry,4.49,0.00,4.49
Children and Young Peoples Services,Head of Childrens Social Care,085332,Middlestone Moor CU,Supplies and Services,324117,Provisions E324,12-May-2021,000009508627305,LIDL GB BSHP AUCKLAND,5411,Catering costs - provisions,7.73,0.00,7.73
Children and Young Peoples Services,Head of Childrens Social Care,085332,Middlestone Moor CU,Supplies and Services,304221,Equipment and Materials,12-May-2021,000009508627313,HOMEBASE LTD 822,5200,Direct materials,10.45,0.00,10.45
Children and Young Peoples Services,Head of Childrens Social Care,085332,Middlestone Moor CU,Supplies and Services,304259,Equipment and Materials,12-May-2021,000009508627317,DVLA DRIVER ONLINE,9399,Equipment-purchase and rental,34.00,0.00,34.00
Children and Young Peoples Services,Head of Childrens Social Care,085352,New Childrens Home (previously Tow Law),Supplies and Services,304403,Equipment and Materials,12-May-2021,000009508627483,AMZNMktplace,5999,Other consumables,39.84,0.00,39.84
Children and Young Peoples Services,Head of Early Help Inclusion & Vulnerable Children.,088115,Young Parents Programme 088115,Supplies and Services,384302,Miscellaneous Expenses,12-May-2021,000009508627545,AMZNMktplace,5999,Activity expenses,26.45,4.41,22.04
Children and Young Peoples Services,Head of Early Help Inclusion & Vulnerable Children.,088115,Young Parents Programme 088115,Supplies and Services,384302,Miscellaneous Expenses,12-May-2021,000009508627569,AMZNMKTPLACE AMAZON.CO,5999,Activity expenses,41.98,7.00,34.98
Children and Young Peoples Services,Head of Early Help Inclusion & Vulnerable Children.,088115,Young Parents Programme 088115,Supplies and Services,384302,Miscellaneous Expenses,12-May-2021,000009508627577,AMZNMKTPLACE AMAZON.CO,5999,Activity expenses,25.95,4.33,21.62
Children and Young Peoples Services,Head of Early Help Inclusion & Vulnerable Children.,088115,Young Parents Programme 088115,Supplies and Services,384302,Miscellaneous Expenses,12-May-2021,000009508627583,AMZNMKTPLACE AMAZON.CO,5999,Activity expenses,15.84,2.64,13.20
Children and Young Peoples Services,Head of Early Help Inclusion & Vulnerable Children.,088115,Young Parents Programme 088115,Supplies and Services,384302,Miscellaneous Expenses,12-May-2021,000009508627583 - 1,AMZNMKTPLACE AMAZON.CO,5999,Activity expenses,0.04,,0.04
Children and Young Peoples Services,Head of Early Help Inclusion & Vulnerable Children.,088115,Young Parents Programme 088115,Supplies and Services,384302,Miscellaneous Expenses,12-May-2021,000009508627591,AMZNMKTPLACE AMAZON.CO,5999,Activity expenses,25.95,4.33,21.62
Children and Young Peoples Services,Head of Early Help Inclusion & Vulnerable Children.,088115,Young Parents Programme 088115,Supplies and Services,384302,Miscellaneous Expenses,12-May-2021,000009508627595,SAFELINCS,5712,Activity expenses,13.50,2.25,11.25
Children and Young Peoples Services,Head of Early Help Inclusion & Vulnerable Children.,088115,Young Parents Programme 088115,Supplies and Services,384302,Miscellaneous Expenses,12-May-2021,000009508627601,AMZNMktplace,5999,Activity expenses,26.45,8.82,17.63
Children and Young Peoples Services,Head of Early Help Inclusion & Vulnerable Children.,088115,Young Parents Programme 088115,Supplies and Services,384302,Miscellaneous Expenses,12-May-2021,000009508627609,AMZNMktplace,5999,Activity expenses,26.45,8.82,17.63
Children and Young Peoples Services,Head of Early Help Inclusion & Vulnerable Children.,088115,Young Parents Programme 088115,Supplies and Services,384302,Miscellaneous Expenses,12-May-2021,000009508627613,AMZNMktplace,5999,Activity expenses,33.96,5.66,28.30
Children and Young Peoples Services,Head of Early Help Inclusion & Vulnerable Children.,088115,Young Parents Programme 088115,Supplies and Services,384302,Miscellaneous Expenses,12-May-2021,000009508627619,BAKER ROSS,5970,Activity expenses,82.55,13.76,68.79
Neighbourhoods and Climate Change,Environmental Services,010367,C&G - South Grounds Maintenance,Supplies and Services,304221,Equipment and Materials,12-May-2021,000009508627693,BTL TIMBER AND HARDWAR,5099,Direct materials,83.32,0.00,83.32
"Regeneration, Economy and Growth",Development and Housing,031578,Client Travel Reimbursements,Transport,235073,Public Transport,12-May-2021,000009508627715,BLUE LINE TAXIS,4121,Travel-clients/students/children,38.40,0.00,38.40
Children and Young Peoples Services,Head of Early Help Inclusion & Vulnerable Children.,085952,Secure Education,Supplies and Services,384999,Miscellaneous Expenses,12-May-2021,000009508627737,Amazon.co.uk MK3MO7SN4,5969,Other expenses,99.00,16.50,82.50
Children and Young Peoples Services,Head of Childrens Social Care,085511,Emergency Duty Team,Supplies and Services,324117,Provisions E324,12-May-2021,000009508627753,SAINSBURYS LOC4650,5411,Catering costs - provisions,20.00,0.00,20.00
Children and Young Peoples Services,Head of Childrens Social Care,085361,LAC & Permanence Team 1,Supplies and Services,304403,Equipment and Materials,12-May-2021,000009508627779,GEN REGISTER OFFICE,9399,Other consumables,14.00,0.00,14.00
Children and Young Peoples Services,Head of Childrens Social Care,085362,LAC & Permanence Team 2,Supplies and Services,304403,Equipment and Materials,12-May-2021,000009508627783,GEN REGISTER OFFICE,9399,Other consumables,11.00,0.00,11.00
"Regeneration, Economy and Growth",Development and Housing,031576,B& B - Temp Accom,Supplies and Services,352001,Conference Expenses,12-May-2021,000009508627839,HI NEWCASTLE WASHI,7011,Conferencesseminars fees etc,145.74,24.29,121.45
"Regeneration, Economy and Growth",Development and Housing,031576,B& B - Temp Accom,Supplies and Services,352001,Conference Expenses,12-May-2021,000009508627839 - 1,HI NEWCASTLE WASHI,7011,Conferencesseminars fees etc,114.26,,114.26
Neighbourhoods and Climate Change,Environmental Services,010900,Fleet - Meadowfield Fleet,Transport,215013,Running Costs of Vehicles,12-May-2021,000009508627851,DVLA VEHICLE TAX,9311,Vehicle Excise Duty (VED),277.50,0.00,277.50
Neighbourhoods and Climate Change,Environmental Services,031221,North Pennines - Bowlees,Supplies and Services,304221,Equipment and Materials,12-May-2021,000009508627983,B & Q 1332,5200,Direct materials,14.66,0.00,14.66
Children and Young Peoples Services,Head of Childrens Social Care,071448,Newton Aycliffe One Point Hub,Supplies and Services,304403,Equipment and Materials,12-May-2021,000009508628167,AMZNMktplace,5999,Other consumables,17.98,3.00,14.98
Children and Young Peoples Services,Head of Childrens Social Care,071448,Newton Aycliffe One Point Hub,Supplies and Services,304403,Equipment and Materials,12-May-2021,000009508628171,AMZNMktplace,5999,Other consumables,68.84,11.49,57.35
Children and Young Peoples Services,Head of Childrens Social Care,071448,Newton Aycliffe One Point Hub,Supplies and Services,304403,Equipment and Materials,12-May-2021,000009508628179,AMZNMktplace,5999,Other consumables,114.90,19.15,95.75
Children and Young Peoples Services,Head of Childrens Social Care,071448,Newton Aycliffe One Point Hub,Supplies and Services,304403,Equipment and Materials,12-May-2021,000009508628183,AMZNMktplace,5999,Other consumables,5.79,0.97,4.82
Children and Young Peoples Services,Head of Early Help Inclusion & Vulnerable Children.,085962,Aycliffe Secure - Durham,Supplies and Services,328041,Clothing uniforms and laundry E328,12-May-2021,000009508628213,MARKS&SPENCER PLC,5411,Clothing uniforms and laundry,242.99,0.00,242.99
Children and Young Peoples Services,Head of Early Help Inclusion & Vulnerable Children.,085962,Aycliffe Secure - Durham,Supplies and Services,324117,Provisions E324,12-May-2021,000009508628217,TESCO STORES 6329,5411,Catering costs - provisions,80.96,0.00,80.96
Children and Young Peoples Services,Head of Early Help Inclusion & Vulnerable Children.,085957,Secure Management,Supplies and Services,340001,Postages E340,12-May-2021,000009508628223,NEXT DIRECTORY,5965,Postages,20.00,0.00,20.00
Children and Young Peoples Services,Head of Early Help Inclusion & Vulnerable Children.,088115,Young Parents Programme 088115,Supplies and Services,304403,Equipment and Materials,12-May-2021,000009508628255,AMZNMktplace,5999,Other consumables,31.82,0.00,31.82
Children and Young Peoples Services,Head of Education and Skills,075021,DurhamWorks Progression and Learning,Supplies and Services,364301,Grants to Voluntary Organisations,12-May-2021,000009508628323,GO NORTH EAST LIMITED,4131,Hardship,68.00,0.00,68.00
Children and Young Peoples Services,Head of Education and Skills,075021,DurhamWorks Progression and Learning,Supplies and Services,364301,Grants to Voluntary Organisations,12-May-2021,000009508628331,NEXT DIRECTORY,5965,Hardship,40.00,0.00,40.00
"Regeneration, Economy and Growth",Development and Housing,031500,Housing Solutions - Core,Supplies and Services,352001,Conference Expenses,12-May-2021,000009508628395,PREMIER LODGE NORTH,7011,Conferencesseminars fees etc,300.00,0.00,300.00
"Regeneration, Economy and Growth",Development and Housing,031500,Housing Solutions - Core,Supplies and Services,352001,Conference Expenses,12-May-2021,000009508628403,HI NEWCASTLE WASHI,7011,Conferencesseminars fees etc,450.00,0.00,450.00
"Regeneration, Economy and Growth",Development and Housing,031500,Housing Solutions - Core,Supplies and Services,352001,Conference Expenses,12-May-2021,000009508628409,HI NEWCASTLE WASHI,7011,Conferencesseminars fees etc,450.00,0.00,450.00
"Regeneration, Economy and Growth",Development and Housing,031500,Housing Solutions - Core,Supplies and Services,352001,Conference Expenses,12-May-2021,000009508628417,HI NEWCASTLE WASHI,7011,Conferencesseminars fees etc,220.00,0.00,220.00
Dedicated Schools Grant BG0015,DSG High Needs Block,077099,Special-INMSS,Supplies and Services,336005,Advertising E336,12-May-2021,000009508628429,EVERYTHING BRANDED,7311,Advertising other than for staff,220.32,0.00,220.32
Children and Young Peoples Services,Head of Childrens Social Care,085344,Childrens Residential Emergency Staffing,Supplies and Services,308011,Furniture,12-May-2021,000009508628613,IKEA LTD SHOP ONLINE,5712,Furniture repair and replacement,276.00,46.00,230.00
Children and Young Peoples Services,Head of Early Help Inclusion & Vulnerable Children.,088108,Spennymoor & Shildon 0-19 Targeted Family Support,Supplies and Services,304259,Equipment and Materials,12-May-2021,000009508628639,HIGHSTREETVOUCHERS,8641,Equipment-purchase and rental,203.50,0.00,203.50
Children and Young Peoples Services,Head of Childrens Social Care,085341,High Etherley Satelite Home,Supplies and Services,384999,Miscellaneous Expenses,12-May-2021,000009508628665,Amazon.co.uk MK2YZ6D74,5969,Other expenses,20.89,0.00,20.89
Neighbourhoods and Climate Change,Environmental Services,010367,C&G - South Grounds Maintenance,Supplies and Services,304221,Equipment and Materials,12-May-2021,000009508628671,TRAVIS PERKINS,5211,Direct materials,13.85,2.31,11.54
Neighbourhoods and Climate Change,Environmental Services,010367,C&G - South Grounds Maintenance,Supplies and Services,304221,Equipment and Materials,12-May-2021,000009508628679,TRAVIS PERKINS,5211,Direct materials,214.20,35.70,178.50
Neighbourhoods and Climate Change,Environmental Services,010367,C&G - South Grounds Maintenance,Supplies and Services,304221,Equipment and Materials,12-May-2021,000009508628687,VALE ENGINEERING (YORK,7394,Direct materials,7.36,0.00,7.36
Neighbourhoods and Climate Change,Environmental Services,010367,C&G - South Grounds Maintenance,Supplies and Services,304999,Equipment and Materials,12-May-2021,000009508628695,Snowballs,5251,Misc equipment tools and materials,152.81,0.00,152.81
Adult and Health Services,Head of Adults,055643,Hawthorn House LD Respite Unit,Supplies and Services,384999,Miscellaneous Expenses,12-May-2021,000009508628771,Amazon.co.uk MK95B7SX4,5969,Other expenses,19.00,3.17,15.83
Adult and Health Services,Head of Adults,055643,Hawthorn House LD Respite Unit,Supplies and Services,324117,Provisions E324,12-May-2021,000009508628779,SAINSBURYS 0776,5411,Catering costs - provisions,25.40,0.00,25.40
Adult and Health Services,Head of Adults,055643,Hawthorn House LD Respite Unit,Supplies and Services,324117,Provisions E324,12-May-2021,000009508628787,SAINSBURYS 0776,5411,Catering costs - provisions,12.70,0.00,12.70
Children and Young Peoples Services,Head of Childrens Social Care,085333,Coxhoe Satelite Home,Supplies and Services,304999,Equipment and Materials,12-May-2021,000009508628825,HOME BARGAINS,5251,Misc equipment tools and materials,24.04,0.00,24.04
Children and Young Peoples Services,Head of Childrens Social Care,085333,Coxhoe Satelite Home,Supplies and Services,328041,Clothing uniforms and laundry E328,12-May-2021,000009508628833,TK MAXX,5331,Clothing uniforms and laundry,65.07,0.00,65.07
Children and Young Peoples Services,Head of Childrens Social Care,085333,Coxhoe Satelite Home,Supplies and Services,324117,Provisions E324,12-May-2021,000009508628839,ASDA SUPERSTORE 4987,5411,Catering costs - provisions,156.39,0.00,156.39
Children and Young Peoples Services,Head of Childrens Social Care,085333,Coxhoe Satelite Home,Supplies and Services,304999,Equipment and Materials,12-May-2021,000009508628845,SUPERDRUG STORES PLC,5912,Misc equipment tools and materials,6.98,0.00,6.98
Children and Young Peoples Services,Head of Childrens Social Care,085333,Coxhoe Satelite Home,Supplies and Services,324117,Provisions E324,12-May-2021,000009508628851,CO-OP GROUP 310016,5411,Catering costs - provisions,13.00,0.00,13.00
Children and Young Peoples Services,Head of Childrens Social Care,085333,Coxhoe Satelite Home,Supplies and Services,328041,Clothing uniforms and laundry E328,12-May-2021,000009508628857,WWW.ASOS.COM,5651,Clothing uniforms and laundry,20.00,0.00,20.00
Children and Young Peoples Services,Head of Childrens Social Care,085333,Coxhoe Satelite Home,Supplies and Services,304259,Equipment and Materials,12-May-2021,000009508628865,SPORTSDIRECT 264,5941,Equipment-purchase and rental,69.00,0.00,69.00
Children and Young Peoples Services,Head of Childrens Social Care,085357,LAC Bespoke Placements,Supplies and Services,324117,Provisions E324,12-May-2021,000009508628919,TESCO STORES 2916,5411,Catering costs - provisions,15.00,0.00,15.00
Adult and Health Services,Head of Adults,055643,Hawthorn House LD Respite Unit,Supplies and Services,324117,Provisions E324,12-May-2021,000009508629051,JR HOLLAND FOODSERVICE,5499,Catering costs - provisions,12.04,0.00,12.04
Adult and Health Services,Head of Adults,055643,Hawthorn House LD Respite Unit,Supplies and Services,324117,Provisions E324,12-May-2021,000009508629063,JR HOLLAND FOODSERVICE,5499,Catering costs - provisions,8.01,0.00,8.01
Children and Young Peoples Services,Head of Early Help Inclusion & Vulnerable Children.,088102,Consett & Stanley 0-19 Targeted Family Support,Transport,235073,Public Transport,12-May-2021,000009508629145,SumUp Mark Fowkes,4121,Travel-clients/students/children,15.00,0.00,15.00
Children and Young Peoples Services,Head of Early Help Inclusion & Vulnerable Children.,088102,Consett & Stanley 0-19 Targeted Family Support,Supplies and Services,384302,Miscellaneous Expenses,12-May-2021,000009508629159,AMZNMktplace,5999,Activity expenses,50.67,8.45,42.22
Resources BK0010,Digital and Customer Services,065335,School Services - Implementations,Supplies and Services,304639,Equipment and Materials,12-May-2021,000009508629195,REPLACEBASE,5732,Technicians-supplies,32.46,0.00,32.46
Children and Young Peoples Services,Head of Early Help Inclusion & Vulnerable Children.,085957,Secure Management,Supplies and Services,304259,Equipment and Materials,12-May-2021,000009508629225,Amazon MP3,5735,Equipment-purchase and rental,7.84,0.00,7.84
Children and Young Peoples Services,Head of Early Help Inclusion & Vulnerable Children.,085957,Secure Management,Supplies and Services,304259,Equipment and Materials,12-May-2021,000009508629239,Amazon MP3,5735,Equipment-purchase and rental,2.94,0.00,2.94
Children and Young Peoples Services,Head of Early Help Inclusion & Vulnerable Children.,085957,Secure Management,Supplies and Services,304259,Equipment and Materials,12-May-2021,000009508629245,Amazon MP3,5735,Equipment-purchase and rental,10.48,0.00,10.48
Children and Young Peoples Services,Head of Education and Skills,071903,Early Years Sustainability,Employees,040149,Recruitment Instruction and Training,12-May-2021,000009508629351,WP-THE BRITISH ASS,8398,Training-all costs,8.50,0.00,8.50
Children and Young Peoples Services,Head of Education and Skills,071903,Early Years Sustainability,Employees,040149,Recruitment Instruction and Training,12-May-2021,000009508629361,WP-THE BRITISH ASS,8398,Training-all costs,8.50,0.00,8.50
"Regeneration, Economy and Growth",Development and Housing,031576,B& B - Temp Accom,Supplies and Services,364320,Grants to Voluntary Organisations,12-May-2021,000009508629399,CROXDALE INN,5812,Accommodation assistance,180.00,0.00,180.00
Children and Young Peoples Services,Head of Childrens Social Care,085380,Operations Manager LAC Resources,Supplies and Services,304259,Equipment and Materials,12-May-2021,000009508629539,CANVA 03053-8821727,7221,Equipment-purchase and rental,99.99,0.00,99.99
Children and Young Peoples Services,Head of Childrens Social Care,085331,New Lea Childrens Home,Supplies and Services,328041,Clothing uniforms and laundry E328,12-May-2021,000009508629577,eBay O 16-07050-12938,5311,Clothing uniforms and laundry,57.95,0.00,57.95
Children and Young Peoples Services,Head of Childrens Social Care,085331,New Lea Childrens Home,Supplies and Services,328041,Clothing uniforms and laundry E328,12-May-2021,000009508629583,BOOHOO.COM,5691,Clothing uniforms and laundry,42.45,0.00,42.45
"Regeneration, Economy and Growth",Culture Sport and Tourism,011290,Community Testing,Supplies and Services,372009,Subscriptions E372,12-May-2021,000009508629591,BOOKWHEN- SOFTWARE SUB,5734,Subscriptions 372009,82.80,0.00,82.80
Children and Young Peoples Services,Head of Childrens Social Care,085341,High Etherley Satelite Home,Supplies and Services,348037,Subsistence E348,12-May-2021,000009508629687,WWW.TAKEAWAY.JE,5812,Subsistence,32.96,0.00,32.96
Adult and Health Services,Head of Adults,055309,Peterlee Pathways,Supplies and Services,304403,Equipment and Materials,12-May-2021,000009508629719,AMZNMktplace,5999,Other consumables,24.98,4.17,20.81
Children and Young Peoples Services,Head of Childrens Social Care,085332,Middlestone Moor CU,Supplies and Services,348037,Subsistence E348,12-May-2021,000009508629831,Kaspas Darlington,5814,Subsistence,57.20,0.00,57.20
Children and Young Peoples Services,Head of Childrens Social Care,085332,Middlestone Moor CU,Supplies and Services,348037,Subsistence E348,12-May-2021,000009508629835,Kaspas Darlington,5814,Subsistence,2.25,0.00,2.25
"Regeneration, Economy and Growth",Culture Sport and Tourism,011265,Empire Theatre (Operations),Supplies and Services,328041,Clothing uniforms and laundry E328,12-May-2021,000009508629875,ARGOS LTD,5310,Clothing uniforms and laundry,124.99,0.00,124.99
"Regeneration, Economy and Growth",Development and Housing,030771,Durham Advance Flexible Fund,Supplies and Services,328041,Clothing uniforms and laundry E328,12-May-2021,000009508629891,SumUp Industrial Wor,5691,Clothing uniforms and laundry,57.36,9.56,47.80
"Regeneration, Economy and Growth",Development and Housing,030770,Durham Advance,Supplies and Services,304403,Equipment and Materials,12-May-2021,000009508629901,AMZNMktplace,5999,Other consumables,32.99,0.00,32.99
Children and Young Peoples Services,Head of Early Help Inclusion & Vulnerable Children.,085952,Secure Education,Supplies and Services,304403,Equipment and Materials,12-May-2021,000009511853203,AMZNMKTPLACE AMAZON.CO,5999,Other consumables,18.55,3.09,15.46
Children and Young Peoples Services,Head of Childrens Social Care,071448,Newton Aycliffe One Point Hub,Supplies and Services,304403,Equipment and Materials,12-May-2021,000009511853405,AMZNMKTPLACE AMAZON.CO,5999,Other consumables,79.35,13.23,66.12
Children and Young Peoples Services,Head of Childrens Social Care,071448,Newton Aycliffe One Point Hub,Supplies and Services,304403,Equipment and Materials,12-May-2021,000009511853409,AMZNMKTPLACE AMAZON.CO,5999,Other consumables,79.35,13.23,66.12
Children and Young Peoples Services,Head of Childrens Social Care,085378,Young Persons Service Team 3,Supplies and Services,338045,Services,12-May-2021,000009511853689,HARTLEPOOL BC,9399,Legal expenses 338045,11.00,0.00,11.00
Children and Young Peoples Services,Head of Childrens Social Care,085378,Young Persons Service Team 3,Supplies and Services,338045,Services,12-May-2021,000009511853693,HARTLEPOOL BC,9399,Legal expenses 338045,11.00,0.00,11.00
Adult and Health Services,Head of Adults,055309,Peterlee Pathways,Supplies and Services,304403,Equipment and Materials,12-May-2021,000009511854019,AMZNMKTPLACE AMAZON.CO,5999,Other consumables,12.99,2.17,10.82
Children and Young Peoples Services,Head of Childrens Social Care,085361,LAC & Permanence Team 1,Supplies and Services,304403,Equipment and Materials,12-May-2021,000009563877823,GEN REGISTER OFFICE,9399,Other consumables,-7.50,0.00,-7.50
"Regeneration, Economy and Growth",Business Durham CL0850,030689,Inward Investment and Aftercare,Supplies and Services,342033,Computers and Communications,13-May-2021,000009508626987,AdRoll_EMEA,7372,Computer hardware,93.73,0.00,93.73
"Regeneration, Economy and Growth",Business Durham CL0850,030689,Inward Investment and Aftercare,Supplies and Services,342033,Computers and Communications,13-May-2021,000009508626995,AdRoll_EMEA,7372,Computer hardware,2.58,0.00,2.58
Children and Young Peoples Services,Head of Childrens Social Care,085612,Families First Consett,Supplies and Services,364301,Grants to Voluntary Organisations,13-May-2021,000009511852941,ARGOS LTD,5310,Hardship,213.95,0.00,213.95
Adult and Health Services,Head of Adults,051613,OP/PD Easington 051613,Supplies and Services,384999,Miscellaneous Expenses,13-May-2021,000009511852955,ROCBURN LIMITED,5199,Other expenses,46.14,0.00,46.14
Resources BK0010,Digital and Customer Services,065432,Web Development Group,Supplies and Services,304403,Equipment and Materials,13-May-2021,000009511852961,BLS POWERMAPPER,5734,Other consumables,238.80,0.00,238.80
Adult and Health Services,Head of Adults,051613,OP/PD Easington 051613,Supplies and Services,304403,Equipment and Materials,13-May-2021,000009511852965,AMZNMKTPLACE AMAZON.CO,5999,Other consumables,87.49,14.58,72.91
Neighbourhoods and Climate Change,Technical Services CM0300,018950,Highways Services - Revenue,Supplies and Services,384999,Miscellaneous Expenses,13-May-2021,000009511852971,Amazon.co.uk MK5KE12V4,5969,Other expenses,5.99,1.00,4.99
Adult and Health Services,Head of Adults,051613,OP/PD Easington 051613,Supplies and Services,304403,Equipment and Materials,13-May-2021,000009511852975,AMZNMktplace,5999,Other consumables,29.99,0.00,29.99
Resources BK0010,Digital and Customer Services,065256,Nodes/Circuits,Supplies and Services,304999,Equipment and Materials,13-May-2021,000009511852979,TOOLSTATION UK,5251,Misc equipment tools and materials,259.96,0.00,259.96
"Regeneration, Economy and Growth",Development and Housing,031576,B& B - Temp Accom,Supplies and Services,352001,Conference Expenses,13-May-2021,000009511853009,TOAST LETTINGS,7011,Conferencesseminars fees etc,455.00,0.00,455.00
Children and Young Peoples Services,Head of Childrens Social Care,085341,High Etherley Satelite Home,Supplies and Services,304259,Equipment and Materials,13-May-2021,000009511853041,JD SPORTS PLC,5941,Equipment-purchase and rental,65.00,0.00,65.00
Resources BK0010,Legal & Democratic Services,069310,Head of Legal and Democratic Services,Supplies and Services,338045,Services,13-May-2021,000009511853047,LEGL CROWDJUSTICE,8999,Legal expenses 338045,"1,000.00",0.00,1000.00
"Regeneration, Economy and Growth",Culture Sport and Tourism,054233,Bishop Auckland Town Hall Library,Supplies and Services,304259,Equipment and Materials,13-May-2021,000009511853061,ST JOHN AMBULANCE,8398,Equipment-purchase and rental,66.00,0.00,66.00
"Regeneration, Economy and Growth",Development and Housing,030776,LINKCD Flexible Fund,Supplies and Services,304403,Equipment and Materials,13-May-2021,000009511853135,AMZNMKTPLACE AMAZON.CO,5999,Other consumables,11.94,0.00,11.94
"Regeneration, Economy and Growth",Development and Housing,030776,LINKCD Flexible Fund,Transport,235057,Public Transport,13-May-2021,000009511853141,GO NORTH EAST LIMITED,4131,Staff travelling,20.00,0.00,20.00
"Regeneration, Economy and Growth",Development and Housing,030776,LINKCD Flexible Fund,Supplies and Services,328041,Clothing uniforms and laundry E328,13-May-2021,000009511853145,NEW LOOK INTERNET,5621,Clothing uniforms and laundry,19.98,0.00,19.98
"Regeneration, Economy and Growth",Development and Housing,030770,Durham Advance,Supplies and Services,304259,Equipment and Materials,13-May-2021,000009511853169,GEN REGISTER OFFICE,9399,Equipment-purchase and rental,14.00,0.00,14.00
"Regeneration, Economy and Growth",Development and Housing,030770,Durham Advance,Supplies and Services,304259,Equipment and Materials,13-May-2021,000009511853173,GEN REGISTER OFFICE,9399,Equipment-purchase and rental,11.00,0.00,11.00
Children and Young Peoples Services,Head of Early Help Inclusion & Vulnerable Children.,085965,Barnard,Supplies and Services,328041,Clothing uniforms and laundry E328,13-May-2021,000009511853209,FOOTASYLUM PLC,5691,Clothing uniforms and laundry,109.96,18.33,91.63
Children and Young Peoples Services,Head of Early Help Inclusion & Vulnerable Children.,085954,Walworth,Supplies and Services,384999,Miscellaneous Expenses,13-May-2021,000009511853213,Amazon.co.uk MK7EE22I4,5969,Other expenses,23.70,3.95,19.75
Children and Young Peoples Services,Head of Early Help Inclusion & Vulnerable Children.,085965,Barnard,Supplies and Services,304259,Equipment and Materials,13-May-2021,000009511853221,JD SPORTS INTERNET,5941,Equipment-purchase and rental,100.00,0.00,100.00
Children and Young Peoples Services,Head of Childrens Social Care,085361,LAC & Permanence Team 1,Supplies and Services,304403,Equipment and Materials,13-May-2021,000009511853241,HM PASSPORT OFFICE,9399,Other consumables,49.00,0.00,49.00
Children and Young Peoples Services,Head of Childrens Social Care,085362,LAC & Permanence Team 2,Supplies and Services,304403,Equipment and Materials,13-May-2021,000009511853247,LONDON BOROUGH OF NEWH,9399,Other consumables,11.00,0.00,11.00
